Workbook

Sheet PROP11
A1: LINE RQ | B1: Y=RY+TSP*(QX-RX) | E1: QRPX PARALLELOGRAMM | H1: TSP | I1: =yp/(xp+CC) -> 0.3588748584 | J1: TANGENT OF SP | L1: SP | M1: =-CC -> -7.071067812 | N1: 0 | AR1: focy | AS1: =1/(4*foc) -> 1.25 | AT1: vpe | AU1: =30 -> 30 | AV1: =(SQRT(1+0))^3*2*foc -> 0.4 | BC1: 1 | BD1: 2 | BE1: 3 | BF1: 4 | BG1: 5 | BH1: 6 | BI1: 7 | BJ1: 8 | BK1: =BJ1+1 -> 9 | BL1: =BK1+1 -> 10 | BM1: 11 | BN1: 12 | BO1: 13 | BP1: 14 | BQ1: 15 | BR1: 16 | BS1: 17
B2: QX^2/A^2+(RY^2+T^2*(QX^2+RX^2-2QX*RX)/B^2)+2*RY*T*QX/b^2-2*T*RY*RX/B^2=1 | J2: Q_V | K2: =SQRT((Q_X-V_X)^2+(Q_Y-V_Y)^2) -> 3.828771501 | L2: P | M2: =xp -> 7 | N2: =yp -> 5.049752469 | AR2: 0 | AS2: 0 | AT2: Lpe | AU2: =vpe*rhzero -> 12 | AV2: =focy -> 1.25 | BD2: t | BE2: x | BF2: y | BG2: ρ | BH2: r | BI2: tank | BJ2: rx/r | BK2: ry/r | BL2: kx | BM2: ky | BN2: cosω | BO2: V | BP2: F | BR2: kenx | BS2: keny | BT2: kenxky | BU2: kenyky | BV2: rkykloy | BW2: shmx | BX2: shmy | BY2: m | BZ2: 2
B3: QX^2*(1/A^2+T^2/B^2)-2QX*(t*RX-RY)*t/B^2+(T*RY-RX)^2/B^-1=0 | F3: qx | J3: p_V | K3: =SQRT((xp-V_X)^2+(yp-V_Y)^2) -> 0.8831336691 | L3: RQ | M3: =RX -> 4.1 | N3: =RY -> 7.059751981 | T3: Cut of two lines y=y1+t1*(x-x1) | W3: SSAA | X3: =Y2-Y1+X1*T1-X2*T2 | Z3: FIND E | AA3: T1 | AB3: =TSP -> 0.3588748584 | AC3: X1 | AD3: =-CC -> -7.071067812 | AE3: Y1 | AF3: =0 -> 0 | AI3: vimata2 | AJ3: 3 | AK3: =" STEPS = "&TEXT(vimata2,"0") -> STEPS = 3 | AR3: 0 | AS3: =foc -> 0.2 | BC3: =IF(ABS($BD3-xr)<0.000001,1,0) -> 0 | BD3: -5 | BE3: =2*foc*BD3 -> -2 | BF3: =foc*BD3^2 -> 5 | BG3: =(SQRT(1+$BD3^2))^3*2*foc -> 53.02980294 | BH3: =SQRT(BE3^2+(BF3-foc)^2) -> 5.2 | BI3: =-1/BD3 -> 0.2 | BJ3: =$BE3/$BH3 -> -0.3846153846 | BK3: =($BF3-focy)/$BH3 -> 0.7211538462 | BL3: =1/SQRT(1+$BI3^2) -> 0.9805806757 | BM3: =$BI3*$BL3 -> 0.1961161351 | BN3: =($BJ3*$BL3+$BK3*$BM3) -> -0.2357165086 | BO3: =Lpe/($BH3*$BN3) -> -9.790117466 | BP3: =BO3^2/(BN3*BG3) -> -7.667712 | BQ3: =BP3/$BH3^(-1.5) -> -90.92238261 | BR3: =IF($BE3>0,-ABS($BE3+$BG3*$BL3),ABS($BE3+$BG3*$BL3)) -> 50 | BS3: =ABS($BF3+$BG3*ABS($BM3)) -> 15.4 | BT3: =VLOOKUP(1,BC3:BS103,16,FALSE) -> 0.1372 | BU3: =VLOOKUP(1,BC3:BT103,17,FALSE) -> 0.694 | BV3: =VLOOKUP(1,BC3:BU103,5,FALSE) -> 0.7275107147 | BW3: =VLOOKUP(1,BC3:BV103,3,FALSE) -> -0.28 | BX3: =VLOOKUP(1,BC3:BW103,4,FALSE) -> 0.098 | BZ3: F*f^m
B4: ALFA | C4: =1/AA^2+(TSP/BB)^2 -> 0.01257582328 | D4: Q_X | E4: =(-BETA+SQRT(BETA^2-ALFA*GAMA))/ALFA -> 3.136966255 | F4: QX//RP | J4: v_G | K4: =SQRT((V_X-GX)^2+(V_Y-GY)^2) -> 16.37954283 | M4: =Q_X -> 3.136966255 | N4: =Q_Y -> 6.714143382 | O4: T_X | Q4: T_Y | U4: y=y2+t2*(x-x2) | W4: XLSH | X4: =SSAA/(T1-T2) | AA4: T2 | AB4: =TAN(PSI) -> -0.6931032801 | AC4: X2 | AD4: =-XD -> 7.141428429 | AE4: Y2 | AF4: =-YD -> -4.949747468 | AI4: 22 | AJ4: 105 | AS4: deltt | BC4: 0 | BD4: =BD3+deltt -> -4.9 | BE4: -1.96 | BF4: 4.802 | BG4: 50.030003 | BH4: 5.002 | BI4: =-1/BD4 -> 0.2040816327 | BJ4: =$BE4/$BH4 -> -0.3918432627 | BK4: 0.7101159536 | BL4: =1/SQRT(1+$BI4^2) -> 0.9798040588 | BM4: =$BI4*$BL4 -> 0.199960012 | BN4: =($BJ4*$BL4+$BK4*$BM4) -> -0.2419348246 | BO4: -9.916060608 | BP4: =BO4^2/(BN4*BG4) -> -8.12361682 | BQ4: =BP4/$BH4^(-1.5) -> -90.87929749 | BR4: =IF($BE4>0,-ABS(-$BE4+$BG4*$BL4),ABS($BE4+$BG4*$BL4)) -> 47.0596 | BS4: =ABS($BF4+$BG4*ABS($BM4)) -> 14.806 | BT4: =-PI() -> -3.141592654 | BU4: =kenxky+rhoky*COS($BT4) -> -0.5903107147 | BV4: =kenyky+rhoky*SIN($BT4) -> 0.694 | BW4: =$BJ4^2+$BK4^2 -> 0.6578058101 | BZ4: =$BP4*$BH4^m -> -203.2529253
B5: BETA | C5: =-(RX*TSP-RY)*TSP/BB^2 -> 0.04011047441 | D5: Q_Y | E5: =RY+TSP*(Q_X-RX) -> 6.714143382 | F5: 5 | G5: 9 | J5: PV∙VG | K5: =P_V*V_G -> 14.46532576 | L5: FIND QT | M5: =yp-Q_Y+(-1/TSP)*Q_X-TSP*xp -> -12.91762949 | N5: XLYSH | O5: =M5/(-1/TSP-TSP) -> 4.106882304 | P5: YLYSH | Q5: =Q_Y+(-1/TSP)*(O5-Q_X) -> 4.011485265 | T5: BC | AA5: SSAA | AB5: =-YD-0+(-CC)*TSP-(-XD)*TAN(PSI) -> -2.53762846 | AC5: XLYSH | AD5: =AB5/(TSP-TAN(PSI)) -> -2.412244482 | AE5: YLYSH | AF5: =TSP*(EX+CC) -> 1.671934563 | AI5: 22 | AJ5: 105 | AS5: =0.1 -> 0.1 | AT5: foc | AU5: 0.2 | BC5: 0 | BD5: -4.8 | BE5: -1.92 | BF5: 4.608 | BG5: 47.14782755 | BH5: 4.808 | BI5: 0.2083333333 | BJ5: -0.3993344426 | BK5: 0.6984193012 | BL5: 0.9789804197 | BM5: 0.2039542541 | BN5: -0.2484950126 | BO5: -10.04382438 | BP5: -8.610311387 | BQ5: -90.77485131 | BR5: 44.2368 | BS5: 14.224 | BT5: =BT4+PI()/50 -> -3.078760801 | BU5: -0.5888751385 | BV5: 0.6483192243 | BW5: =$BJ5^2+$BK5^2 -> 0.6472575173 | BZ5: -199.0433973
B6: GAMA | C6: =(TSP*RX-RY)^2/BB^2-1 -> -0.3754035187 | F6: 5 | G6: 0 | J6: PV∙VG/QV² | K6: =K5/K2^2 -> 0.9867549669 | L6: QT | M6: =Q_X -> 3.136966255 | N6: =Q_Y -> 6.714143382 | T6: =0 -> 0 | U6: =BB -> 7.071067812 | AD6: E | AF6: EY | BC6: 0 | BD6: -4.7 | BE6: -1.88 | BF6: 4.418 | BG6: 44.3808781 | BH6: 4.618 | BI6: 0.2127659574 | BJ6: -0.4071026418 | BK6: 0.6860112603 | BL6: 0.978105929 | BM6: 0.2081076445 | BN6: -0.2554253202 | BO6: -10.17333559 | BP6: -9.129918582 | BQ6: -90.60408889 | BR6: 41.5292 | BS6: 13.654 | BT6: =BT5+PI()/50 -> -3.015928947 | BU6: -0.5845740754 | BV6: 0.6028187297 | BW6: 0.6363440102 | BZ6: -194.7039498
J7: CP^2/CD^2 | K7: =AAT^2/BBT^2 -> 0.9867549669 | M7: =T_X -> 4.106882304 | N7: =T_y -> 4.011485265 | O7: V_X | Q7: V_Y | T7: 0 | U7: 0 | AD7: =EX -> -2.412244482 | AE7: =EY -> 1.671934563 | AG7: y=tanf*(x-x0)-1/2g*(x-x0)^2/vx^2=-x^2/(2*vx^2)*g+(g/vx^2*x0+tanf)*x-1/xg*x0^2/vx^2-tanf*x0 | AQ7: SRQ = YR - YQ + XQ * taNFq - XR * taNFR: Xv = SRQ / (taNFq - taNFR): Yv = YQ + taNFq * (Xv - XQ) | BC7: 0 | BD7: -4.6 | BE7: -1.84 | BF7: 4.232 | BG7: 41.7267563 | BH7: 4.432 | BI7: 0.2173913043 | BJ7: -0.4151624549 | BK7: 0.672833935 | BL7: 0.9771763639 | BM7: 0.2124296443 | BN7: -0.2627570646 | BO7: -10.30450402 | BP7: -9.684677402 | BQ7: -90.3617819 | BR7: 38.9344 | BS7: 13.096 | BT7: -2.953097094 | BU7: -0.5774244998 | BV7: 0.5576780859 | BW7: 0.625065368 | BZ7: -190.2324768
D8: If the body is on P, we draw the conjugate diameters GP and DK and the line joining the focus S with P and the tangent RZ on P | L8: FIND QV | M8: =yp-Q_Y+DYDX*Q_X-TAN(PHI)*xp -> -8.888384983 | N8: XLYSH | O8: =M8/(DYDX-TAN(PHI)) -> 6.283780162 | P8: YLYSH | Q8: =Q_Y+DYDX*(O8-Q_X) -> 4.533076341 | AD8: 0 | AE8: 0 | AG8: a | AH8: =-1/2*g/(varxiki*COS(firipsi))^2 -> -0.01177851028 | AJ8: ymax | AK8: =(varxiki*SIN(firipsi))^2/(2*g) -> 89.22490497 | AQ8: TaNTd = (Yt - YD) / (Xt - XD): TanVE = (Yv - YE) / (Xv - XE) | BC8: 0 | BD8: -4.5 | BE8: -1.8 | BF8: 4.05 | BG8: 39.18306394 | BH8: 4.25 | BI8: 0.2222222222 | BJ8: -0.4235294118 | BK8: 0.6588235294 | BL8: 0.9761870602 | BM8: 0.2169304578 | BN8: -0.2705250415 | BO8: -10.43722014 | BP8: -10.27694002 | BQ8: -90.04243211 | BR8: 36.45 | BS8: 12.55 | BT8: -2.890265241 | BU8: -0.5674546278 | BV8: 0.5130754425 | BW8: 0.6134256055 | BZ8: -185.6272292
C9: xekino | L9: QV | M9: =Q_X -> 3.136966255 | N9: =Q_Y -> 6.714143382 | S9: TAN1 | T9: =TSP -> 0.3588748584 | U9: X1 | V9: =CC -> 7.071067812 | W9: 0 | X9: Y1 | AG9: b | AH9: =(g/(varxiki*COS(firipsi))^2)*xxekina+TAN(firipsi) -> 0 | AM9: focus | AQ9: srq_ | AR9: =y_r-Y_Q+X_Q*TANF_Q-x_r*tanf_r -> 35.68996199 | AS9: x_v | AT9: =srq_/(TANF_Q-tanf_r) -> 43.51789387 | AU9: =y_r+tanf_r*(AT9-x_r) -> 70.48767493 | AV9: y_v | BC9: 0 | BD9: -4.4 | BE9: -1.76 | BF9: 3.872 | BG9: 36.74740297 | BH9: 4.072 | BI9: 0.2272727273 | BJ9: -0.4322200393 | BK9: 0.6439096267 | BL9: 0.9751328558 | BM9: 0.2216211036 | BN9: -0.2787679992 | BO9: -10.5713526 | BP9: -10.90916594 | BQ9: -89.64027944 | BR9: 34.0736 | BS9: 12.016 | BT9: -2.827433388 | BU9: -0.5547038059 | BV9: 0.4691868256 | BW9: 0.6014337697 | BZ9: -180.8868877
C10: 3 | D10: 9 | J10: PF | K10: =SQRT((xp-F_X)^2+(yp-F_Y)^2) -> 8.137884588 | M10: =V_X -> 6.283780162 | N10: =V_Y -> 4.533076341 | O10: X_X | Q10: X_Y | S10: TAN2 | T10: =TAN(PSI) -> -0.6931032801 | U10: X2 | V10: =xp -> 7 | W10: =yp -> 5.049752469 | X10: Y2 | Z10: IY | AG10: c | AH10: =-1/2*g*xxekina^2/(varxiki*COS(firipsi))^2-TAN(firipsi)*xxekina -> 89.22490497 | AJ10: focus | AK10: =c_+1/(4*a) -> 67.99980995 | AM10: =0 -> 0 | AN10: =c_+1/(4*a) -> 67.99980995 | AS10: rvq | AT10: =x_r -> 60.92505142 | AU10: =y_r -> 45.50470154 | AW10: TP | BC10: 0 | BD10: -4.3 | BE10: -1.72 | BF10: 3.698 | BG10: 34.41737549 | BH10: 3.898 | BI10: 0.2325581395 | BJ10: -0.4412519241 | BK10: 0.6280143663 | BL10: 0.974008027 | BM10: 0.2265134947 | BN10: -0.2875291872 | BO10: -10.70674538 | BP10: -11.58391235 | BQ10: -89.14931589 | BR10: 31.8028 | BS10: 11.494 | BT10: -2.764601535 | BU10: -0.5392223558 | BV10: 0.4261854436 | BW10: 0.5891053048 | BZ10: -176.0106441
C11: 3 | D11: 0 | J11: PF∙CD | K11: =PF*BBT -> 70.71067812 | L11: QX | M11: =yp-Q_Y+DYDX*Q_X-TSP*xp -> -6.350756523 | N11: XLYSH | O11: =M11/(DYDX-TSP) -> 6.036966255 | P11: YLYSH | Q11: =Q_Y+DYDX*(O11-Q_X) -> 4.70414387 | U11: SSAA | V11: =yp-0+CC*TAN(PSI)-xp*TSP -> -2.363351834 | W11: XLYSH | X11: =V11/(TAN(PSI)-TSP) -> 2.246578847 | Y11: YLYSH | Z11: =0+TAN(PSI)*(X11-CC) -> 3.343869126 | AM11: 0 | AN11: =AN10 -> 67.99980995 | AS11: ves | AT11: =IF(vimata2>3,x_v,1000) -> 1000 | AU11: =IF(vimata2>3,y_v,1000) -> 1000 | AV11: TP | AW11: =IF(vimata2>2,TX_,1000) -> -26.11073632 | AX11: =IF(vimata2>2,TY_,1000) -> 113.3156293 | BC11: 0 | BD11: -4.2 | BE11: -1.68 | BF11: 3.528 | BG11: 32.19058383 | BH11: 3.728 | BI11: 0.2380952381 | BJ11: -0.4506437768 | BK11: 0.6110515021 | BL11: 0.9728062147 | BM11: 0.2316205273 | BN11: -0.2968569956 | BO11: -10.84321464 | BP11: -12.30381998 | BQ11: -88.56330675 | BR11: 29.6352 | BS11: 10.984 | BT11: -2.701769682 | BU11: -0.5210713756 | BV11: 0.3842410033 | BW11: 0.5764637519 | BZ11: -170.9982932
D12: Draw HI parallel to DK. Since DK conjugate to PG, RZ parallel to DK. It Is well known from optics that the RZ makes equal angle IPR = HPZ (so SP reflected to PH) perpendicular PF to DK is DFꞱHI so PH=PI. From Thales Since CH=CS then CH/CS=EI/SE so SE=EI | J12: AA∙BB | K12: =AA*BB -> 70.71067812 | M12: =Q_X -> 3.136966255 | N12: =Q_Y -> 6.714143382 | X12: IX | Z12: IY | AB12: parabola | AC12: firipsi | AD12: =RADIANS(AE12) -> 1.117010721 | AE12: 64 | AH12: =1/(4*AH8) -> -21.22509503 | AT12: =IF(vimata2>3,x_v+(XE_-x_v)*20,1000) -> 1000 | AU12: =y_v+(YE_-y_v)*20 -> -706.0815277 | AW12: =IF(vimata2>2,p_X,1000) -> -78.33220896 | AX12: =IF(vimata2>2,P_y,1000) -> 16.95273195 | BC12: 0 | BD12: -4.1 | BE12: -1.64 | BF12: 3.362 | BG12: 30.06463049 | BH12: 3.562 | BI12: 0.243902439 | BJ12: -0.4604154969 | BK12: 0.5929253229 | BL12: 0.9715203388 | BM12: 0.2369561802 | BN12: -0.3068056999 | BO12: -10.98054528 | BP12: -13.07159309 | BQ12: -87.87582043 | BR12: 27.5684 | BS12: 10.486 | BT12: -2.638937829 | BU12: -0.5003224991 | BV12: 0.3435190402 | BW12: 0.5635428683 | BZ12: -165.8503339
C13: parper | D13: Since EI=SE then PE=EI/2+(HP+PH)/=2a/2=a | M13: =X_X -> 6.036966255 | N13: =X_Y -> 4.70414387 | O13: A | Q13: HS | S13: HI | AB13: varxiki | AC13: 47 | AW13: TQ | BC13: 0 | BD13: -4 | BE13: -1.6 | BF13: 3.2 | BG13: 28.03711825 | BH13: 3.4 | BI13: 0.25 | BJ13: -0.4705882353 | BK13: 0.5735294118 | BL13: 0.9701425001 | BM13: 0.242535625 | BN13: -0.3174363328 | BO13: -11.11848708 | BP13: -13.88997247 | BQ13: -87.08026869 | BR13: 25.6 | BS13: 10 | BT13: -2.576105976 | BU13: -0.4770576125 | BV13: 0.3041802654 | BW13: 0.5503892734 | BZ13: -160.5680817
C14: 12 | D14: 0 | L14: FP | M14: =xp -> 7 | N14: =yp -> 5.049752469 | O14: =AA -> 10 | P14: 0 | Q14: =CC -> 7.071067812 | R14: 0 | S14: =CC -> 7.071067812 | T14: =0 -> 0 | V14: 2ax-x^2=t^2*x^2 so 2a=(t^2+1)*x x=2a/(t^2+a) y-sqrt(4a^2/(1+t^2)-4a^2/(1+t^2)^2) | AB14: g | AC14: =10 -> 10 | AE14: -60 | AW14: =IF(vimata2>2,TX_,1000) -> -26.11073632 | AX14: =IF(vimata2>2,TY_,1000) -> 113.3156293 | BC14: 0 | BD14: -3.9 | BE14: -1.56 | BF14: 3.042 | BG14: 26.10565015 | BH14: 3.242 | BI14: 0.2564102564 | BJ14: -0.481184454 | BK14: 0.552745219 | BL14: 0.968663866 | BM14: 0.2483753503 | BN14: -0.3288177062 | BO14: -11.2567505 | BP14: -14.76169988 | BQ14: -86.16995917 | BR14: 23.7276 | BS14: 9.526 | BT14: -2.513274123 | BU14: -0.4513685318 | BV14: 0.266379931 | BW14: 0.5370657559 | BZ14: -155.1537913
C15: 12 | D15: -10 | K15: QR/(PC²∙QT²) | M15: =F_X -> 2.364238411 | N15: =F_Y -> -1.638661397 | O15: =-AA -> -10 | P15: 0 | Q15: =-CC -> -7.071067812 | R15: 0 | S15: =IX -> 2.246578847 | T15: =IY -> 3.343869126 | V15: y=2a*sqrt(1+t^4+2t^2-1)/(1+t^2)=2at*sqrt(t^2+2)/(1+t^2( | AB15: tano | AC15: =varxiki*SIN(firipsi)/g -> 4.224332018 | AE15: -60 | AH15: xcenm | AI15: ykenm | AW15: =IF(vimata2>2,X_Q,1000) -> 26.11073632 | AX15: =Y_Q -> 81.19466353 | BC15: 0 | BD15: -3.8 | BE15: -1.52 | BF15: 2.888 | BG15: 24.26782952 | BH15: 3.088 | BI15: 0.2631578947 | BJ15: -0.4922279793 | BK15: 0.5304404145 | BL15: 0.9670745373 | BM15: 0.2544932993 | BN15: -0.3410276141 | BO15: -11.39500205 | BP15: -15.68947218 | BQ15: -85.13816214 | BR15: 21.9488 | BS15: 9.064 | BT15: -2.45044227 | BU15: -0.4233566399 | BV15: 0.2302672177 | BW15: 0.5236554169 | BZ15: -149.6107902
A16: BBT²=1/(cos²ψ/a²+sin²ψ/b²)=1/cos²ψ/(1/a²+tan²ψ/b²)=1/cos²ψ/(1/a²+1/b²∙(b/a)²(b/a)²/tan²φ)=b²tan²/cos²ψ/(b/a)²/( | J16: F⌐QR/(PC²∙QT²) | K16: =QR/(AAT^2*QT^2) -> 0.0009019930442 | O16: y=tan(2*theta)*(x-codo) | R16: =yp -> 5.049752469 | S16: y=tantheta*x | W16: radodo | X16: =varxiki*COS(firipsi)/2 -> 10.30172195 | AB16: xxekina | AC16: =-varxiki*COS(firipsi)*tano -> -87.03578774 | AF16: rhomo | AG16: =(SQRT(1+(TAN(firipsi)-g*(CE69-xxekina)/(varxiki*COS(firipsi))^2)^2))^3/(g/(varxiki*COS(firipsi))^2) -> 51.78770634 | AH16: =IF( $CE$69<0,$CE$69+rhomo*COS(ATAN(CI71)),$CE$69-rhomo*COS(ATAN(CI71))) -> -2.265102066 | AI16: =IF($CE$69<0,$CF$69+rhomo*SIN(ATAN(CI71)),$CF$69-rhomo*SIN(ATAN(CI71))) -> 37.74980264 | BC16: 0 | BD16: -3.7 | BE16: -1.48 | BF16: 2.738 | BG16: 22.52126003 | BH16: 2.938 | BI16: 0.2702702703 | BJ16: -0.5037440436 | BK16: 0.5064669843 | BL16: 0.965363393 | BM16: 0.2609090251 | BN16: -0.354154252 | BO16: -11.53285932 | BP16: -16.67588315 | BQ16: -83.97819397 | BR16: 20.2612 | BS16: 8.614 | BT16: -2.387610417 | BU16: -0.3931324871 | BV16: 0.1959846457 | BW16: 0.5102668677 | BZ16: -143.9436219
A17: CD²=BBT² | D17: COS(φ)*COS(ψ)/a²+SIN(φ)*SIN(ψ)/b² so tanψ=-(b/a)²/tan²φ | H17: ∆PXV~∆PEC | I17: EC‖XV | J17: PE/PC=PX/PV=QR/PV | M17: RSP | S17: y=sqrt(a^2-(x=a)^2)=sqrt(2ax-x^2) | W17: codo | X17: =radodo -> 10.30172195 | Y17: det | Z17: =tano/40 -> 0.1056083004 | AA17: t | AB17: xparabola | AC17: yparabola | AH17: =CE69 -> 15.98143176 | AI17: =CF69 -> 86.21660088 | AR17: XE = SCB / (taNFR - taNFq): YE = YB + taNFq * (XE - Bx) | AX17: SPQ_ | AY17: =Y_Q-P_y+p_X*TANF_p-X_Q*TANF_Q -> -64.24193158 | AZ17: td | BC17: 0 | BD17: -3.6 | BE17: -1.44 | BF17: 2.592 | BG17: 20.86354576 | BH17: 2.792 | BI17: 0.2777777778 | BJ17: -0.5157593123 | BK17: 0.4806590258 | BL17: 0.9635179096 | BM17: 0.2676438638 | BN17: -0.3682978957 | BO17: -11.66988549 | BP17: -17.72335078 | BQ17: -82.68351942 | BR17: 18.6624 | BS17: 8.176 | BT17: -2.324778564 | BU17: -0.3608153543 | BV17: 0.1636675129 | BW17: 0.4970407673 | BZ17: -138.1581983
A18: ΑΑT²=1/(cosφ²/a²+sinφ²/b²)=1/(cos²φ*(1/a²+tan²φ/b²)) | H18: HI ‖ DK SO DFꞱHI so PH=PI | K18: PE= | L18: =SQRT((xp-EX)^2+(yp-EY)^2) -> 10 | M18: =RX -> 4.1 | N18: =RY -> 7.059751981 | O18: theta | P18: Ax | Q18: Ay | R18: by | S18: ax | T18: ay=by | AA18: =0 -> 0 | AB18: =xxekina+varxiki*COS(firipsi)*AA18 -> -87.03578774 | AC18: =varxiki*SIN(firipsi)*AA18-1/2*g*AA18^2 -> 0 | AD18: ρ | AF18: curvature | AG18: X | AH18: Y | AI18: dy/dx | AJ18: kathetos | AK18: kx | AL18: ky=cosω | AM18: v | AN18: V^2/ρ/cosω | AR18: SCB = YB - CY + Cx * taNFR - Bx * taNFq: 'msgbox ("SCB = " & SCB) | AX18: TX_ | AY18: =SPQ_/(TANF_p-TANF_Q) -> -26.11073632 | AZ18: =IF(vimata2>3,TX_,1000) -> 1000 | BA18: =IF(vimata2>3,TY_,1000) -> 1000 | BC18: 0 | BD18: -3.5 | BE18: -1.4 | BF18: 2.45 | BG18: 19.29229121 | BH18: 2.65 | BI18: 0.2857142857 | BJ18: -0.5283018868 | BK18: 0.4528301887 | BL18: 0.9615239476 | BM18: 0.2747211279 | BN18: -0.3835728956 | BO18: -11.8055836 | BP18: -18.8340276 | BQ18: -81.24787544 | BR18: 17.15 | BS18: 7.75 | BT18: -2.261946711 | BU18: -0.3265327823 | BV18: 0.1334433601 | BW18: 0.4841580634 | BZ18: -132.2619588
A19: PF²=AAT²∙sin²(φ-ψ) | C19: =varxiki -> 47 | D19: sin(φ-ψ)=sinφcosψ-cosφsinψ=tanφcosψcosφ-tanψcosφcosψ | H19: SP+PH=2a | I19: From EC ‖ HI and CS=CH | K19: AC | L19: =AA -> 10 | M19: =-CC -> -7.071067812 | N19: =0 -> 0 | O19: =PI()/3 -> 1.047197551 | P19: =2*radodo/(1+TAN(O19)^2) -> 5.150860975 | Q19: =TAN(O19)*P19 -> 8.921552911 | R19: =2*radodo*TAN(O19) -> 35.68621164 | S19: =R19/TAN(2*O19)+codo -> -10.30172195 | T19: =-R19 -> -35.68621164 | V19: =-PI() -> -3.141592654 | W19: =codo+radodo*COS(V19) -> 0 | X19: =radodo*SIN(V19) -> -1.262113873e-15 | Y19: =varxiki*COS(firipsi) -> 20.6034439 | Z19: =varxiki*SIN(firipsi)-g*$AB19 -> 890.8422506 | AA19: =IF(AA18+det<2*tano,AA18+det,2*tano) -> 0.1056083004 | AB19: -84.85989304 | AC19: 4.405479683 | AD19: =(SQRT(1+4*a^2*$AB19^2))^3/(ABS(2*a)) -> 474.0645953 | AE19: 1 | AF19: =-PI() -> -3.141592654 | AG19: =xcenm+rhomo*COS($AF19) -> -54.05280841 | AH19: =ykenm+rhomo*SIN($AF19) -> 37.74980264 | AI19: =2*a*$AB19 -> 1.999046246 | AJ19: =-1/AI19 -> -0.5002385524 | AK19: =1/SQRT(1+AJ19^2) -> 0.8943418358 | AL19: =AK19*AJ19 -> -0.4473842653 | AM19: =varxiki*COS(firipsi)/COS(ATAN(AI19)) -> 46.05312591 | AN19: =AM19^2/($AD19*$AL19) -> -10 | AX19: TY_ | AY19: =P_y+TANF_p*(TX_-p_X) -> 113.3156293 | AZ19: =IF(vimata2>3,TX_+(DX_-TX_)*20,1000) -> 1000 | BA19: =IF(vimata2>3,TY_+20*(DY_-TY_),1000) -> 1000 | BC19: 0 | BD19: -3.4 | BE19: -1.36 | BF19: 2.312 | BG19: 17.80510136 | BH19: 2.512 | BI19: 0.2941176471 | BJ19: -0.5414012739 | BK19: 0.4227707006 | BL19: 0.9593655016 | BM19: 0.282166324 | BN19: -0.4001100502 | BO19: -11.93939033 | BP19: -20.00969139 | BQ19: -79.66541871 | BR19: 15.7216 | BS19: 7.336 | BT19: -2.199114858 | BU19: -0.290420069 | BV19: 0.1054314682 | BW19: 0.4718504047 | BZ19: -126.264034
A20: rfrom focus | B20: cosω | C20: v | D20: =varxiki*(c_-focus) -> 997.5794662 | H20: SE = EI SP+PH=2a=2EI+2PI | J20: PE/PC=PX/PV=QR/PV | M20: =xp -> 7 | N20: =yp -> 5.049752469 | O20: =O19-PI()/40 -> 0.9686577349 | P20: 6.609914978 | Q20: =TAN(O20)*P20 -> 9.617485971 | R20: 29.97819689 | S20: -1.205829674 | T20: =-R20 -> -29.97819689 | V20: =V19+PI()/40 -> -3.063052837 | W20: 0.03175677074 | X20: -0.8082637886 | Y20: 20.6034439 | Z20: 869.0833037 | AA20: 0.2112166009 | AB20: -82.68399835 | AC20: =varxiki*SIN(firipsi)*AA20-1/2*g*AA20^2 -> 8.699428235 | AD20: 445.5643769 | AF20: =AF19+PI()/40 -> -3.063052837 | AG20: -53.89316419 | AH20: 33.68658603 | AI20: 1.94778865 | AJ20: =-1/AI20 -> -0.5134027248 | AK20: =1/SQRT(1+AJ20^2) -> 0.8896070648 | AL20: =AK20*AJ20 -> -0.4567266911 | AM20: 45.11110102 | AN20: =-AM20^2/($AD20*$AL20) -> -10 | AV20: LINE adb | BC20: 0 | BD20: -3.3 | BE20: -1.32 | BF20: 2.178 | BG20: 16.39958179 | BH20: 2.378 | BI20: 0.303030303 | BJ20: -0.5550883095 | BK20: 0.3902439024 | BL20: 0.9570244044 | BM20: 0.2900073953 | BN20: -0.4180594411 | BO20: -12.07066953 | BP20: -21.25161362 | BQ20: -77.93089909 | BR20: 14.3748 | BS20: 6.934 | BT20: -2.136283004 | BU20: -0.2526197346 | BV20: 0.07974238748 | BW20: 0.4604133347 | BZ20: -120.1754098
A21: =SQRT(($AB21)^2+($AC21-focus)^2) -> 97.56815434 | B21: =COS(ASIN(($AB21*$AL21-($AC21-focus)*$AK21)/$A21)) -> 0.4664131397 | C21: =lfoc/($A21*$B21) -> 21.92141757 | H21: so EP=EI+IP=a=AC so | J21: QR=PE/PC∙PV=AC/PC∙PV | M21: =RX -> 4.1 | N21: =RY -> 7.059751981 | O21: =O20-PI()/40 -> 0.8901179185 | P21: 8.159873521 | Q21: 10.07660461 | R21: 25.44313429 | S21: 4.893616808 | T21: =-R21 -> -25.44313429 | V21: =V20+PI()/40 -> -2.984513021 | W21: 0.1268312919 | X21: -1.611544362 | Y21: 20.6034439 | Z21: 847.3243567 | AA21: 0.3168249013 | AB21: -80.50810366 | AC21: 12.88184566 | AD21: 418.3765252 | AF21: =AF20+PI()/40 -> -2.984513021 | AG21: -53.41521581 | AH21: 29.6484205 | AI21: 1.896531053 | AJ21: -0.5272784741 | AK21: 0.8845670032 | AL21: -0.4664131397 | AM21: 44.17423556 | AN21: -10 | AR21: SAB_ | AS21: =by_-ay_+ax_*CI46-bx_*CI53 -> -64.24193158 | AT21: DX_ | AU21: =SAB_/(CI46-CI53) -> -26.11073632 | AV21: =IF(vimata2>2,ax_,1000) -> -62.06692594 | AW21: =IF(vimata2>2,ay_,1000) -> 8.138166845 | BB21: 43 | BC21: 0 | BD21: -3.2 | BE21: -1.28 | BF21: 2.048 | BG21: 15.07333871 | BH21: 2.248 | BI21: 0.3125 | BJ21: -0.5693950178 | BK21: 0.3549822064 | BL21: 0.954479978 | BM21: 0.2982749931 | BN21: -0.4375938289 | BO21: -12.1987056 | BP21: -22.56040303 | BQ21: -76.03986096 | BR21: 13.1072 | BS21: 6.544 | BT21: -2.073451151 | BU21: -0.2132809598 | BV21: 0.05647750091 | BW21: 0.4502230532 | BZ21: -114.0090869
A22: 93.49726805 | B22: 0.4764588093 | C22: 22.39356404 | H22: angle TQX | I22: =exoteriko(T_X-Q_X,T_y-Q_Y,X_X-Q_X,X_Y-Q_Y) -> 0.5811612034 | J22: =DEGREES(ASIN(I22)) -> 35.53225701 | K22: PV=QV²∙PC²/(VG∙CD²) | M22: PV | N22: =SQRT((xp-V_X)^2+(yp-V_Y)^2) -> 0.8831336691 | O22: 0.8115781022 | P22: 9.76257148 | Q22: 10.2876038 | R22: 21.71149969 | S22: 9.163870466 | T22: -21.71149969 | V22: -2.905973205 | W22: 0.2846373975 | X22: -2.404889229 | Y22: 20.6034439 | Z22: 825.5654098 | AA22: 0.4224332018 | AB22: -78.33220896 | AC22: 16.95273195 | AD22: 392.4673707 | AF22: -2.905973205 | AG22: -52.62190996 | AH22: 25.66020269 | AI22: 1.845273457 | AJ22: -0.5419250984 | AK22: 0.8791967943 | AL22: -0.4764588093 | AM22: 43.24286486 | AN22: -10 | AR22: ax_ | AS22: =CE46+SIGN(0-$CE46)*1/CH46*40*KK*COS(ATAN(CI48)) -> -62.06692594 | AT22: DY_ | AU22: =ay_+CI46*(DX_-ax_) -> 74.48716919 | AV22: =IF(vimata2>2,DX_,1000) -> -26.11073632 | AW22: =IF(vimata2>2,DY_,1000) -> 74.48716919 | BA22: xr | BC22: 0 | BD22: -3.1 | BE22: -1.24 | BF22: 1.922 | BG22: 13.82397906 | BH22: 2.122 | BI22: 0.3225806452 | BJ22: -0.5843543827 | BK22: 0.3166823751 | BL22: 0.9517086178 | BM22: 0.3070027799 | BN22: -0.4589127323 | BO22: -12.3226967 | BP22: -23.93582188 | BQ22: -73.98887326 | BR22: 11.9164 | BS22: 6.166 | BT22: -2.010619298 | BU22: -0.1725589967 | BV22: 0.03572862438 | BW22: 0.4417577712 | BZ22: -107.7802294
A23: 89.5379129 | B23: 0.4868793309 | C23: 22.88332855 | H23: angle FPE | I23: =exoteriko(F_X-xp,F_Y-yp,EX-xp,EY-yp) -> -0.5811612034 | J23: =ABS(DEGREES(ASIN(I23))) -> 35.53225701 | K23: QR=AC/PC∙QV²∙PC²/(VG∙CD²) | M23: QV | N23: =SQRT((Q_X-V_X)^2+(Q_Y-V_Y)^2) -> 3.828771501 | O23: 0.7330382858 | P23: 11.37854511 | Q23: 10.24528804 | R23: 18.55142421 | S23: 12.2515552 | T23: -18.55142421 | V23: -2.827433388 | W23: 0.5042021604 | X23: -3.183407154 | Y23: 20.6034439 | Z23: 803.8064629 | AA23: 0.5280415022 | AB23: -76.15631427 | AC23: 20.9120871 | AD23: 367.8033024 | AE23: =AD23*$B23^3 -> 42.45019005 | AF23: -2.827433388 | AG23: -51.51813765 | AH23: 21.74652128 | AI23: 1.794015861 | AJ23: -0.5574086726 | AK23: 0.8734692422 | AL23: -0.4868793309 | AM23: 42.31735174 | AN23: -10 | AP23: =1/ABS(2*a) -> 42.45019005 | AR23: ay_ | AS23: =CF46+CI48*(ax_-CE46) -> 8.138166845 | AV23: =IF(vimata2>2,bx_,1000) -> 8.783304706 | AW23: =IF(vimata2>2,by_,1000) -> 53.02415328 | AX23: kenx | AY23: keny | BA23: =-5+deltt*$BB21 -> -0.7 | BC23: 0 | BD23: -3 | BE23: -1.2 | BF23: 1.8 | BG23: 12.64911064 | BH23: 2 | BI23: 0.3333333333 | BJ23: -0.6 | BK23: 0.275 | BL23: 0.9486832981 | BM23: 0.316227766 | BN23: -0.4822473432 | BO23: -12.44174817 | BP23: -25.37657337 | BQ23: -71.77578845 | BR23: 10.8 | BS23: 5.8 | BT23: -1.947787445 | BU23: -0.1306145564 | BV23: 0.01757764424 | BW23: 0.435625 | BZ23: -101.5062935
A24: 85.69008887 | B24: 0.4976906995 | C24: 23.39146288 | H24: SIMILAR TRIANGELS FPE and TQX | K24: QR=QV²∙PC/(VG∙CD²)∙AC | M24: PC | N24: =AAT -> 8.631338251 | O24: 0.6544984695 | P24: 12.96800379 | Q24: 9.950699286 | R24: 15.80957855 | S24: 14.53788575 | T24: -15.80957855 | V24: -2.748893572 | W24: 0.7841718907 | X24: -3.942298315 | Y24: 20.6034439 | Z24: 782.0475159 | AA24: 0.6336498026 | AB24: -73.98041958 | AC24: 24.75991113 | AD24: 344.3507743 | AE24: =AD24*$B24^3 -> 42.45019005 | AF24: -2.748893572 | AG24: -50.11070399 | AH24: 17.93150542 | AI24: 1.742758265 | AJ24: -0.5738030454 | AK24: 0.8673545801 | AL24: -0.4976906995 | AM24: 41.39808905 | AN24: -10 | AR24: SCB_ | AS24: =by_-cy_+cx_*CI60-bx_*CI53 -> -35.68996199 | AT24: XE_ | AU24: =SCB_/(CI60-CI53) -> 43.51789387 | AX24: =kenxky -> 0.1372 | AY24: =kenyky -> 0.694 | AZ24: ρ | BA24: =rhoky -> 0.7275107147 | BC24: 0 | BD24: -2.9 | BE24: -1.16 | BF24: 1.682 | BG24: 11.54634225 | BH24: 1.882 | BI24: 0.3448275862 | BJ24: -0.6163655685 | BK24: 0.2295430393 | BL24: 0.9453729816 | BM24: 0.3259906833 | BN24: -0.5078664631 | BO24: -12.55486629 | BP24: -26.88005927 | BQ24: -69.40002879 | BR24: 9.7556 | BS24: 5.446 | BT24: -1.884955592 | BU24: -0.08761317443 | BV24: 0.002096194112 | BW24: 0.432596521 | BZ24: -95.20712704
A25: 81.95379597 | B25: 0.5089091794 | C25: 23.91873143 | D25: QR deviation from inertial motion | F25: 10 | G25: -2 | H25: QT/QX=PF/PE QT²=QX²∙PF²/AC² | M25: VG | N25: =SQRT((V_X-GX)^2+(V_Y-GY)^2) -> 16.37954283 | O25: 0.5759586532 | P25: 14.49180975 | Q25: 9.411091293 | R25: 13.38003291 | S25: 16.25889641 | T25: -13.38003291 | V25: -2.670353756 | W25: 1.122820482 | X25: -4.676883896 | Y25: 20.6034439 | Z25: 760.288569 | AA25: 0.7392581031 | AB25: -71.80452488 | AC25: 28.49620403 | AD25: 322.0763126 | AE25: 42.45019005 | AF25: -2.670353756 | AG25: -48.40828629 | AH25: 14.23867596 | AI25: 1.691500669 | AJ25: -0.5911910164 | AK25: 0.8608202176 | AL25: -0.5089091794 | AM25: 40.48550258 | AN25: -10 | AT25: YE_ | AU25: =by_+CI53*(XE_-bx_) -> 31.6592148 | AX25: =kenxky -> 0.1372 | AY25: =kenyky -> 0.694 | AZ25: rkykloy | BA25: =rkykloy -> 0.7275107147 | BC25: 0 | BD25: -2.8 | BE25: -1.12 | BF25: 1.568 | BG25: 10.51328382 | BH25: 1.768 | BI25: 0.3571428571 | BJ25: -0.6334841629 | BK25: 0.1798642534 | BL25: 0.9417419116 | BM25: 0.336336397 | BN25: -0.5360836916 | BO25: -12.6609528 | BP25: -28.44210891 | BQ25: -66.86289648 | BR25: 8.7808 | BS25: 5.104 | BT25: -1.822123739 | BU25: -0.04372455755 | BV25: -0.0106546278 | BW25: 0.4336533343 | BZ25: -88.90502665
A26: 78.32903421 | B26: 0.5205511806 | C26: 24.46590549 | D26: The deviation = 1/2∙F/m∙t² | F26: 10 | G26: -15 | H26: FROM PF∙DC=BC∙AC PF/AC=BC/DC QT²=QX²∙BC²/DC² | M26: CD | N26: =BBT -> 8.689073598 | O26: 0.4974188368 | P26: 15.91244185 | Q26: 8.639750998 | R26: 11.1867573 | S26: 17.56648708 | T26: -11.1867573 | V26: -2.591813939 | W26: 1.518060053 | X26: -5.382634933 | Y26: 20.6034439 | Z26: 738.5296221 | AA26: 0.8448664035 | AB26: -69.62863019 | AC26: 32.12096579 | AD26: 300.9465241 | AE26: 42.45019005 | AF26: -2.591813939 | AG26: -46.42138051 | AH26: 10.69080041 | AI26: 1.640243073 | AJ26: -0.6096657357 | AK26: 0.8538304682 | AL26: -0.5205511806 | AM26: 39.58005412 | AN26: -10 | AV26: LINE BEC | AX26: =shmx -> -0.28 | AY26: =shmy -> 0.098 | BC26: 0 | BD26: -2.7 | BE26: -1.08 | BF26: 1.458 | BG26: 9.547546608 | BH26: 1.658 | BI26: 0.3703703704 | BJ26: -0.6513872135 | BK26: 0.1254523522 | BL26: 0.9377487607 | BM26: 0.3473143558 | BN26: -0.5672661493 | BO26: -12.75880063 | BP26: -30.05668272 | BQ26: -64.16790144 | BR26: 7.8732 | BS26: 4.774 | BT26: -1.759291886 | BU26: 0.0008780859047 | BV26: -0.02062449982 | BW26: 0.4400435946 | BZ26: -82.62473876
A27: 74.81580358 | B27: 0.5326330968 | C27: 25.03375555 | D27: QR~F/t² | F27: 10 | G27: -4 | M27: QV²∙PC²/(VG∙CD²) | N27: =N23^2*N24^2/(N25*N26^2) -> 0.8831336691 | O27: 0.4188790205 | P27: 17.1949194 | Q27: 7.65567136 | R27: 9.17324424 | S27: 18.56134816 | T27: -9.17324424 | V27: -2.513274123 | W27: 1.967453821 | X27: -6.055200235 | Y27: 20.6034439 | Z27: 716.7706751 | AA27: 0.950474704 | AB27: -67.4527355 | AC27: 35.63419642 | AD27: 280.9281061 | AE27: 42.45019005 | AF27: -2.513274123 | AG27: -44.1622366 | AH27: 7.309752603 | AI27: 1.588985477 | AJ27: -0.6293323723 | AK27: 0.8463462555 | AL27: -0.5326330968 | AM27: 38.68224491 | AN27: -10 | AV27: =IF(vimata2>2,bx_,1000) -> 8.783304706 | AW27: =IF(vimata2>2,by_,1000) -> 53.02415328 | AX27: =shmx -> -0.28 | AY27: =AY26 -> 0.098 | BC27: 0 | BD27: -2.6 | BE27: -1.04 | BF27: 1.352 | BG27: 8.646743442 | BH27: 1.552 | BI27: 0.3846153846 | BJ27: -0.6701030928 | BK27: 0.06572164948 | BL27: 0.9333456062 | BM27: 0.3589790793 | BN27: -0.6018450801 | BO27: -12.84709142 | BP27: -31.71555685 | BQ27: -61.32109712 | BR27: 7.0304 | BS27: 4.456 | BT27: -1.696460033 | BU27: 0.04601872967 | BV27: -0.02777407542 | BW27: 0.4533574902 | BZ27: -76.39338865
A28: 71.41410407 | B28: 0.5451711002 | C28: 25.62304171 | F28: 6 | G28: -15 | H28: F~QR/(SP²∙QT²)=QV²/VG∙PC/CD²∙AC∙(DC²/(QX²∙BC²))/SP² | O28: 0.3403392041 | P28: 18.30766356 | Q28: 6.483083686 | R28: 7.296062143 | S28: 19.31160834 | T28: -7.296062143 | V28: -2.434734307 | W28: 2.468231123 | X28: -6.690433215 | Y28: 20.6034439 | Z28: 695.0117282 | AA28: 1.056083004 | AB28: -65.2768408 | AC28: 39.03589593 | AD28: 261.9878568 | AE28: 42.45019005 | AF28: -2.434734307 | AG28: -41.64478291 | AH28: 4.116377829 | AI28: 1.537727881 | AJ28: -0.6503101181 | AK28: 0.8383248007 | AL28: -0.5451711002 | AM28: 37.7926194 | AN28: -10 | AV28: =IF(vimata2>2,XE_,1000) -> 43.51789387 | AW28: =IF(vimata2>2,YE_,1000) -> 31.6592148 | AX28: rhoky | BC28: 0 | BD28: -2.5 | BE28: -1 | BF28: 1.25 | BG28: 7.80848897 | BH28: 1.45 | BI28: 0.4 | BJ28: -0.6896551724 | BK28: 1.531342103e-15 | BL28: 0.9284766909 | BM28: 0.3713906764 | BN28: -0.6403287523 | BO28: -12.92439554 | BP28: -33.408 | BQ28: -58.33141079 | BR28: 6.25 | BS28: 4.15 | BT28: -1.63362818 | BU28: 0.09151922426 | BV28: -0.03207513849 | BW28: 0.4756242568 | BZ28: -70.24032
A29: 68.1239357 | B29: 0.5581808805 | C29: 26.23450139 | D29: QR deviation from inertial motion.Deviation = 1/2∙F/m∙t². QR~F/t² | E29: 10 | F29: 8 | H29: WITH L=BC²/AC and for the limit of dt→0 Q→P, QV→QX and VG→2CP | O29: 0.2617993878 | P29: 19.22327486 | Q29: 5.150860975 | R29: 5.520676154 | S29: 19.86381354 | T29: -5.520676154 | V29: -2.35619449 | W29: 3.017304501 | X29: -7.284417448 | Y29: 20.6034439 | Z29: 673.2527813 | AA29: 1.161691305 | AB29: -63.10094611 | AC29: 42.3260643 | AD29: 244.0926878 | AE29: 42.45019005 | AF29: -2.35619449 | AG29: -38.8845404 | AH29: 1.130364304 | AI29: 1.486470285 | AJ29: -0.6727346049 | AK29: 0.8297192927 | AL29: -0.5581808805 | AM29: 36.91176932 | AN29: -10 | AR29: bx_ | AS29: =CE53+SIGN(0-CE53)*1/CH53*40*KK*COS(ATAN(CI55)) -> 8.783304706 | AV29: =IF(vimata2>2,cx_,1000) -> 42.71260197 | AW29: =cy_ -> 32.81497995 | AX29: =SQRT((shmx-kenxky)^2+(shmy-kenyky)^2) -> 0.7275107147 | AY29: =rkykloy -> 0.7275107147 | BC29: 0 | BD29: -2.4 | BE29: -0.96 | BF29: 1.152 | BG29: 7.0304 | BH29: 1.352 | BI29: 0.4166666667 | BJ29: -0.7100591716 | BK29: -0.0724852071 | BL29: 0.9230769231 | BM29: 0.3846153846 | BN29: -0.6833181611 | BO29: -12.98917569 | BP29: -35.120459 | BQ29: -55.21095007 | BR29: 5.5296 | BS29: 3.856 | BT29: -1.570796327 | BU29: 0.1372 | BV29: -0.0335107147 | BW29: 0.5094381324 | BZ29: -64.19682748
A30: 64.94529846 | B30: 0.5716773203 | C30: 26.86883405 | D30: The deviation = 1/2∙F/m∙t² | E30: 10 | F30: 0 | H30: F ~ QR/(SP²∙QT²) = AC/BC²/SP² = 1 /(L∙SP²) Q.O.D. | O30: 0.1832595715 | P30: 19.91920792 | Q30: 3.691806972 | R30: 3.818622615 | S30: 20.24957396 | T30: -3.818622615 | V30: -2.277654674 | W30: 3.611288735 | X30: -7.833490826 | Y30: 20.6034439 | Z30: 651.4938343 | AA30: 1.267299605 | AB30: -60.92505142 | AC30: 45.50470154 | AD30: 227.2096379 | AE30: 42.45019005 | AF30: -2.277654674 | AG30: -35.89852688 | AH30: -1.629878207 | AI30: 1.435212689 | AJ30: -0.6967608408 | AK30: 0.8204785442 | AL30: -0.5716773203 | AM30: 36.04033808 | AN30: -10 | AR30: by_ | AS30: =CF53+CI55*(bx_-CE53) -> 53.02415328 | BC30: 0 | BD30: -2.3 | BE30: -0.92 | BF30: 1.058 | BG30: 6.310095898 | BH30: 1.258 | BI30: 0.4347826087 | BJ30: -0.7313195548 | BK30: -0.1526232114 | BL30: 0.9170700563 | BM30: 0.3987261114 | BN30: -0.7315261249 | BO30: -13.03979501 | BP30: -36.83627686 | BQ30: -51.97526234 | BR30: 4.8668 | BS30: 3.574 | BT30: -1.507964474 | BU30: 0.1828807757 | BV30: -0.03207513849 | BW30: 0.558122136 | BZ30: -58.29576565
A31: 61.87819235 | B31: 0.5856740915 | C31: 27.5266823 | D31: QR~F/t² | E31: ar | H31: QR/QT²=1/L in the limit dt→0 | K31: LATUS RECTUM | L31: =2*BB^2/(1*AA) -> 10 | O31: 0.1047197551 | P31: 20.37832656 | Q31: 2.141848429 | R31: 2.165509215 | S31: 20.4896418 | T31: -2.165509215 | V31: -2.199114858 | W31: 4.246521714 | X31: -8.334268129 | Y31: 20.6034439 | Z31: 629.7348874 | AA31: 1.372907906 | AB31: -58.74915672 | AC31: 48.57180765 | AD31: 211.3058892 | AE31: 42.45019005 | AF31: -2.199114858 | AG31: -32.7051521 | AH31: -4.14733189 | AI31: 1.383955093 | AJ31: -0.7225667979 | AK31: 0.8105466418 | AL31: -0.5856740915 | AM31: 35.17902567 | AN31: -10 | AU31: lineqgv | AV31: =X_Q -> 26.11073632 | AW31: =Y_Q -> 81.19466353 | BC31: 0 | BD31: -2.2 | BE31: -0.88 | BF31: 0.968 | BG31: 5.645199079 | BH31: 1.168 | BI31: 0.4545454545 | BJ31: -0.7534246575 | BK31: -0.2414383562 | BL31: 0.9103664775 | BM31: 0.4138029443 | BN31: -0.7858004542 | BO31: -13.07453126 | BP31: -38.53547513 | BQ31: -48.64351865 | BR31: 4.2592 | BS31: 3.304 | BT31: -1.445132621 | BU31: 0.2283812703 | BV31: -0.02777407542 | BW31: 0.6259411944 | BZ31: -52.57102003
A32: 58.92261738 | B32: 0.600183161 | C32: 28.20860857 | D32: t ~area of RSP=area of QSP =QT Χ SP | E32: 10 | F32: 6 | J32: =QR -> 0.743702108 | O32: 0.02617993878 | P32: 20.58932575 | Q32: 0.5391504692 | R32: 0.539520166 | S32: 20.59637998 | T32: -0.539520166 | V32: -2.120575041 | W32: 4.919087017 | X32: -8.783661896 | Y32: 20.6034439 | Z32: 607.9759405 | AA32: 1.478516206 | AB32: -56.57326203 | AC32: 51.52738262 | AD32: 196.3487855 | AE32: 42.45019005 | AF32: -2.120575041 | AG32: -29.3241043 | AH32: -6.406475807 | AI32: 1.332697497 | AJ32: -0.7503578286 | AK32: 0.7998625965 | AL32: -0.600183161 | AM32: 34.32859373 | AN32: -10 | AV32: =x_v -> 43.51789387 | AW32: =y_v -> 70.48767493 | BC32: 0 | BD32: -2.1 | BE32: -0.84 | BF32: 0.882 | BG32: 5.03333561 | BH32: 1.082 | BI32: 0.4761904762 | BJ32: -0.7763401109 | BK32: -0.3401109057 | BL32: 0.9028605188 | BM32: 0.4299335804 | BN32: -0.8471519347 | BO32: -13.09159852 | BP32: -40.19464159 | BQ32: -45.23858909 | BR32: 3.7044 | BS32: 3.046 | BT32: -1.382300768 | BU32: 0.2735219141 | BV32: -0.02062449982 | BW32: 0.718379396 | BZ32: -47.05683158
A33: 56.07857353 | B33: 0.6152141881 | C33: 28.91506684 | D33: F~QR/(SP²∙QT²)=AC/BC²/SP²=1/(L∙SP²) | E33: 10 | F33: 0 | I33: Q_R | J33: =SQRT((Q_X-RX)^2+(Q_Y-RY)^2) -> 1.023171197 | K33: Q_R/Q_T² = | L33: =Q_R/Q_T^2 -> 0.1240944853 | O33: -0.05235987756 | P33: 20.54700999 | Q33: -1.076823164 | R33: -1.07978074 | S33: 20.57514944 | T33: 1.07978074 | V33: -2.042035225 | W33: 5.624838053 | X33: -9.178901467 | Y33: 20.6034439 | Z33: 586.2169935 | AA33: 1.584124507 | AB33: -54.39736733 | AC33: 54.37142647 | AD33: 182.3058525 | AE33: 42.45019005 | AF33: -2.042035225 | AG33: -25.77622875 | AH33: -8.393381583 | AI33: 1.281439901 | AJ33: -0.7803721417 | AK33: 0.7883600083 | AL33: -0.6152141881 | AM33: 33.48987116 | AN33: -10 | BC33: 0 | BD33: -2 | BE33: -0.8 | BF33: 0.8 | BG33: 4.472135955 | BH33: 1 | BI33: 0.5 | BJ33: -0.8 | BK33: -0.45 | BL33: 0.894427191 | BM33: 0.4472135955 | BN33: -0.9167878708 | BO33: -13.0891784 | BP33: -41.78697349 | BQ33: -41.78697349 | BR33: 3.2 | BS33: 2.8 | BT33: -1.319468915 | BU33: 0.3181245575 | BV33: -0.0106546278 | BW33: 0.8425 | BZ33: -41.78697349
A34: 53.34606082 | B34: 0.6307737967 | C34: 29.64636844 | I34: Q_T | J34: =SQRT((Q_X-T_X)^2+(Q_Y-T_y)^2) -> 2.871427875 | K34: 1/L | L34: =1/LATUS -> 0.1 | O34: -0.1308996939 | P34: 20.25242124 | Q34: -2.666281838 | R34: -2.712494848 | S34: 20.42489054 | T34: 2.712494848 | V34: -1.963495408 | W34: 6.359423635 | X34: -9.517550059 | Y34: 20.6034439 | Z34: 564.4580466 | AA34: 1.689732807 | AB34: -52.22147264 | AC34: 57.10393918 | AD34: 169.1448221 | AE34: 42.45019005 | AF34: -1.963495408 | AG34: -22.08339928 | AH34: -10.09579928 | AI34: 1.230182305 | AJ34: -0.8128876476 | AK34: 0.7759667631 | AL34: -0.6307737967 | AM34: 32.66375998 | AN34: -10 | BC34: 0 | BD34: -1.9 | BE34: -0.76 | BF34: 0.722 | BG34: 3.959235906 | BH34: 0.922 | BI34: 0.5263157895 | BJ34: -0.8242950108 | BK34: -0.5726681128 | BL34: 0.8849182224 | BM34: 0.4657464328 | BN34: -0.9961518064 | BO34: -13.06546281 | BP34: -43.28253511 | BQ34: -38.31855043 | BR34: 2.7436 | BS34: 2.566 | BT34: -1.256637061 | BU34: 0.3620131744 | BV34: 0.002096194112 | BZ34: -36.79379058
A35: 50.72507923 | B35: 0.646864704 | C35: 30.40264109 | K35: QSP | M35: PH | O35: -0.2094395102 | P35: 19.71281324 | Q35: -4.190087804 | R35: -4.379397194 | S35: 20.13800909 | T35: 4.379397194 | V35: -1.884955592 | W35: 7.118314796 | X35: -9.797519789 | Y35: 20.6034439 | Z35: 542.6990997 | AA35: 1.795341107 | AB35: -50.04557795 | AC35: 59.72492077 | AD35: 156.8336591 | AE35: 42.45019005 | AF35: -1.884955592 | AG35: -18.26838343 | AH35: -11.50323294 | AI35: 1.178924709 | AJ35: -0.8482305888 | AK35: 0.7626047828 | AL35: -0.646864704 | AM35: 31.85124149 | AN35: -10 | BC35: =IF(ABS($BD35-xr)<0.000001,1,0) -> 0 | BD35: -1.8 | BE35: =2*foc*BD35 -> -0.72 | BF35: =foc*BD35^2 -> 0.648 | BG35: =(SQRT(1+$BD35^2))^3*2*foc -> 3.492277744 | BH35: =SQRT(BE35^2+(BF35-foc)^2) -> 0.848 | BI35: 0.5555555556 | BJ35: -0.8490566038 | BK35: =($BF35-focy)/$BH35 -> -0.7099056604 | BL35: 0.8741572761 | BM35: 0.4856429312 | BN35: -1.086969674 | BO35: =Lpe/($BH35*$BN35) -> -13.0187104 | BP35: -44.64879359 | BQ35: -34.86611089 | BR35: 2.3328 | BS35: 2.344 | BT35: -1.193805208 | BU35: 0.4050145564 | BV35: 0.01757764424 | BZ35: -32.10712607
A36: 48.21562878 | B36: 0.6634846875 | C36: 31.18378031 | K36: =Q_X -> 3.136966255 | L36: =Q_Y -> 6.714143382 | M36: =xp -> 7 | O36: -0.2879793266 | P36: 18.94147295 | Q36: -5.610719902 | R36: -6.103018126 | S36: 19.69954573 | T36: 6.103018126 | V36: -1.806415776 | W36: 7.896832721 | X36: -10.01708455 | Y36: 20.6034439 | Z36: 520.9401527 | AA36: 1.900949408 | AB36: -47.86968325 | AC36: 62.23437122 | AD36: 145.3405925 | AE36: 42.45019005 | AF36: -1.806415776 | AG36: -14.35470202 | AH36: -12.60700525 | AI36: 1.127667113 | AJ36: -0.8867865247 | AK36: 0.7481898619 | AL36: -0.6634846875 | AM36: 31.05338268 | AN36: -10 | AR36: cx_ | AS36: =CE60+SIGN(0-CE60)*1/CH60*40*KK*COS(ATAN(CI62)) -> 42.71260197 | BC36: 0 | BD36: =BD35+deltt -> -1.7 | BE36: -0.68 | BF36: 0.578 | BG36: 3.068911703 | BH36: 0.778 | BI36: 0.5882352941 | BJ36: -0.8740359897 | BK36: -0.8637532134 | BL36: 0.8619342152 | BM36: 0.5070201266 | BN36: -1.191301788 | BO36: -12.94731921 | BP36: -45.85149743 | BQ36: -31.464651 | BR36: 1.9652 | BS36: 2.134 | BT36: -1.130973355 | BU36: =kenxky+rhoky*COS($BT36) -> 0.4469589967 | BV36: =kenyky+rhoky*SIN($BT36) -> 0.03572862438 | BZ36: =$BP36*$BH36^m -> -27.75317777 | CE36: ="Angle of initial speed = "&TEXT(AE12,"0,00") -> Angle of initial speed = 064 | CL36: TanpRpp = -1 / tanFP
A37: 45.81770946 | B37: 0.6806253723 | C37: 31.9893925 | K37: =-CC -> -7.071067812 | L37: 0 | M37: =CC -> 7.071067812 | O37: -0.3665191429 | P37: 17.95739331 | Q37: -6.893197455 | R37: -7.908921111 | S37: 19.08546871 | T37: 7.908921111 | V37: -1.727875959 | W37: 8.690177587 | X37: -10.17489066 | Y37: 20.6034439 | Z37: 499.1812058 | AA37: 2.006557708 | AB37: -45.69378856 | AC37: 64.63229054 | AD37: 134.6341507 | AE37: 42.45019005 | AF37: -1.727875959 | AG37: -10.3664842 | AH37: -13.4003111 | AI37: 1.076409517 | AJ37: -0.9290144544 | AK37: 0.7326316282 | AL37: -0.6806253723 | AM37: 30.27134271 | AN37: -10 | AR37: cy_ | AS37: =CF60+CI62*(cx_-CE60) -> 32.81497995 | BC37: 0 | BD37: -1.6 | BE37: -0.64 | BF37: 0.512 | BG37: 2.686797826 | BH37: 0.712 | BI37: 0.625 | BJ37: -0.8988764045 | BK37: -1.036516854 | BL37: 0.847998304 | BM37: 0.52999894 | BN37: -1.3115985 | BO37: -12.84991755 | BP37: -46.85595373 | BQ37: -28.15041312 | BR37: 1.6384 | BS37: 1.936 | BT37: -1.068141502 | BU37: 0.4876809598 | BV37: 0.05647750091 | BZ37: -23.75334461 | CD37: ="V Initial = "&TEXT(varxiki,"0") -> V Initial = 47 | CF37: -60 | CG37: 100 | CL37: PeRpRxP1 = XP: PeRpRYp1 = YP
A38: 43.53132127 | B38: 0.6982708254 | C38: 32.81872879 | D38: COS(φ)*COS(ψ)/a²+SIN(φ)*SIN(ψ)/b² so tanψ=-(b/a)²/tan²φ | K38: =xp -> 7 | L38: =yp -> 5.049752469 | O38: -0.4450589593 | P38: 16.78480564 | Q38: -8.005941609 | R38: -9.827338629 | S38: 18.25974386 | T38: 9.827338629 | V38: -1.649336143 | W38: 9.493458161 | X38: -10.26996518 | Y38: 20.6034439 | Z38: 477.4222589 | AA38: 2.112166009 | AB38: -43.51789387 | AC38: 66.91867873 | AD38: 124.6832022 | AE38: 42.45019005 | AF38: -1.649336143 | AG38: -6.328318676 | AH38: -13.87825949 | AI38: 1.025151921 | AJ38: -0.9754651771 | AK38: 0.7158336779 | AL38: -0.6982708254 | AM38: 29.5063794 | AN38: -10 | BC38: 0 | BD38: -1.5 | BE38: -0.6 | BF38: 0.45 | BG38: 2.343608329 | BH38: 0.65 | BI38: 0.6666666667 | BJ38: -0.9230769231 | BK38: -1.230769231 | BL38: 0.8320502943 | BM38: 0.5547001962 | BN38: -1.450754359 | BO38: -12.72547509 | BP38: -47.62874008 | BQ38: -24.95968662 | BR38: 1.35 | BS38: 1.75 | BT38: -1.005309649 | BU38: 0.5270197346 | BV38: 0.07974238748 | BZ38: -20.12314268 | CD38: 120 | CF38: -60 | CG38: 100 | CL38: PerPrxP2 = XP + Sgn(0 - XP) * 1 / VELOCITY1 * KK * Cos(Atn(TanpRpp)):
A39: 41.35646421 | B39: 0.7163959482 | C39: 33.67060957 | K39: =Q_X -> 3.136966255 | L39: =Q_Y -> 6.714143382 | O39: -0.5235987756 | P39: 15.45258292 | Q39: -8.921552911 | R39: -11.89540388 | S39: 17.16953658 | T39: 11.89540388 | V39: -1.570796327 | W39: 10.30172195 | X39: -10.30172195 | Y39: 20.6034439 | Z39: 455.6633119 | AA39: 2.217774309 | AB39: -41.34199917 | AC39: 69.09353579 | AD39: 115.457002 | AE39: 42.45019005 | AF39: -1.570796327 | AG39: -2.265102066 | AH39: -14.0379037 | AI39: 0.9738943248 | AJ39: -1.02680545 | AK39: 0.6976939482 | AL39: -0.7163959482 | AM39: 28.75985543 | AN39: -10 | BC39: 0 | BD39: -1.4 | BE39: -0.56 | BF39: 0.392 | BG39: 2.037030623 | BH39: 0.592 | BI39: 0.7142857143 | BJ39: -0.9459459459 | BK39: -1.449324324 | BL39: 0.8137334712 | BM39: 0.5812381937 | BN39: -1.612150531 | BO39: -12.57343523 | BP39: -48.13985182 | BQ39: -21.92740859 | BR39: 1.0976 | BS39: 1.576 | BT39: -0.9424777961 | BU39: 0.564820069 | BV39: 0.1054314682 | BZ39: -16.87128503 | CD39: 120 | CL39: Ax = PerPrxP2: aY = YP + TanpRpp * (Ax - XP)
A40: 39.29313828 | B40: 0.7349646707 | C40: 34.54333952 | D40: sin(φ-ψ)=sinφcosψ-cosφsinψ=tanφcosψcosφ-tanψcosφcosψ | J40: 10 | K40: -7 | L40: limitval | O40: -0.6021385919 | P40: 13.99352892 | Q40: -9.617485971 | R40: -14.16035467 | S40: 15.73737283 | T40: 14.16035467 | V40: -1.49225651 | W40: 11.10998574 | X40: -10.26996518 | Y40: 20.6034439 | Z40: 433.904365 | AA40: 2.32338261 | AB40: -39.16610448 | AC40: 71.15686172 | AD40: 106.9252438 | AE40: 42.45019005 | AF40: -1.49225651 | AG40: 1.798114543 | AH40: -13.87825949 | AI40: 0.9226367287 | AJ40: -1.083850197 | AK40: 0.6781053995 | AL40: -0.7349646707 | AM40: 28.03324394 | AN40: -10 | BC40: 0 | BD40: -1.3 | BE40: -0.52 | BF40: 0.338 | BG40: 1.764771215 | BH40: 0.538 | BI40: 0.7692307692 | BJ40: -0.9665427509 | BK40: -1.695167286 | BL40: 0.7926239891 | BM40: 0.6097107608 | BN40: -1.799666707 | BO40: -12.39386861 | BP40: -48.36523276 | BQ40: -19.08563859 | BR40: 0.8788 | BS40: 1.414 | BT40: -0.879645943 | BU40: 0.6009327823 | BV40: 0.1334433601 | BZ40: -13.99902643 | CE40: ="t1 = "&TEXT(xron_1*tano,"0,00") -> t1 = 000 | CH40: ="t2 = "&TEXT(xron_2*tano,"0,00") -> t2 = 005 | CJ40: ="t3 = "&TEXT(xron_3*tano,"0,00") -> t3 = 007 | CM40: Spq = YQ - YP + XP * tanFP - XQ * taNFq: Xt = Spq / (tanFP - taNFq): Yt
A41: 37.34134349 | B41: 0.753927964 | C41: 35.43461431 | J41: 10 | K41: -15 | O41: -0.6806784083 | P41: 12.44357038 | Q41: -10.07660461 | R41: -16.6843399 | S41: 13.84808787 | T41: 16.6843399 | V41: -1.413716694 | W41: 11.91326631 | X41: -10.17489066 | Y41: 20.6034439 | Z41: 412.1454181 | AA41: 2.42899091 | AB41: -36.99020979 | AC41: 73.10865651 | AD41: 99.05812033 | AE41: 42.45019005 | AF41: -1.413716694 | AG41: 5.836280071 | AH41: -13.4003111 | AI41: 0.8713791327 | AJ41: -1.147606091 | AK41: 0.6569570953 | AL41: -0.753927964 | AM41: 27.3281333 | AN41: -10 | BC41: 0 | BD41: -1.2 | BE41: -0.48 | BF41: 0.288 | BG41: 1.524560737 | BH41: 0.488 | BI41: 0.8333333333 | BJ41: -0.9836065574 | BK41: -1.971311475 | BL41: 0.7682212796 | BM41: 0.6401843997 | BN41: -2.017630342 | BO41: -12.18764579 | BP41: -48.28956757 | BQ41: -16.46201713 | BR41: 0.6912 | BS41: 1.264 | BT41: -0.8168140899 | BU41: 0.6352153543 | BV41: 0.1636675129 | BZ41: -11.49987078 | CE41: =90 -> 90 | CF41: 90 | CH41: =90 -> 90 | CI41: 83 | CJ41: =90 -> 90 | CK41: 73
A42: 35.50107982 | B42: 0.7732217114 | C42: 36.34142043 | J42: 2 | K42: -7.6 | L42: telefteo | O42: -0.7592182246 | P42: 10.84087242 | Q42: -10.2876038 | R42: -19.55193821 | S42: 11.32639561 | T42: 19.55193821 | V42: -1.335176878 | W42: 12.70661118 | X42: -10.01708455 | Y42: 20.6034439 | Z42: 390.3864711 | AA42: 2.534599211 | AB42: -34.81431509 | AC42: 74.94892018 | AD42: 91.82639157 | AF42: -1.335176878 | AG42: 9.824497884 | AH42: -12.60700525 | AI42: 0.8201215366 | AJ42: -1.219331471 | AK42: 0.6341357781 | AL42: -0.7732217114 | AM42: 26.64623044 | AN42: -10 | BC42: 0 | BD42: -1.1 | BE42: -0.44 | BF42: 0.242 | BG42: 1.314160477 | BH42: 0.442 | BI42: 0.9090909091 | BJ42: -0.9954751131 | BK42: -2.280542986 | BL42: 0.7399400734 | BM42: 0.672672794 | BN42: -2.270651151 | BO42: -11.95662366 | BP42: -47.9091318 | BQ42: -14.07834828 | BR42: 0.5324 | BS42: 1.126 | BT42: -0.7539822369 | BU42: 0.6675324871 | BV42: 0.1959846457 | BZ42: -9.359719624 | CE42: 90 | CF42: =CF41 -> 90 | CH42: 90 | CI42: =CI41 -> 83 | CJ42: 90 | CK42: =CK41 -> 73
A43: 33.77234729 | B43: 0.7927645076 | C43: 37.25993186 | J43: 4 | K43: -11 | O43: -0.837758041 | P43: 9.224898785 | Q43: -10.24528804 | R43: -22.88244264 | S43: 7.896680315 | T43: 22.88244264 | V43: -1.256637061 | W43: 13.4851291 | X43: -9.797519789 | Y43: 20.6034439 | Z43: 368.6275242 | AA43: 2.640207511 | AB43: -32.6384204 | AC43: 76.67765271 | AD43: 85.20146138 | AE43: 42.45019005 | AF43: -1.256637061 | AG43: 13.73817929 | AH43: -11.50323294 | AI43: 0.7688639406 | AJ43: -1.300620236 | AK43: 0.6095280433 | AL43: -0.7927645076 | AM43: 25.98936217 | AN43: -10 | BC43: 0 | BD43: -1 | BE43: -0.4 | BF43: 0.2 | BG43: 1.13137085 | BH43: 0.4 | BI43: 1 | BJ43: -1 | BK43: -2.625 | BL43: 0.7071067812 | BM43: 0.7071067812 | BN43: -2.563262082 | BO43: -11.70383638 | BP43: -47.23440895 | BQ43: -11.9494653 | BR43: 0.4 | BS43: 1 | BT43: -0.6911503838 | BU43: 0.6977566399 | BV43: 0.2302672177 | BZ43: -7.557505433 | CD43: =AE19/10 -> 0.1 | CE43: xronos2 | CF43: 13 | CG43: =CF43/10 -> 1.3 | CH43: xronos3 | CI43: 17 | CJ43: =CI43/10 -> 1.7 | CM43: SAB = YB - aY + Ax * tanFP - Bx * taNFq: XD = SAB / (tanFP - taNFq): YD = aY + tanFP * (XD - Ax)
A44: 32.15514588 | B44: 0.8124554934 | C44: 38.18540819 | O44: -0.9162978573 | P44: 7.635440112 | Q44: -9.950699286 | R44: -26.85093086 | S44: 3.10703671 | T44: 26.85093086 | V44: -1.178097245 | W44: 14.24402026 | X44: -9.517550059 | Y44: 20.6034439 | Z44: 346.8685773 | AA44: 2.745815811 | AB44: -30.46252571 | AC44: 78.29485412 | AD44: 79.15546426 | AF44: -1.178097245 | AG44: 17.55319515 | AH44: -10.09579928 | AI44: 0.7176063446 | AJ44: -1.393521682 | AK44: 0.5830232167 | AL44: -0.8124554934 | AM44: 25.35947392 | AN44: -10 | BC44: 0 | BD44: -0.9 | BE44: -0.36 | BF44: 0.162 | BG44: 0.974042381 | BH44: 0.362 | BI44: 1.111111111 | BJ44: -0.9944751381 | BK44: -3.005524862 | BL44: 0.6689647316 | BM44: 0.7432941462 | BN44: -2.89925783 | BO44: -11.43367483 | BP44: -46.2921105 | BQ44: -10.08253729 | BR44: 0.2916 | BS44: 0.886 | BT44: -0.6283185307 | BU44: 0.7257685318 | BV44: 0.266379931 | BZ44: -6.066303329
A45: 30.64947561 | B45: 0.83217238 | C45: 39.11210186 | O45: -0.9948376736 | P45: 6.111634146 | Q45: -9.411091293 | R45: -31.72652139 | S45: -3.82383546 | T45: 31.72652139 | V45: -1.099557429 | W45: 14.97860585 | X45: -9.178901467 | Y45: 20.6034439 | Z45: 325.1096303 | AA45: 2.851424112 | AB45: -28.28663101 | AC45: 79.80052439 | AD45: 73.66136235 | AF45: -1.099557429 | AG45: 21.24602462 | AH45: -8.393381583 | AI45: 0.6663487485 | AJ45: -1.500715657 | AK45: 0.554517024 | AL45: -0.83217238 | AM45: 24.75862501 | AN45: -10 | BC45: 0 | BD45: -0.8 | BE45: -0.32 | BF45: 0.128 | BG45: 0.8400899 | BH45: 0.328 | BI45: 1.25 | BJ45: -0.9756097561 | BK45: -3.420731707 | BL45: 0.6246950476 | BM45: 0.7808688094 | BN45: -3.280601279 | BO45: -11.1520306 | BP45: -45.12619251 | BQ45: -8.476946795 | BR45: 0.2048 | BS45: 0.784 | BT45: -0.5654866776 | BU45: 0.7514576125 | BV45: 0.3041802654 | BZ45: -4.854856295 | CE45: x | CF45: y | CG45: dydx | CH45: VELOCITY1 | CI45: TAN | CJ45: perp | CK45: perp1 | CM45: =CE47-CE46 -> 20.6034439 | CN45: =CF47-CF46 -> 38.01898816
A46: 29.25533647 | B46: 0.8517698688 | C46: 40.03318383 | O46: -1.07337749 | P46: 4.691002048 | Q46: -8.639750998 | R46: -37.94682313 | S46: -14.34123313 | T46: 37.94682313 | V46: -1.021017612 | W46: 15.68435688 | X46: -8.783661896 | Y46: 20.6034439 | Z46: 303.3506834 | AA46: 2.957032412 | AB46: -26.11073632 | AC46: 81.19466353 | AD46: 68.69305324 | AF46: -1.021017612 | AG46: 24.79390017 | AH46: -6.406475807 | AI46: 0.6150911525 | AJ46: -1.625775295 | AK46: 0.5239161103 | AL46: -0.8517698688 | AM46: 24.1889795 | AN46: -10 | BC46: 1 | BD46: -0.7 | BE46: -0.28 | BF46: 0.098 | BG46: 0.7275107147 | BH46: 0.298 | BI46: 1.428571429 | BJ46: -0.9395973154 | BK46: -3.865771812 | BL46: 0.5734623444 | BM46: 0.8192319205 | BN46: -3.705787345 | BO46: -10.86636998 | BP46: -43.7974765 | BQ46: -7.124813232 | BR46: 0.1372 | BS46: 0.694 | BT46: -0.5026548246 | BU46: 0.7747224991 | BV46: 0.3435190402 | BZ46: -3.889391103 | CD46: =xron_1*tano -> 0.4224332018 | CE46: =xxekina+varxiki*COS(firipsi)*CD46 -> -78.33220896 | CF46: =varxiki*SIN(firipsi)*CD46-1/2*g*CD46^2 -> 16.95273195 | CG46: =TAN(firipsi)-g*(p_X-xxekina)/(varxiki*COS(firipsi))^2 -> 1.845273457 | CH46: =SQRT((varxiki*COS(firipsi))^2+(varxiki*SIN(firipsi)-g*CD46)^2) -> 43.24286486 | CI46: =CG46 -> 1.845273457 | CJ46: =ATAN(CI48) -> -0.4966225394 | CK46: =IF(vimata2>1,CE46,1000) -> -78.33220896 | CL46: =IF(vimata2>1,CF46,1000) -> 16.95273195 | CM46: =CK47-CK46 -> 16.26528302 | CN46: =CH46*COS(CI47) -> 20.6034439 | CO46: =CH46*SIN(CI47) -> 38.01898816
A47: 27.97272846 | B47: 0.8710787251 | C47: 40.94070008 | O47: -1.151917306 | P47: 3.408524495 | Q47: -7.65567136 | R47: -46.27609267 | S47: -31.36545904 | T47: 46.27609267 | V47: -0.9424777961 | W47: 16.35692218 | X47: -8.334268129 | Y47: 20.6034439 | Z47: 281.5917364 | AA47: 3.062640713 | AB47: -23.93484163 | AC47: 82.47727154 | AD47: 64.22548883 | AF47: -0.9424777961 | AG47: 28.17494797 | AH47: -4.14733189 | AI47: 0.5638335564 | AJ47: -1.773573049 | AK47: 0.4911434155 | AL47: -0.8710787251 | AM47: 23.652792 | AN47: -10 | BC47: 0 | BD47: -0.6 | BE47: -0.24 | BF47: 0.072 | BG47: 0.6344075662 | BH47: 0.272 | BI47: 1.666666667 | BJ47: -0.8823529412 | BK47: -4.330882353 | BL47: 0.5144957554 | BM47: 0.8574929257 | BN47: -4.167667823 | BO47: -10.58569179 | BP47: -42.38156985 | BQ47: -6.012158139 | BR47: 0.0864 | BS47: 0.616 | BT47: -0.4398229715 | BU47: 0.7954713756 | BV47: 0.3842410033 | BZ47: -3.135558064 | CD47: X2Y2 | CE47: =CE46+SIGN(CF46)*CH46*COS(CI47) -> -57.72876506 | CF47: =CF46+(CI46)*(CE47-CE46) -> 54.9717201 | CH47: =SIGN(CE47-CE46) -> 1 | CI47: =ATAN(CI46) -> 1.074173787 | CJ47: =ATAN(CI46) -> 1.074173787 | CK47: =IF(vimata2>1,ax_,1000) -> -62.06692594 | CL47: =IF(vimata2>1,ay_,1000) -> 8.138166845 | CM47: =(CK47-CK46)*(CE47-CE46)+(CL47-CL46)*(CF47-CF46) -> 0 | CN47: =1/CH46*1*COS(CJ46)*ddd_2 -> 0.6099481132 | CO47: =1/CH46*1*SIN(CJ46)*ddd_2 -> -0.3305461913
A48: 26.80165159 | B48: 0.8899058117 | C48: 41.82557315 | O48: -1.230457123 | P48: 2.29578034 | Q48: -6.483083686 | R48: -58.18233071 | S48: -61.54747281 | T48: 58.18233071 | V48: -0.8639379797 | W48: 16.99215516 | X48: -7.833490826 | Y48: 20.6034439 | Z48: 259.8327895 | AA48: 3.168249013 | AB48: -21.75894693 | AC48: 83.64834841 | AD48: 60.23480515 | AF48: -0.8639379797 | AG48: 31.36832275 | AH48: -1.629878207 | AI48: 0.5125759604 | AJ48: -1.950930354 | AK48: 0.4561443261 | AL48: -0.8899058117 | AM48: 23.15238717 | AN48: -10 | BC48: 0 | BD48: -0.5 | BE48: -0.2 | BF48: 0.05 | BG48: 0.5590169944 | BH48: 0.25 | BI48: 2 | BJ48: -0.8 | BK48: -4.8 | BL48: 0.4472135955 | BM48: 0.894427191 | BN48: -4.651021393 | BO48: -10.32031374 | BP48: -40.96495221 | BQ48: -5.120619026 | BR48: 0.05 | BS48: 0.55 | BT48: -0.3769911184 | BU48: 0.8136223558 | BV48: 0.4261854436 | BZ48: -2.560309513 | CD48: X3Y3 | CE48: =CE47+CK49 -> -57.59744943 | CF48: =CF47+CL49 -> 53.98037949 | CH48: =SIGN(CF47-CF46) -> 1 | CI48: =-1/CI46 -> -0.5419250984 | CJ48: =TAN(CJ46) -> -0.5419250984 | CK48: 1 | CL48: y | CN48: =CN47*CN46 -> 12.56703173 | CO48: =CO47*CO46 -> -12.56703173
A49: 25.74210584 | B49: 0.9080354123 | C49: 42.67766438 | O49: -1.308996939 | P49: 1.380169039 | Q49: -5.150860975 | R49: -76.89309944 | S49: -122.881033 | T49: 76.89309944 | V49: -0.7853981634 | W49: 17.5861394 | X49: -7.284417448 | Y49: 20.6034439 | Z49: 238.0738426 | AA49: 3.273857314 | AB49: -19.58305224 | AC49: 84.70789416 | AD49: 56.69846239 | AF49: -0.7853981634 | AG49: 34.35433627 | AH49: 1.130364304 | AI49: 0.4613183644 | AJ49: -2.167700394 | AK49: 0.4188934112 | AL49: -0.9080354123 | AM49: 22.69013259 | AN49: -10 | BC49: 0 | BD49: -0.4 | BE49: -0.16 | BF49: 0.032 | BG49: 0.4997432941 | BH49: 0.232 | BI49: 2.5 | BJ49: -0.6896551724 | BK49: -5.25 | BL49: 0.3713906764 | BM49: 0.9284766909 | BN49: -5.130634128 | BO49: -10.08143178 | BP49: -39.63933957 | BQ49: -4.429537548 | BR49: 0.0256 | BS49: 0.496 | BT49: -0.3141592654 | BU49: 0.8291038059 | BV49: 0.4691868256 | BZ49: -2.133547813 | CD49: X4Y4 | CE49: =CE47+CK50 -> -58.63100725 | CF49: =CF47+CL50 -> 54.54049042 | CH49: =-CI47 -> -1.074173787 | CI49: =-CH47*DAA*COS(PI()/5) -> -0.8090169944 | CJ49: =-CH48*DAA*SIN(PI()/5) -> -0.5877852523 | CK49: =CI49*COS(CH49)+CJ49*SIN(CH49) -> 0.1313156357 | CL49: =-CI49*SIN(CH49)+CJ49*COS(CH49) -> -0.9913406094
A50: 24.79409122 | B50: 0.9252321692 | C50: 43.48591195 | O50: -1.387536755 | P50: 0.6842359782 | Q50: -3.691806972 | R50: -111.1662354 | S50: -279.2962223 | T50: 111.1662354 | V50: -0.7068583471 | W50: 18.13521278 | X50: -6.690433215 | Y50: 20.6034439 | Z50: 216.3148956 | AA50: 3.379465614 | AB50: =xxekina+varxiki*COS(firipsi)*AA50 -> -17.40715755 | AC50: 85.65590878 | AD50: 53.59539378 | AF50: -0.7068583471 | AG50: 37.11457878 | AH50: 4.116377829 | AI50: 0.4100607683 | AJ50: -2.438662943 | AK50: 0.3794014142 | AL50: -0.9252321692 | AM50: 22.26840417 | AN50: -10 | BC50: 0 | BD50: -0.3 | BE50: -0.12 | BF50: 0.018 | BG50: 0.4551973638 | BH50: 0.218 | BI50: 3.333333333 | BJ50: -0.5504587156 | BK50: -5.651376147 | BL50: 0.2873478856 | BM50: 0.9578262852 | BN50: -5.571209769 | BO50: -9.880416254 | BP50: -38.49472609 | BQ50: -3.918194351 | BR50: 0.0108 | BS50: 0.454 | BT50: -0.2513274123 | BU50: 0.8418546278 | BV50: 0.5130754425 | BZ50: -1.829423363 | CD50: X5Y5 | CE50: =CE47 -> -57.72876506 | CF50: =CF47 -> 54.9717201 | CI50: =CI49 -> -0.8090169944 | CJ50: =-CJ49 -> 0.5877852523 | CK50: =CI50*COS(CH49)+CJ50*SIN(CH49) -> -0.9022421834 | CL50: =-CI50*SIN(CH49)+CJ50*COS(CH49) -> -0.4312296866
A51: 23.95760774 | B51: 0.9412458983 | C51: 44.23855722 | O51: -1.466076572 | P51: =2*radodo/(1+TAN(O51)^2) -> 0.2251173412 | Q51: -2.141848429 | R51: =2*radodo*TAN(O51) -> -196.0286743 | S51: =R51/TAN(2*O51)+codo -> -911.9406813 | T51: 196.0286743 | V51: -0.6283185307 | W51: =codo+radodo*COS(V51) -> 18.63599008 | X51: =radodo*SIN(V51) -> -6.055200235 | Y51: =varxiki*COS(firipsi) -> 20.6034439 | Z51: =varxiki*SIN(firipsi)-g*$AB51 -> 194.5559487 | AA51: =IF(AA50+det<2*tano,AA50+det,2*tano) -> 3.485073915 | AB51: -15.23126285 | AC51: 86.49239226 | AD51: =(SQRT(1+4*a^2*$AB51^2))^3/(ABS(2*a)) -> 50.90616125 | AF51: -0.6283185307 | AG51: =xcenm+rhomo*COS($AF51) -> 39.63203246 | AH51: =ykenm+rhomo*SIN($AF51) -> 7.309752603 | AI51: =2*a*$AB51 -> 0.3588031723 | AJ51: -2.787043363 | AK51: 0.3377220142 | AL51: -0.9412458983 | AM51: =varxiki*COS(firipsi)/COS(ATAN(AI51)) -> 21.88954442 | AN51: -10 | BC51: 0 | BD51: -0.2 | BE51: -0.08 | BF51: 0.008 | BG51: 0.4242384235 | BH51: 0.208 | BI51: 5 | BJ51: -0.3846153846 | BK51: -5.971153846 | BL51: 0.1961161351 | BM51: 0.9805806757 | BN51: -5.930627356 | BO51: -9.727859167 | BP51: -37.61178219 | BQ51: -3.567951275 | BR51: 0.0032 | BS51: 0.424 | BT51: -0.1884955592 | BU51: 0.8518244998 | BV51: 0.5576780859 | BZ51: -1.627236145
A52: 23.23265539 | B52: 0.9558184214 | C52: 44.9234658 | O52: -1.544616388 | P52: 0.0141181519 | Q52: -0.5391504692 | R52: -786.8137787 | S52: -15002.99954 | T52: 786.8137787 | V52: -0.5497787144 | W52: 19.08538385 | X52: -5.382634933 | Y52: 20.6034439 | Z52: 172.7970018 | AA52: 3.590682215 | AB52: -13.05536816 | AC52: 87.21734461 | AD52: 48.61311493 | AF52: -0.5497787144 | AG52: 41.89117638 | AH52: 10.69080041 | AI52: 0.3075455762 | AJ52: -3.25155059 | AK52: 0.2939577272 | AL52: -0.9558184214 | AM52: 21.55581378 | AN52: -10 | BC52: 0 | BD52: -0.1 | BE52: -0.04 | BF52: 0.002 | BG52: 0.4060149751 | BH52: 0.202 | BI52: 10 | BJ52: -0.198019802 | BK52: -6.178217822 | BL52: 0.09950371902 | BM52: 0.9950371902 | BN52: -6.167260209 | BO52: -9.632468646 | BP52: -37.0544937 | BQ52: -3.36409257 | BR52: 0.0004 | BS52: 0.406 | BT52: -0.1256637061 | BU52: 0.8589740754 | BV52: 0.6028187297 | BZ52: -1.511971561 | CE52: x | CF52: y | CG52: dydx | CH52: VELOCITY1 | CI52: TAN | CJ52: perp | CK52: perp1 | CM52: =CE54-CE53 -> 20.6034439 | CN52: =CF54-CF53 -> -12.67299605
A53: =SQRT(($AB53)^2+($AC53-focus)^2) -> 22.61923417 | B53: 0.9686923573 | C53: =lfoc/($A53*$B53) -> 45.5285408 | O53: -1.623156204 | P53: 0.05643391073 | Q53: 1.076823164 | R53: 393.1371293 | S53: -3730.148206 | T53: -393.1371293 | V53: -0.471238898 | W53: 19.48062342 | X53: -4.676883896 | Y53: 20.6034439 | Z53: 151.0380548 | AA53: 3.696290515 | AB53: -10.87947347 | AC53: 87.83076583 | AD53: 46.70055254 | AF53: -0.471238898 | AG53: 43.87808216 | AH53: 14.23867596 | AI53: 0.2562879802 | AJ53: -3.901860709 | AK53: 0.2482642077 | AL53: -0.9686923573 | AM53: 21.26933669 | AN53: -10 | BC53: 0 | BD53: -1.026956298e-15 | BE53: -4.107825191e-16 | BF53: 2.109278475e-31 | BG53: 0.4 | BH53: 0.2 | BI53: 973751270782810 | BJ53: -2.053912596e-15 | BK53: -6.25 | BL53: 1.026956298e-15 | BM53: 1 | BN53: -6.25 | BO53: -9.6 | BP53: -36.864 | BQ53: -3.297216397 | BR53: 0 | BS53: 0.4 | BT53: -0.06283185307 | BU53: 0.8632751385 | BV53: 0.6483192243 | BZ53: -1.47456 | CD53: =xron_2*tano -> 5.491631623 | CE53: =xxekina+varxiki*COS(firipsi)*CD53 -> 26.11073632 | CF53: =varxiki*SIN(firipsi)*CD53-1/2*g*CD53^2 -> 81.19466353 | CG53: =TAN(firipsi)-g*(X_Q-xxekina)/(varxiki*COS(firipsi))^2 -> -0.6150911525 | CH53: =SQRT((varxiki*COS(firipsi))^2+(varxiki*SIN(firipsi)-g*CD53)^2) -> 24.1889795 | CI53: =CG53 -> -0.6150911525 | CJ53: =ATAN(CI55) -> 1.019354227 | CK53: =CE53 -> 26.11073632 | CL53: =CF53 -> 81.19466353 | CM53: =CK54-CK53 -> -17.32743162 | CN53: =CH53*COS(CI54) -> 20.6034439 | CO53: =CH53*SIN(CI54) -> -12.67299605
A54: 22.11734407 | B54: 0.9796215595 | C54: 46.0422133 | O54: -1.701696021 | P54: 0.3510226632 | Q54: 2.666281838 | R54: 156.4986937 | S54: -573.7593544 | T54: -156.4986937 | V54: -0.3926990817 | W54: 19.81927201 | X54: -3.942298315 | Y54: 20.6034439 | Z54: 129.2791079 | AA54: 3.801898816 | AB54: -8.703578774 | AC54: 88.33265593 | AD54: 45.15487406 | AF54: -0.3926990817 | AG54: 45.58049986 | AH54: 17.93150542 | AI54: 0.2050303842 | AJ54: -4.877325886 | AK54: 0.2008521847 | AL54: -0.9796215595 | AM54: 21.03204416 | AN54: -10 | BC54: 0 | BD54: 0.1 | BE54: 0.04 | BF54: 0.002 | BG54: 0.4060149751 | BH54: 0.202 | BI54: -10 | BJ54: 0.198019802 | BK54: -6.178217822 | BL54: 0.09950371902 | BM54: -0.9950371902 | BN54: 6.167260209 | BO54: 9.632468646 | BP54: 37.0544937 | BQ54: 3.36409257 | BR54: -0.0004 | BS54: 0.406 | BT54: 2.775557562e-15 | BU54: 0.8647107147 | BV54: 0.694 | BZ54: 1.511971561 | CD54: X2Y2 | CE54: =CE53+SIGN(CF53)*CH53*COS(CI54) -> 46.71418022 | CF54: =CF53+(CI53)*(CE54-CE53) -> 68.52166747 | CH54: =SIGN(CE54-CE53) -> 1 | CI54: =ATAN(CI53) -> -0.5514420996 | CJ54: =ATAN(CI53) -> -0.5514420996 | CK54: =IF(vimata2>1,bx_,CE53) -> 8.783304706 | CL54: =IF(vimata2>1,by_,CF53) -> 53.02415328 | CM54: =(CK54-CK53)*(CE54-CE53)+(CL54-CL53)*(CF54-CF53) -> 0 | CN54: =1/CH53*1*COS(CJ53)*ddd_2 -> 0.6497786856 | CO54: =1/CH53*1*SIN(CJ53)*ddd_2 -> 1.056394134
A55: 21.72698512 | B55: 0.9883825931 | C55: 46.45398187 | O55: -1.780235837 | P55: 0.8906306566 | Q55: 4.190087804 | R55: 96.93158253 | S55: -207.410177 | T55: -96.93158253 | V55: -0.3141592654 | W55: 20.09924174 | X55: -3.183407154 | Y55: 20.6034439 | Z55: 107.520161 | AA55: 3.907507116 | AB55: -6.52768408 | AC55: 88.72301488 | AD55: 43.96472635 | AF55: -0.3141592654 | AG55: 46.98793351 | AH55: 21.74652128 | AI55: 0.1537727881 | AJ55: -6.503101181 | AK55: 0.1519863471 | AL55: -0.9883825931 | AM55: 20.8456159 | AN55: -10 | BC55: 0 | BD55: 0.2 | BE55: 0.08 | BF55: 0.008 | BG55: 0.4242384235 | BH55: 0.208 | BI55: -5 | BJ55: 0.3846153846 | BK55: -5.971153846 | BL55: 0.1961161351 | BM55: -0.9805806757 | BN55: 5.930627356 | BO55: 9.727859167 | BP55: 37.61178219 | BQ55: 3.567951275 | BR55: -0.0032 | BS55: 0.424 | BT55: 0.06283185307 | BU55: 0.8632751385 | BV55: 0.7396807757 | BZ55: 1.627236145 | CD55: X3Y3 | CE55: =CE54+CK56 -> 46.33303408 | CF55: =CF54+CL56 -> 69.44618228 | CH55: =SIGN(CF54-CF53) -> -1 | CI55: =-1/CI53 -> 1.625775295 | CJ55: =TAN(CJ53) -> 1.625775295 | CK55: x | CL55: y | CN55: =CN54*CN53 -> 13.38767869 | CO55: =CO54*CO53 -> -13.38767869
A56: 21.44815729 | B56: 0.9947863758 | C56: 46.75495966 | O56: -1.858775653 | P56: 1.661970951 | Q56: 5.610719902 | R56: 69.55606091 | S56: -96.80521927 | T56: -69.55606091 | V56: -0.235619449 | W56: 20.3188065 | X56: -2.404889229 | Y56: 20.6034439 | Z56: 85.76121404 | AA56: 4.013115417 | AB56: -4.351789387 | AC56: 89.00184271 | AD56: 43.12113195 | AF56: -0.235619449 | AG56: 48.09170583 | AH56: 25.66020269 | AI56: 0.1025151921 | AJ56: -9.754651771 | AK56: 0.1019807164 | AL56: -0.9947863758 | AM56: 20.71142549 | AN56: -10 | BC56: 0 | BD56: 0.3 | BE56: 0.12 | BF56: 0.018 | BG56: 0.4551973638 | BH56: 0.218 | BI56: -3.333333333 | BJ56: 0.5504587156 | BK56: -5.651376147 | BL56: 0.2873478856 | BM56: -0.9578262852 | BN56: 5.571209769 | BO56: 9.880416254 | BP56: 38.49472609 | BQ56: 3.918194351 | BR56: -0.0108 | BS56: 0.454 | BT56: 0.1256637061 | BU56: 0.8589740754 | BV56: 0.7851812703 | BZ56: 1.829423363 | CD56: X4Y4 | CE56: =CE54+CK57 -> 45.71713376 | CF56: =CF54+CL57 -> 68.44486674 | CH56: =-CI54 -> 0.5514420996 | CI56: =-CH54*DAA*COS(PI()/5) -> -0.8090169944 | CJ56: =-CH55*DAA*SIN(PI()/5) -> 0.5877852523 | CK56: =CI56*COS(CH56)+CJ56*SIN(CH56) -> -0.3811461361 | CL56: =-CI56*SIN(CH56)+CJ56*COS(CH56) -> 0.9245148041
A57: 21.28086059 | B57: 0.9986889124 | C57: 46.93837888 | O57: -1.93731547 | P57: 2.646050589 | Q57: 6.893197455 | R57: 53.6738064 | S57: -49.30907915 | T57: -53.6738064 | V57: -0.1570796327 | W57: 20.47661261 | X57: -1.611544362 | Y57: 20.6034439 | Z57: 64.00226711 | AA57: 4.118723717 | AB57: -2.175894693 | AC57: 89.16913941 | AD57: 42.61759659 | AF57: -0.1570796327 | AG57: 48.88501167 | AH57: 29.6484205 | AI57: 0.05125759604 | AJ57: -19.50930354 | AK57: 0.05119039284 | AL57: -0.9986889124 | AM57: 20.63049228 | AN57: -10 | BC57: 0 | BD57: 0.4 | BE57: 0.16 | BF57: 0.032 | BG57: 0.4997432941 | BH57: 0.232 | BI57: -2.5 | BJ57: 0.6896551724 | BK57: -5.25 | BL57: 0.3713906764 | BM57: -0.9284766909 | BN57: 5.130634128 | BO57: 10.08143178 | BP57: 39.63933957 | BQ57: 4.429537548 | BR57: -0.0256 | BS57: 0.496 | BT57: 0.1884955592 | BU57: 0.8518244998 | BV57: 0.8303219141 | BZ57: 2.133547813 | CD57: X5Y5 | CE57: =CE54 -> 46.71418022 | CF57: =CF54 -> 68.52166747 | CI57: =CI56 -> -0.8090169944 | CJ57: =-CJ56 -> -0.5877852523 | CK57: =CI57*COS(CH56)+CJ57*SIN(CH56) -> -0.9970464622 | CL57: =-CI57*SIN(CH56)+CJ57*COS(CH56) -> -0.07680073042
A58: 21.22509503 | B58: 1 | C58: 47 | O58: -2.015855286 | P58: 3.818638264 | Q58: 8.005941609 | R58: 43.19601843 | S58: -24.67772407 | T58: -43.19601843 | V58: -0.07853981634 | W58: 20.57168713 | X58: -0.8082637886 | Y58: 20.6034439 | Z58: 42.24332018 | AA58: 4.224332018 | AB58: 0 | AC58: 89.22490497 | AD58: 42.45019005 | AF58: -0.07853981634 | AG58: 49.36296006 | AH58: 33.68658603 | AI58: 0 | AM58: 20.6034439 | BC58: 0 | BD58: 0.5 | BE58: 0.2 | BF58: 0.05 | BG58: 0.5590169944 | BH58: 0.25 | BI58: -2 | BJ58: 0.8 | BK58: -4.8 | BL58: 0.4472135955 | BM58: -0.894427191 | BN58: 4.651021393 | BO58: 10.32031374 | BP58: 40.96495221 | BQ58: 5.120619026 | BR58: -0.05 | BS58: 0.55 | BT58: 0.2513274123 | BU58: 0.8418546278 | BV58: 0.8749245575 | BZ58: 2.560309513
A59: 21.28086059 | B59: =COS(ASIN(($AB59*$AL59-($AC59-focus)*$AK59)/$A59)) -> 0.9986889124 | C59: 46.93837888 | O59: -2.094395102 | P59: 5.150860975 | Q59: 8.921552911 | R59: 35.68621164 | S59: -10.30172195 | T59: -35.68621164 | V59: 0 | W59: 20.6034439 | X59: 0 | Y59: 20.6034439 | Z59: 20.48437324 | AA59: 4.329940318 | AB59: 2.175894693 | AC59: 89.16913941 | AD59: 42.61759659 | AE59: =rhomo -> 51.78770634 | AF59: 0 | AG59: 49.52260428 | AH59: 37.74980264 | AI59: -0.05125759604 | AJ59: 19.50930354 | AK59: 0.05119039284 | AL59: 0.9986889124 | AM59: 20.63049228 | AN59: 10 | BC59: 0 | BD59: 0.6 | BE59: 0.24 | BF59: 0.072 | BG59: 0.6344075662 | BH59: 0.272 | BI59: -1.666666667 | BJ59: 0.8823529412 | BK59: -4.330882353 | BL59: 0.5144957554 | BM59: -0.8574929257 | BN59: 4.167667823 | BO59: 10.58569179 | BP59: 42.38156985 | BQ59: 6.012158139 | BR59: =IF($BE59>0,-ABS(-$BE59+$BG59*$BL59),ABS($BE59+$BG59*$BL59)) -> -0.0864 | BS59: 0.616 | BT59: 0.3141592654 | BU59: 0.8291038059 | BV59: 0.9188131744 | BZ59: 3.135558064 | CE59: x | CF59: y | CG59: dydx | CH59: VELOCITY1 | CI59: TAN | CJ59: perp | CK59: perp1 | CM59: =CE61-CE60 -> 20.6034439 | CN59: =CF61-CF60 -> -29.57032412
A60: 21.44815729 | B60: 0.9947863758 | C60: 46.75495966 | O60: -2.172934919 | P60: 6.609914978 | Q60: 9.617485971 | R60: 29.97819689 | S60: -1.205829674 | T60: -29.97819689 | V60: 0.07853981634 | W60: 20.57168713 | X60: 0.8082637886 | Y60: 20.6034439 | Z60: -1.274573692 | AA60: 4.435548618 | AB60: 4.351789387 | AC60: 89.00184271 | AD60: 43.12113195 | AF60: 0.07853981634 | AG60: 49.36296006 | AH60: 41.81301925 | AI60: -0.1025151921 | AJ60: 9.754651771 | AK60: 0.1019807164 | AL60: 0.9947863758 | AM60: 20.71142549 | AN60: 10 | BC60: 0 | BD60: 0.7 | BE60: 0.28 | BF60: 0.098 | BG60: 0.7275107147 | BH60: 0.298 | BI60: -1.428571429 | BJ60: 0.9395973154 | BK60: -3.865771812 | BL60: 0.5734623444 | BM60: -0.8192319205 | BN60: 3.705787345 | BO60: 10.86636998 | BP60: 43.7974765 | BQ60: 7.124813232 | BR60: =IF($BE60>0,-ABS(-$BE60+$BG60*$BL60),ABS($BE60+$BG60*$BL60)) -> -0.1372 | BS60: 0.694 | BT60: 0.3769911184 | BU60: 0.8136223558 | BV60: 0.9618145564 | BZ60: 3.889391103 | CD60: =xron_3*tano -> 7.18136443 | CE60: =xxekina+varxiki*COS(firipsi)*CD60 -> 60.92505142 | CF60: =varxiki*SIN(firipsi)*CD60-1/2*g*CD60^2 -> 45.50470154 | CG60: =TAN(firipsi)-g*(x_r-xxekina)/(varxiki*COS(firipsi))^2 -> -1.435212689 | CH60: =SQRT((varxiki*COS(firipsi))^2+(varxiki*SIN(firipsi)-g*CD60)^2) -> 36.04033808 | CI60: =CG60 -> -1.435212689 | CJ60: =ATAN(CI62) -> 0.6085487223 | CK60: =CE60 -> 60.92505142 | CL60: =CF60 -> 45.50470154 | CM60: =CK61-CK60 -> -18.21244944 | CN60: =CH60*COS(CI61) -> 20.6034439 | CO60: =CH60*SIN(CI61) -> -29.57032412
A61: 21.72698512 | B61: 0.9883825931 | C61: 46.45398187 | O61: -2.251474735 | P61: 8.159873521 | Q61: 10.07660461 | R61: 25.44313429 | S61: 4.893616808 | T61: -25.44313429 | V61: 0.1570796327 | W61: 20.47661261 | X61: 1.611544362 | Y61: 20.6034439 | Z61: -23.03352063 | AA61: 4.541156919 | AB61: 6.52768408 | AC61: 88.72301488 | AD61: 43.96472635 | AF61: 0.1570796327 | AG61: 48.88501167 | AH61: 45.85118478 | AI61: -0.1537727881 | AJ61: 6.503101181 | AK61: 0.1519863471 | AL61: 0.9883825931 | AM61: 20.8456159 | AN61: 10 | BC61: 0 | BD61: 0.8 | BE61: 0.32 | BF61: 0.128 | BG61: 0.8400899 | BH61: 0.328 | BI61: -1.25 | BJ61: 0.9756097561 | BK61: -3.420731707 | BL61: 0.6246950476 | BM61: -0.7808688094 | BN61: 3.280601279 | BO61: 11.1520306 | BP61: 45.12619251 | BQ61: 8.476946795 | BR61: -0.2048 | BS61: 0.784 | BT61: 0.4398229715 | BU61: 0.7954713756 | BV61: 1.003758997 | BZ61: 4.854856295 | CD61: X2Y2 | CE61: =CE60+SIGN(CF60)*CH60*COS(CI61) -> 81.52849531 | CF61: =CF60+(CI60)*(CE61-CE60) -> 15.93437741 | CH61: =SIGN(CE61-CE60) -> 1 | CI61: =ATAN(CI60) -> -0.9622476045 | CJ61: =ATAN(CI60) -> -0.9622476045 | CK61: =IF(vimata2>1,cx_,CE60) -> 42.71260197 | CL61: =IF(vimata2>1,cy_,CF60) -> 32.81497995 | CM61: =(CK61-CK60)*(CE61-CE60)+(CL61-CL60)*(CF61-CF60) -> 0 | CN61: =1/CH60*1*COS(CJ60)*ddd_2 -> 0.6829668542 | CO61: =1/CH60*1*SIN(CJ60)*ddd_2 -> 0.4758645596
A62: 22.11734407 | B62: 0.9796215595 | C62: 46.0422133 | O62: -2.330014551 | P62: 9.76257148 | Q62: 10.2876038 | R62: 21.71149969 | S62: 9.163870466 | T62: -21.71149969 | V62: 0.235619449 | W62: 20.3188065 | X62: 2.404889229 | Y62: 20.6034439 | Z62: -44.79246756 | AA62: 4.646765219 | AB62: 8.703578774 | AC62: 88.33265593 | AD62: 45.15487406 | AF62: 0.235619449 | AG62: 48.09170583 | AH62: 49.83940259 | AI62: -0.2050303842 | AJ62: 4.877325886 | AK62: 0.2008521847 | AL62: 0.9796215595 | AM62: 21.03204416 | AN62: 10 | BC62: 0 | BD62: 0.9 | BE62: 0.36 | BF62: 0.162 | BG62: 0.974042381 | BH62: 0.362 | BI62: -1.111111111 | BJ62: 0.9944751381 | BK62: -3.005524862 | BL62: 0.6689647316 | BM62: -0.7432941462 | BN62: 2.89925783 | BO62: 11.43367483 | BP62: 46.2921105 | BQ62: 10.08253729 | BR62: -0.2916 | BS62: 0.886 | BT62: 0.5026548246 | BU62: 0.7747224991 | BV62: 1.04448096 | BZ62: 6.066303329 | CD62: X3Y3 | CE62: =CE61+CK63 -> 81.54826383 | CF62: =CF61+CL63 -> 16.934182 | CH62: =SIGN(CF61-CF60) -> -1 | CI62: =-1/CI60 -> 0.6967608408 | CJ62: =TAN(CJ60) -> 0.6967608408 | CK62: x | CL62: y | CN62: =CN61*CN60 -> 14.07146927 | CO62: =CO61*CO60 -> -14.07146927
A63: 22.61923417 | B63: 0.9686923573 | C63: 45.5285408 | O63: -2.408554368 | P63: 11.37854511 | Q63: 10.24528804 | R63: 18.55142421 | S63: 12.2515552 | T63: -18.55142421 | V63: 0.3141592654 | W63: 20.09924174 | X63: 3.183407154 | Y63: 20.6034439 | Z63: -66.55141449 | AA63: 4.75237352 | AB63: 10.87947347 | AC63: 87.83076583 | AD63: 46.70055254 | AF63: 0.3141592654 | AG63: 46.98793351 | AH63: 53.753084 | AI63: -0.2562879802 | AJ63: 3.901860709 | AK63: 0.2482642077 | AL63: 0.9686923573 | AM63: 21.26933669 | AN63: 10 | BC63: 0 | BD63: 1 | BE63: 0.4 | BF63: 0.2 | BG63: 1.13137085 | BH63: 0.4 | BI63: -1 | BJ63: 1 | BK63: -2.625 | BL63: 0.7071067812 | BM63: -0.7071067812 | BN63: 2.563262082 | BO63: 11.70383638 | BP63: 47.23440895 | BQ63: 11.9494653 | BR63: -0.4 | BS63: 1 | BT63: 0.5654866776 | BU63: 0.7514576125 | BV63: 1.083819735 | BZ63: 7.557505433 | CD63: X4Y4 | CE63: =CE61+CK64 -> 80.58373346 | CF63: =CF61+CL64 -> 16.262135 | CH63: =-CI61 -> 0.9622476045 | CI63: =-CH61*DAA*COS(PI()/5) -> -0.8090169944 | CJ63: =-CH62*DAA*SIN(PI()/5) -> 0.5877852523 | CK63: =CI63*COS(CH63)+CJ63*SIN(CH63) -> 0.01976852066 | CL63: =-CI63*SIN(CH63)+CJ63*COS(CH63) -> 0.9998045837
A64: 23.23265539 | B64: 0.9558184214 | C64: 44.9234658 | O64: -2.487094184 | P64: 12.96800379 | Q64: 9.950699286 | R64: 15.80957855 | S64: 14.53788575 | T64: -15.80957855 | V64: 0.3926990817 | W64: 19.81927201 | X64: 3.942298315 | Y64: 20.6034439 | Z64: -88.31036143 | AA64: 4.85798182 | AB64: 13.05536816 | AC64: 87.21734461 | AD64: 48.61311493 | AF64: 0.3926990817 | AG64: 45.58049986 | AH64: 57.56809986 | AI64: -0.3075455762 | AJ64: 3.25155059 | AK64: 0.2939577272 | AL64: 0.9558184214 | AM64: 21.55581378 | AN64: 10 | BC64: 0 | BD64: 1.1 | BE64: 0.44 | BF64: 0.242 | BG64: 1.314160477 | BH64: 0.442 | BI64: -0.9090909091 | BJ64: 0.9954751131 | BK64: -2.280542986 | BL64: 0.7399400734 | BM64: -0.672672794 | BN64: 2.270651151 | BO64: 11.95662366 | BP64: 47.9091318 | BQ64: 14.07834828 | BR64: -0.5324 | BS64: 1.126 | BT64: 0.6283185307 | BU64: 0.7257685318 | BV64: 1.121620069 | BZ64: 9.359719624 | CD64: X5Y5 | CE64: =CE61 -> 81.52849531 | CF64: =CF61 -> 15.93437741 | CI64: =CI63 -> -0.8090169944 | CJ64: =-CJ63 -> -0.5877852523 | CK64: =CI64*COS(CH63)+CJ64*SIN(CH63) -> -0.9447618555 | CL64: =-CI64*SIN(CH63)+CJ64*COS(CH63) -> 0.3277575878
A65: 23.95760774 | B65: 0.9412458983 | C65: 44.23855722 | O65: -2.565634 | P65: 14.49180975 | Q65: 9.411091293 | R65: 13.38003291 | S65: 16.25889641 | T65: -13.38003291 | V65: 0.471238898 | W65: 19.48062342 | X65: 4.676883896 | Y65: 20.6034439 | Z65: -110.0693084 | AA65: 4.963590121 | AB65: 15.23126285 | AC65: 86.49239226 | AD65: 50.90616125 | AF65: 0.471238898 | AG65: 43.87808216 | AH65: 61.26092932 | AI65: -0.3588031723 | AJ65: 2.787043363 | AK65: 0.3377220142 | AL65: 0.9412458983 | AM65: 21.88954442 | AN65: 10 | BC65: 0 | BD65: 1.2 | BE65: 0.48 | BF65: 0.288 | BG65: 1.524560737 | BH65: 0.488 | BI65: -0.8333333333 | BJ65: 0.9836065574 | BK65: -1.971311475 | BL65: 0.7682212796 | BM65: -0.6401843997 | BN65: 2.017630342 | BO65: 12.18764579 | BP65: 48.28956757 | BQ65: 16.46201713 | BR65: -0.6912 | BS65: 1.264 | BT65: 0.6911503838 | BU65: 0.6977566399 | BV65: 1.157732782 | BZ65: 11.49987078 | CL65: ="t = "&TEXT(xronos,"0,0") -> t = 05
A66: 24.79409122 | B66: 0.9252321692 | C66: 43.48591195 | O66: -2.644173817 | P66: 15.91244185 | Q66: 8.639750998 | R66: 11.1867573 | S66: 17.56648708 | T66: -11.1867573 | V66: 0.5497787144 | W66: 19.08538385 | X66: 5.382634933 | Y66: 20.6034439 | Z66: -131.8282553 | AA66: 5.069198421 | AB66: 17.40715755 | AC66: 85.65590878 | AD66: 53.59539378 | AF66: 0.5497787144 | AG66: 41.89117638 | AH66: 64.80880487 | AI66: -0.4100607683 | AJ66: 2.438662943 | AK66: 0.3794014142 | AL66: 0.9252321692 | AM66: 22.26840417 | AN66: 10 | BC66: 0 | BD66: 1.3 | BE66: 0.52 | BF66: 0.338 | BG66: 1.764771215 | BH66: 0.538 | BI66: -0.7692307692 | BJ66: 0.9665427509 | BK66: -1.695167286 | BL66: 0.7926239891 | BM66: -0.6097107608 | BN66: 1.799666707 | BO66: 12.39386861 | BP66: 48.36523276 | BQ66: 19.08563859 | BR66: -0.8788 | BS66: 1.414 | BT66: 0.7539822369 | BU66: 0.6675324871 | BV66: 1.192015354 | BZ66: 13.99902643 | CC66: 50 | CD66: xronos | CE66: =CC66/10 -> 5 | CJ66: 20 | CK66: 118
A67: 25.74210584 | B67: 0.9080354123 | C67: 42.67766438 | O67: -2.722713633 | P67: 17.1949194 | Q67: 7.65567136 | R67: 9.17324424 | S67: 18.56134816 | T67: -9.17324424 | V67: 0.6283185307 | W67: 18.63599008 | X67: 6.055200235 | Y67: 20.6034439 | Z67: -153.5872022 | AA67: 5.174806722 | AB67: 19.58305224 | AC67: 84.70789416 | AD67: 56.69846239 | AF67: 0.6283185307 | AG67: 39.63203246 | AH67: 68.18985268 | AI67: -0.4613183644 | AJ67: 2.167700394 | AK67: 0.4188934112 | AL67: 0.9080354123 | AM67: 22.69013259 | AN67: 10 | BC67: =IF(ABS($BD67-xr)<0.000001,1,0) -> 0 | BD67: 1.4 | BE67: =2*foc*BD67 -> 0.56 | BF67: =foc*BD67^2 -> 0.392 | BG67: =(SQRT(1+$BD67^2))^3*2*foc -> 2.037030623 | BH67: =SQRT(BE67^2+(BF67-foc)^2) -> 0.592 | BI67: -0.7142857143 | BJ67: 0.9459459459 | BK67: =($BF67-focy)/$BH67 -> -1.449324324 | BL67: 0.8137334712 | BM67: -0.5812381937 | BN67: 1.612150531 | BO67: =Lpe/($BH67*$BN67) -> 12.57343523 | BP67: 48.13985182 | BQ67: 21.92740859 | BR67: -1.0976 | BS67: 1.576 | BT67: 0.8168140899 | BU67: 0.6352153543 | BV67: 1.224332487 | BZ67: 16.87128503 | CJ67: 20 | CK67: 118
A68: 26.80165159 | B68: 0.8899058117 | C68: 41.82557315 | O68: -2.801253449 | P68: 18.30766356 | Q68: 6.483083686 | R68: 7.296062143 | S68: 19.31160834 | T68: -7.296062143 | V68: 0.7068583471 | W68: 18.13521278 | X68: 6.690433215 | Y68: 20.6034439 | Z68: -175.3461492 | AA68: 5.280415022 | AB68: 21.75894693 | AC68: 83.64834841 | AD68: 60.23480515 | AF68: 0.7068583471 | AG68: 37.11457878 | AH68: 71.38322745 | AI68: -0.5125759604 | AJ68: 1.950930354 | AK68: 0.4561443261 | AL68: 0.8899058117 | AM68: 23.15238717 | AN68: 10 | BC68: 0 | BD68: =BD67+deltt -> 1.5 | BE68: 0.6 | BF68: 0.45 | BG68: 2.343608329 | BH68: 0.65 | BI68: =-1/BD68 -> -0.6666666667 | BJ68: =$BE68/$BH68 -> 0.9230769231 | BK68: -1.230769231 | BL68: =1/SQRT(1+$BI68^2) -> 0.8320502943 | BM68: =$BI68*$BL68 -> -0.5547001962 | BN68: =($BJ68*$BL68+$BK68*$BM68) -> 1.450754359 | BO68: 12.72547509 | BP68: =BO68^2/(BN68*BG68) -> 47.62874008 | BQ68: =BP68/$BH68^(-1.5) -> 24.95968662 | BR68: -1.35 | BS68: =ABS($BF68+$BG68*ABS($BM68)) -> 1.75 | BT68: 0.879645943 | BU68: =kenxky+rhoky*COS($BT68) -> 0.6009327823 | BV68: =kenyky+rhoky*SIN($BT68) -> 1.25455664 | BZ68: =$BP68*$BH68^m -> 20.12314268 | CE68: x | CF68: y | CG68: dydx | CH68: velocity | CI68: TAN | CJ68: perp | CK68: perp1 | CM68: =CE70-CE69 -> 20.6034439 | CN68: =CF70-CF69 -> -7.756679824
A69: 27.97272846 | B69: 0.8710787251 | C69: 40.94070008 | O69: -2.879793266 | P69: 19.22327486 | Q69: 5.150860975 | R69: 5.520676154 | S69: 19.86381354 | T69: -5.520676154 | V69: 0.7853981634 | W69: 17.5861394 | X69: 7.284417448 | Y69: 20.6034439 | Z69: -197.1050961 | AA69: 5.386023322 | AB69: 23.93484163 | AC69: 82.47727154 | AD69: 64.22548883 | AF69: 0.7853981634 | AG69: 34.35433627 | AH69: 74.36924098 | AI69: -0.5638335564 | AJ69: 1.773573049 | AK69: 0.4911434155 | AL69: 0.8710787251 | AM69: 23.652792 | AN69: 10 | BC69: 0 | BD69: 1.6 | BE69: 0.64 | BF69: 0.512 | BG69: 2.686797826 | BH69: 0.712 | BI69: -0.625 | BJ69: 0.8988764045 | BK69: -1.036516854 | BL69: 0.847998304 | BM69: -0.52999894 | BN69: 1.3115985 | BO69: 12.84991755 | BP69: 46.85595373 | BQ69: 28.15041312 | BR69: -1.6384 | BS69: 1.936 | BT69: 0.9424777961 | BU69: 0.564820069 | BV69: 1.282568532 | BZ69: 23.75334461 | CD69: =xronos -> 5 | CE69: =xxekina+varxiki*COS(firipsi)*CD69 -> 15.98143176 | CF69: =varxiki*SIN(firipsi)*CD69-1/2*g*CD69^2 -> 86.21660088 | CG69: =TAN(firipsi)-g*(CE69-xxekina)/(varxiki*COS(firipsi))^2 -> -0.3764749166 | CH69: =SQRT((varxiki*COS(firipsi))^2+(varxiki*SIN(firipsi)-g*CD69)^2) -> 22.01517618 | CI69: =CG69 -> -0.3764749166 | CJ69: =ATAN(CI71) -> 1.210733206 | CK69: =CE69 -> 15.98143176 | CL69: =CF69 -> 86.21660088 | CM69: =CK70-CK69 -> 26.73117021 | CN69: =CH69*COS(CI70) -> 20.6034439 | CO69: =CH69*SIN(CI70) -> -7.756679824
A70: 29.25533647 | B70: 0.8517698688 | C70: 40.03318383 | O70: -2.958333082 | P70: 19.91920792 | Q70: 3.691806972 | R70: 3.818622615 | S70: 20.24957396 | T70: -3.818622615 | V70: 0.8639379797 | W70: 16.99215516 | X70: 7.833490826 | Y70: 20.6034439 | Z70: -218.864043 | AA70: 5.491631623 | AB70: 26.11073632 | AC70: 81.19466353 | AD70: 68.69305324 | AF70: 0.8639379797 | AG70: 31.36832275 | AH70: 77.12948349 | AI70: -0.6150911525 | AJ70: 1.625775295 | AK70: 0.5239161103 | AL70: 0.8517698688 | AM70: 24.1889795 | AN70: 10 | BC70: 0 | BD70: 1.7 | BE70: 0.68 | BF70: 0.578 | BG70: 3.068911703 | BH70: 0.778 | BI70: -0.5882352941 | BJ70: 0.8740359897 | BK70: -0.8637532134 | BL70: 0.8619342152 | BM70: -0.5070201266 | BN70: 1.191301788 | BO70: 12.94731921 | BP70: 45.85149743 | BQ70: 31.464651 | BR70: -1.9652 | BS70: 2.134 | BT70: =BT69+PI()/50 -> 1.005309649 | BU70: 0.5270197346 | BV70: 1.308257613 | BZ70: 27.75317777 | CD70: X2Y2 | CE70: =CE69+SIGN(CF69)*CH69*COS(CI70) -> 36.58487566 | CF70: =CF69+(CI69)*(CE70-CE69) -> 78.45992106 | CH70: =SIGN(CE70-CE69) -> 1 | CI70: =ATAN(CI69) -> -0.3600631204 | CJ70: =ATAN(CI69) -> -0.3600631204 | CK70: =IF(vimata2>1,cx_,CE69) -> 42.71260197 | CL70: =IF(vimata2>1,cy_,CF69) -> 32.81497995 | CM70: =(CK70-CK69)*(CE70-CE69)+(CL70-CL69)*(CF70-CF69) -> 964.9734414 | CN70: =1/CH69*1*COS(CJ69)*ddd_2 -> 0.4801233074 | CO70: =1/CH69*1*SIN(CJ69)*ddd_2 -> 1.275312873
A71: 30.64947561 | B71: 0.83217238 | C71: 39.11210186 | O71: -3.036872898 | P71: 20.37832656 | Q71: 2.141848429 | R71: 2.165509215 | S71: 20.4896418 | T71: -2.165509215 | V71: 0.9424777961 | W71: 16.35692218 | X71: 8.334268129 | Y71: 20.6034439 | Z71: -240.62299 | AA71: 5.597239923 | AB71: 28.28663101 | AC71: 79.80052439 | AD71: 73.66136235 | AF71: 0.9424777961 | AG71: 28.17494797 | AH71: 79.64693717 | AI71: -0.6663487485 | AJ71: 1.500715657 | AK71: 0.554517024 | AL71: 0.83217238 | AM71: 24.75862501 | AN71: 10 | BC71: 0 | BD71: 1.8 | BE71: 0.72 | BF71: 0.648 | BG71: 3.492277744 | BH71: 0.848 | BI71: -0.5555555556 | BJ71: 0.8490566038 | BK71: -0.7099056604 | BL71: 0.8741572761 | BM71: -0.4856429312 | BN71: 1.086969674 | BO71: 13.0187104 | BP71: 44.64879359 | BQ71: 34.86611089 | BR71: -2.3328 | BS71: 2.344 | BT71: 1.068141502 | BU71: 0.4876809598 | BV71: 1.331522499 | BZ71: 32.10712607 | CD71: X3Y3 | CE71: =CE70+CK72 -> 36.03483354 | CF71: =CF70+CL72 -> 79.29505797 | CH71: =SIGN(CF70-CF69) -> -1 | CI71: =-1/CI69 -> 2.656219461 | CJ71: =TAN(CJ69) -> 2.656219461 | CK71: x | CL71: y | CN71: =CN70*CN69 -> 9.89219363 | CO71: =CO70*CO69 -> -9.89219363
A72: 32.15514588 | B72: 0.8124554934 | C72: 38.18540819 | O72: -3.115412715 | P72: 20.58932575 | Q72: 0.5391504692 | R72: 0.539520166 | S72: 20.59637998 | T72: -0.539520166 | V72: 1.021017612 | W72: 15.68435688 | X72: 8.783661896 | Y72: 20.6034439 | Z72: -262.3819369 | AA72: 5.702848224 | AB72: 30.46252571 | AC72: 78.29485412 | AD72: 79.15546426 | AF72: 1.021017612 | AG72: 24.79390017 | AH72: 81.90608109 | AI72: -0.7176063446 | AJ72: 1.393521682 | AK72: 0.5830232167 | AL72: 0.8124554934 | AM72: 25.35947392 | AN72: 10 | BC72: 0 | BD72: 1.9 | BE72: 0.76 | BF72: 0.722 | BG72: 3.959235906 | BH72: 0.922 | BI72: -0.5263157895 | BJ72: 0.8242950108 | BK72: -0.5726681128 | BL72: 0.8849182224 | BM72: -0.4657464328 | BN72: 0.9961518064 | BO72: 13.06546281 | BP72: 43.28253511 | BQ72: 38.31855043 | BR72: -2.7436 | BS72: 2.566 | BT72: 1.130973355 | BU72: 0.4469589967 | BV72: 1.352271376 | BZ72: 36.79379058 | CD72: X4Y4 | CE72: =CE70+CK73 -> 35.62064089 | CF72: =CF70+CL73 -> 78.19487141 | CH72: =-CI70 -> 0.3600631204 | CI72: =-CH70*DAA*COS(PI()/5) -> -0.8090169944 | CJ72: =-CH71*DAA*SIN(PI()/5) -> 0.5877852523 | CK72: =CI72*COS(CH72)+CJ72*SIN(CH72) -> -0.5500421232 | CL72: =-CI72*SIN(CH72)+CJ72*COS(CH72) -> 0.8351369126
A73: 33.77234729 | B73: 0.7927645076 | C73: 37.25993186 | V73: 1.099557429 | W73: 14.97860585 | X73: 9.178901467 | Y73: 20.6034439 | Z73: -284.1408838 | AA73: 5.808456524 | AB73: 32.6384204 | AC73: 76.67765271 | AD73: 85.20146138 | AF73: 1.099557429 | AG73: 21.24602462 | AH73: 83.89298687 | AI73: -0.7688639406 | AJ73: 1.300620236 | AK73: 0.6095280433 | AL73: 0.7927645076 | AM73: 25.98936217 | AN73: 10 | BC73: 0 | BD73: 2 | BE73: 0.8 | BF73: 0.8 | BG73: 4.472135955 | BH73: 1 | BI73: -0.5 | BJ73: 0.8 | BK73: -0.45 | BL73: 0.894427191 | BM73: -0.4472135955 | BN73: 0.9167878708 | BO73: 13.0891784 | BP73: 41.78697349 | BQ73: 41.78697349 | BR73: -3.2 | BS73: 2.8 | BT73: 1.193805208 | BU73: 0.4050145564 | BV73: 1.370422356 | BZ73: 41.78697349 | CD73: X5Y5 | CE73: =CE70 -> 36.58487566 | CF73: =CF70 -> 78.45992106 | CI73: =CI72 -> -0.8090169944 | CJ73: =-CJ72 -> -0.5877852523 | CK73: =CI73*COS(CH72)+CJ73*SIN(CH72) -> -0.9642347664 | CL73: =-CI73*SIN(CH72)+CJ73*COS(CH72) -> -0.2650496469
A74: 35.50107982 | B74: 0.7732217114 | C74: 36.34142043 | V74: 1.178097245 | W74: 14.24402026 | X74: 9.517550059 | Y74: 20.6034439 | Z74: -305.8998308 | AA74: 5.914064825 | AB74: 34.81431509 | AC74: 74.94892018 | AD74: 91.82639157 | AF74: 1.178097245 | AG74: 17.55319515 | AH74: 85.59540457 | AI74: -0.8201215366 | AJ74: 1.219331471 | AK74: 0.6341357781 | AL74: 0.7732217114 | AM74: 26.64623044 | AN74: 10 | BC74: 0 | BD74: 2.1 | BE74: 0.84 | BF74: 0.882 | BG74: 5.03333561 | BH74: 1.082 | BI74: -0.4761904762 | BJ74: 0.7763401109 | BK74: -0.3401109057 | BL74: 0.9028605188 | BM74: -0.4299335804 | BN74: 0.8471519347 | BO74: 13.09159852 | BP74: 40.19464159 | BQ74: 45.23858909 | BR74: -3.7044 | BS74: 3.046 | BT74: 1.256637061 | BU74: 0.3620131744 | BV74: 1.385903806 | BZ74: 47.05683158
A75: 37.34134349 | B75: 0.753927964 | C75: 35.43461431 | V75: 1.256637061 | W75: 13.4851291 | X75: 9.797519789 | Y75: 20.6034439 | Z75: -327.6587777 | AA75: 6.019673125 | AB75: 36.99020979 | AC75: 73.10865651 | AD75: 99.05812033 | AF75: 1.256637061 | AG75: 13.73817929 | AH75: 87.00283822 | AI75: -0.8713791327 | AJ75: 1.147606091 | AK75: 0.6569570953 | AL75: 0.753927964 | AM75: 27.3281333 | AN75: 10 | BC75: 0 | BD75: 2.2 | BE75: 0.88 | BF75: 0.968 | BG75: 5.645199079 | BH75: 1.168 | BI75: -0.4545454545 | BJ75: 0.7534246575 | BK75: -0.2414383562 | BL75: 0.9103664775 | BM75: -0.4138029443 | BN75: 0.7858004542 | BO75: 13.07453126 | BP75: 38.53547513 | BQ75: 48.64351865 | BR75: -4.2592 | BS75: 3.304 | BT75: 1.319468915 | BU75: 0.3181245575 | BV75: 1.398654628 | BZ75: 52.57102003 | CK75: FORCE
A76: 39.29313828 | B76: 0.7349646707 | C76: 34.54333952 | V76: 1.335176878 | W76: 12.70661118 | X76: 10.01708455 | Y76: 20.6034439 | Z76: -349.4177246 | AA76: 6.125281426 | AB76: 39.16610448 | AC76: 71.15686172 | AD76: 106.9252438 | AF76: 1.335176878 | AG76: 9.824497884 | AH76: 88.10661053 | AI76: -0.9226367287 | AJ76: 1.083850197 | AK76: 0.6781053995 | AL76: 0.7349646707 | AM76: 28.03324394 | AN76: 10 | BC76: 0 | BD76: 2.3 | BE76: 0.92 | BF76: 1.058 | BG76: 6.310095898 | BH76: 1.258 | BI76: -0.4347826087 | BJ76: 0.7313195548 | BK76: -0.1526232114 | BL76: 0.9170700563 | BM76: -0.3987261114 | BN76: 0.7315261249 | BO76: 13.03979501 | BP76: 36.83627686 | BQ76: 51.97526234 | BR76: -4.8668 | BS76: 3.574 | BT76: 1.382300768 | BU76: 0.2735219141 | BV76: 1.4086245 | BZ76: 58.29576565 | CD76: =xronos -> 5 | CE76: =xxekina+varxiki*COS(firipsi)*CD76 -> 15.98143176 | CF76: =varxiki*SIN(firipsi)*CD76-1/2*g*CD76^2 -> 86.21660088 | CG76: -100 | CH76: 20 | CI76: =CG76 -> -100 | CJ76: =ATAN(CI78) -> 0.009999666687 | CK76: =CE76 -> 15.98143176 | CL76: =CF76 -> 86.21660088 | CM76: =CK77-CK76 -> 26.73117021 | CN76: =CH76*COS(CI77) -> 0.1999900007 | CO76: =CH76*SIN(CI77) -> -19.99900007
A77: 41.35646421 | B77: 0.7163959482 | C77: 33.67060957 | V77: 1.413716694 | W77: 11.91326631 | X77: 10.17489066 | Y77: 20.6034439 | Z77: -371.1766716 | AA77: 6.230889726 | AB77: 41.34199917 | AC77: 69.09353579 | AD77: 115.457002 | AF77: 1.413716694 | AG77: 5.836280071 | AH77: 88.89991638 | AI77: -0.9738943248 | AJ77: 1.02680545 | AK77: 0.6976939482 | AL77: 0.7163959482 | AM77: 28.75985543 | AN77: 10 | BC77: 0 | BD77: 2.4 | BE77: 0.96 | BF77: 1.152 | BG77: 7.0304 | BH77: 1.352 | BI77: -0.4166666667 | BJ77: 0.7100591716 | BK77: -0.0724852071 | BL77: 0.9230769231 | BM77: -0.3846153846 | BN77: 0.6833181611 | BO77: 12.98917569 | BP77: 35.120459 | BQ77: 55.21095007 | BR77: -5.5296 | BS77: 3.856 | BT77: 1.445132621 | BU77: 0.2283812703 | BV77: 1.415774075 | BZ77: 64.19682748 | CD77: X2Y2 | CE77: =CE76+SIGN(CF76)*CH76*COS(CI77) -> 16.18142176 | CF77: =CF76+(CI76)*(CE77-CE76) -> 66.21760081 | CH77: =SIGN(CE77-CE76) -> 1 | CI77: =ATAN(CI76) -> -1.56079666 | CJ77: =ATAN(CI76) -> -1.56079666 | CK77: =IF(vimata2>1,cx_,CE76) -> 42.71260197 | CL77: =IF(vimata2>1,cy_,CF76) -> 32.81497995 | CM77: =(CK77-CK76)*(CE77-CE76)+(CL77-CL76)*(CF77-CF76) -> 1073.324988 | CN77: =1/CH76*1*COS(CJ76)*ddd_2 -> 1.499925006 | CO77: =1/CH76*1*SIN(CJ76)*ddd_2 -> 0.01499925006
A78: 43.53132127 | B78: 0.6982708254 | C78: 32.81872879 | V78: 1.49225651 | W78: 11.10998574 | X78: 10.26996518 | Y78: 20.6034439 | Z78: -392.9356185 | AA78: 6.336498026 | AB78: 43.51789387 | AC78: 66.91867873 | AD78: 124.6832022 | AF78: 1.49225651 | AG78: 1.798114543 | AH78: 89.37786477 | AI78: -1.025151921 | AJ78: 0.9754651771 | AK78: 0.7158336779 | AL78: 0.6982708254 | AM78: 29.5063794 | AN78: 10 | BC78: 0 | BD78: 2.5 | BE78: 1 | BF78: 1.25 | BG78: 7.80848897 | BH78: 1.45 | BI78: -0.4 | BJ78: 0.6896551724 | BK78: 0 | BL78: 0.9284766909 | BM78: -0.3713906764 | BN78: 0.6403287523 | BO78: 12.92439554 | BP78: 33.408 | BQ78: 58.33141079 | BR78: -6.25 | BS78: 4.15 | BT78: 1.507964474 | BU78: 0.1828807757 | BV78: 1.420075138 | BZ78: 70.24032 | CD78: X3Y3 | CE78: =CE77+CK79 -> 16.76108786 | CF78: =CF77+CL79 -> 67.03245491 | CH78: =SIGN(CF77-CF76) -> -1 | CI78: =-1/CI76 -> 0.01 | CJ78: =TAN(CJ76) -> 0.01 | CK78: x | CL78: y | CN78: =CN77*CN76 -> 0.299970003 | CO78: =CO77*CO76 -> -0.299970003
A79: 45.81770946 | B79: 0.6806253723 | C79: 31.9893925 | V79: 1.570796327 | W79: 10.30172195 | X79: 10.30172195 | Y79: 20.6034439 | Z79: -414.6945654 | AA79: 6.442106327 | AB79: 45.69378856 | AC79: 64.63229054 | AD79: 134.6341507 | AF79: 1.570796327 | AG79: -2.265102066 | AH79: 89.53750898 | AI79: -1.076409517 | AJ79: 0.9290144544 | AK79: 0.7326316282 | AL79: 0.6806253723 | AM79: 30.27134271 | AN79: 10 | BC79: 0 | BD79: 2.6 | BE79: 1.04 | BF79: 1.352 | BG79: 8.646743442 | BH79: 1.552 | BI79: -0.3846153846 | BJ79: 0.6701030928 | BK79: 0.06572164948 | BL79: 0.9333456062 | BM79: -0.3589790793 | BN79: 0.6018450801 | BO79: 12.84709142 | BP79: 31.71555685 | BQ79: 61.32109712 | BR79: -7.0304 | BS79: 4.456 | BT79: 1.570796327 | BU79: 0.1372 | BV79: 1.421510715 | BZ79: 76.39338865 | CD79: X4Y4 | CE79: =CE77+CK80 -> 15.58557613 | CF79: =CF77+CL80 -> 67.02069979 | CH79: =-CI77 -> 1.56079666 | CI79: =-CH77*DAA*COS(PI()/5) -> -0.8090169944 | CJ79: =-CH78*DAA*SIN(PI()/5) -> 0.5877852523 | CK79: =CI79*COS(CH79)+CJ79*SIN(CH79) -> 0.5796660998 | CL79: =-CI79*SIN(CH79)+CJ79*COS(CH79) -> 0.8148541052
A80: 48.21562878 | B80: 0.6634846875 | C80: 31.18378031 | V80: 1.649336143 | W80: 9.493458161 | X80: 10.26996518 | Y80: 20.6034439 | Z80: -436.4535124 | AA80: 6.547714627 | AB80: 47.86968325 | AC80: 62.23437122 | AD80: 145.3405925 | AF80: 1.649336143 | AG80: -6.328318676 | AH80: 89.37786477 | AI80: -1.127667113 | AJ80: 0.8867865247 | AK80: 0.7481898619 | AL80: 0.6634846875 | AM80: 31.05338268 | AN80: 10 | BC80: 0 | BD80: 2.7 | BE80: 1.08 | BF80: 1.458 | BG80: 9.547546608 | BH80: 1.658 | BI80: -0.3703703704 | BJ80: 0.6513872135 | BK80: 0.1254523522 | BL80: 0.9377487607 | BM80: -0.3473143558 | BN80: 0.5672661493 | BO80: 12.75880063 | BP80: 30.05668272 | BQ80: 64.16790144 | BR80: -7.8732 | BS80: 4.774 | BT80: 1.63362818 | BU80: 0.09151922426 | BV80: 1.420075138 | BZ80: 82.62473876 | CD80: X5Y5 | CE80: =CE77 -> 16.18142176 | CF80: =CF77 -> 66.21760081 | CI80: =CI79 -> -0.8090169944 | CJ80: =-CJ79 -> -0.5877852523 | CK80: =CI80*COS(CH79)+CJ80*SIN(CH79) -> -0.5958456307 | CL80: =-CI80*SIN(CH79)+CJ80*COS(CH79) -> 0.8030989879
A81: 50.72507923 | B81: 0.646864704 | C81: 30.40264109 | V81: 1.727875959 | W81: 8.690177587 | X81: 10.17489066 | Y81: 20.6034439 | Z81: -458.2124593 | AA81: 6.653322928 | AB81: 50.04557795 | AC81: 59.72492077 | AD81: 156.8336591 | AF81: 1.727875959 | AG81: -10.3664842 | AH81: 88.89991638 | AI81: -1.178924709 | AJ81: 0.8482305888 | AK81: 0.7626047828 | AL81: 0.646864704 | AM81: 31.85124149 | AN81: 10 | BC81: 0 | BD81: 2.8 | BE81: 1.12 | BF81: 1.568 | BG81: 10.51328382 | BH81: 1.768 | BI81: -0.3571428571 | BJ81: 0.6334841629 | BK81: 0.1798642534 | BL81: 0.9417419116 | BM81: -0.336336397 | BN81: 0.5360836916 | BO81: 12.6609528 | BP81: 28.44210891 | BQ81: 66.86289648 | BR81: -8.7808 | BS81: 5.104 | BT81: 1.696460033 | BU81: 0.04601872967 | BV81: 1.415774075 | BZ81: 88.90502665
A82: 53.34606082 | B82: 0.6307737967 | C82: 29.64636844 | V82: 1.806415776 | W82: 7.896832721 | X82: 10.01708455 | Y82: 20.6034439 | Z82: -479.9714062 | AA82: 6.758931228 | AB82: =xxekina+varxiki*COS(firipsi)*AA82 -> 52.22147264 | AC82: 57.10393918 | AD82: 169.1448221 | AF82: 1.806415776 | AG82: -14.35470202 | AH82: 88.10661053 | AI82: -1.230182305 | AJ82: 0.8128876476 | AK82: 0.7759667631 | AL82: 0.6307737967 | AM82: 32.66375998 | AN82: 10 | BC82: 0 | BD82: 2.9 | BE82: 1.16 | BF82: 1.682 | BG82: 11.54634225 | BH82: 1.882 | BI82: -0.3448275862 | BJ82: 0.6163655685 | BK82: 0.2295430393 | BL82: 0.9453729816 | BM82: -0.3259906833 | BN82: 0.5078664631 | BO82: 12.55486629 | BP82: 26.88005927 | BQ82: 69.40002879 | BR82: -9.7556 | BS82: 5.446 | BT82: 1.759291886 | BU82: 0.0008780859047 | BV82: 1.4086245 | BZ82: 95.20712704 | CE82: =CE77-CE78 -> -0.5796660998 | CF82: =CF77-CF78 -> -0.8148541052 | CG82: =(CF82-CF83)/(CE82-CE83) -> 0.01
A83: 56.07857353 | B83: 0.6152141881 | C83: 28.91506684 | V83: 1.884955592 | W83: =codo+radodo*COS(V83) -> 7.118314796 | X83: =radodo*SIN(V83) -> 9.797519789 | Y83: =varxiki*COS(firipsi) -> 20.6034439 | Z83: =varxiki*SIN(firipsi)-g*$AB83 -> -501.7303532 | AA83: =IF(AA82+det<2*tano,AA82+det,2*tano) -> 6.864539529 | AB83: 54.39736733 | AC83: 54.37142647 | AD83: =(SQRT(1+4*a^2*$AB83^2))^3/(ABS(2*a)) -> 182.3058525 | AF83: 1.884955592 | AG83: =xcenm+rhomo*COS($AF83) -> -18.26838343 | AH83: =ykenm+rhomo*SIN($AF83) -> 87.00283822 | AI83: =2*a*$AB83 -> -1.281439901 | AJ83: 0.7803721417 | AK83: 0.7883600083 | AL83: 0.6152141881 | AM83: =varxiki*COS(firipsi)/COS(ATAN(AI83)) -> 33.48987116 | AN83: 10 | BC83: 0 | BD83: 3 | BE83: 1.2 | BF83: 1.8 | BG83: 12.64911064 | BH83: 2 | BI83: -0.3333333333 | BJ83: 0.6 | BK83: 0.275 | BL83: 0.9486832981 | BM83: -0.316227766 | BN83: 0.4822473432 | BO83: 12.44174817 | BP83: 25.37657337 | BQ83: 71.77578845 | BR83: -10.8 | BS83: 5.8 | BT83: 1.822123739 | BU83: -0.04372455755 | BV83: 1.398654628 | BZ83: 101.5062935 | CE83: =CE77-CE79 -> 0.5958456307 | CF83: =CF77-CF79 -> -0.8030989879
A84: 58.92261738 | B84: 0.600183161 | C84: 28.20860857 | V84: 1.963495408 | W84: 6.359423635 | X84: 9.517550059 | Y84: 20.6034439 | Z84: -523.4893001 | AA84: 6.970147829 | AB84: 56.57326203 | AC84: =varxiki*SIN(firipsi)*AA84-1/2*g*AA84^2 -> 51.52738262 | AD84: 196.3487855 | AF84: 1.963495408 | AG84: -22.08339928 | AH84: 85.59540457 | AI84: -1.332697497 | AJ84: =-1/AI84 -> 0.7503578286 | AK84: =1/SQRT(1+AJ84^2) -> 0.7998625965 | AL84: =AK84*AJ84 -> 0.600183161 | AM84: 34.32859373 | AN84: =-AM84^2/($AD84*$AL84) -> 10 | BC84: 0 | BD84: 3.1 | BE84: 1.24 | BF84: 1.922 | BG84: 13.82397906 | BH84: 2.122 | BI84: -0.3225806452 | BJ84: 0.5843543827 | BK84: 0.3166823751 | BL84: 0.9517086178 | BM84: -0.3070027799 | BN84: 0.4589127323 | BO84: 12.3226967 | BP84: 23.93582188 | BQ84: 73.98887326 | BR84: -11.9164 | BS84: 6.166 | BT84: 1.884955592 | BU84: -0.08761317443 | BV84: 1.385903806 | BZ84: 107.7802294
A85: =SQRT(($AB85)^2+($AC85-focus)^2) -> 61.87819235 | B85: 0.5856740915 | C85: =lfoc/($A85*$B85) -> 27.5266823 | V85: =V84+PI()/40 -> 2.042035225 | W85: 5.624838053 | X85: 9.178901467 | Y85: 20.6034439 | Z85: -545.248247 | AA85: 7.075756129 | AB85: 58.74915672 | AC85: 48.57180765 | AD85: 211.3058892 | AF85: =AF84+PI()/40 -> 2.042035225 | AG85: -25.77622875 | AH85: 83.89298687 | AI85: -1.383955093 | AJ85: 0.7225667979 | AK85: 0.8105466418 | AL85: 0.5856740915 | AM85: 35.17902567 | AN85: 10 | BC85: 0 | BD85: 3.2 | BE85: 1.28 | BF85: 2.048 | BG85: 15.07333871 | BH85: 2.248 | BI85: -0.3125 | BJ85: 0.5693950178 | BK85: 0.3549822064 | BL85: 0.954479978 | BM85: -0.2982749931 | BN85: 0.4375938289 | BO85: 12.1987056 | BP85: 22.56040303 | BQ85: 76.03986096 | BR85: -13.1072 | BS85: 6.544 | BT85: 1.947787445 | BU85: -0.1306145564 | BV85: 1.370422356 | BZ85: 114.0090869
A86: 64.94529846 | B86: 0.5716773203 | C86: 26.86883405 | V86: 2.120575041 | W86: 4.919087017 | X86: 8.783661896 | Y86: 20.6034439 | Z86: -567.007194 | AA86: 7.18136443 | AB86: 60.92505142 | AC86: 45.50470154 | AD86: 227.2096379 | AF86: 2.120575041 | AG86: -29.3241043 | AH86: 81.90608109 | AI86: -1.435212689 | AJ86: 0.6967608408 | AK86: 0.8204785442 | AL86: 0.5716773203 | AM86: 36.04033808 | AN86: 10 | BC86: 0 | BD86: 3.3 | BE86: 1.32 | BF86: 2.178 | BG86: 16.39958179 | BH86: 2.378 | BI86: -0.303030303 | BJ86: 0.5550883095 | BK86: 0.3902439024 | BL86: 0.9570244044 | BM86: -0.2900073953 | BN86: 0.4180594411 | BO86: 12.07066953 | BP86: 21.25161362 | BQ86: 77.93089909 | BR86: -14.3748 | BS86: 6.934 | BT86: 2.010619298 | BU86: -0.1725589967 | BV86: 1.352271376 | BZ86: 120.1754098 | CS86: CASE OF FORCE TOWARDS THE FOCUS OF THE PARABOLA
A87: 68.1239357 | B87: 0.5581808805 | C87: 26.23450139 | V87: 2.199114858 | W87: 4.246521714 | X87: 8.334268129 | Y87: 20.6034439 | Z87: -588.7661409 | AA87: 7.28697273 | AB87: 63.10094611 | AC87: 42.3260643 | AD87: 244.0926878 | AF87: 2.199114858 | AG87: -32.7051521 | AH87: 79.64693717 | AI87: -1.486470285 | AJ87: 0.6727346049 | AK87: 0.8297192927 | AL87: 0.5581808805 | AM87: 36.91176932 | AN87: 10 | BC87: 0 | BD87: 3.4 | BE87: 1.36 | BF87: 2.312 | BG87: 17.80510136 | BH87: 2.512 | BI87: -0.2941176471 | BJ87: 0.5414012739 | BK87: 0.4227707006 | BL87: 0.9593655016 | BM87: -0.282166324 | BN87: 0.4001100502 | BO87: 11.93939033 | BP87: 20.00969139 | BQ87: 79.66541871 | BR87: -15.7216 | BS87: 7.336 | BT87: 2.073451151 | BU87: -0.2132809598 | BV87: 1.331522499 | BZ87: 126.264034 | CA87: rfrom focus | CB87: cosω | CC87: v | CJ87: P | CR87: focy | CS87: =1/(4*foc) -> 1.25 | CT87: vpe | CU87: =30 -> 30 | CV87: =(SQRT(1+0))^3*2*foc -> 0.4
A88: 71.41410407 | B88: 0.5451711002 | C88: 25.62304171 | V88: 2.277654674 | W88: 3.611288735 | X88: 7.833490826 | Y88: 20.6034439 | Z88: -610.5250878 | AA88: 7.392581031 | AB88: 65.2768408 | AC88: 39.03589593 | AD88: 261.9878568 | AF88: 2.277654674 | AG88: -35.89852688 | AH88: 77.12948349 | AI88: -1.537727881 | AJ88: 0.6503101181 | AK88: 0.8383248007 | AL88: 0.5451711002 | AM88: 37.7926194 | AN88: 10 | BC88: 0 | BD88: 3.5 | BE88: 1.4 | BF88: 2.45 | BG88: 19.29229121 | BH88: 2.65 | BI88: -0.2857142857 | BJ88: 0.5283018868 | BK88: 0.4528301887 | BL88: 0.9615239476 | BM88: -0.2747211279 | BN88: 0.3835728956 | BO88: 11.8055836 | BP88: 18.8340276 | BQ88: 81.24787544 | BR88: -17.15 | BS88: 7.75 | BT88: 2.136283004 | BU88: -0.2526197346 | BV88: 1.308257613 | BZ88: 132.2619588 | CA88: =SQRT((CE89)^2+(CF89-focus)^2) -> 93.49726805 | CB88: =COS(ASIN((CE89*CB90-(CF89-focus)*CA90)/$CA88)) -> 0.4764588093 | CC88: =lfoc/(CA88*CB88) -> 22.39356404 | CE88: x | CF88: y | CG88: dydx | CH88: VELOCITY1 | CI88: TAN | CJ88: perp | CK88: perp1 | CM88: =CE90-CE89 -> 10.66961086 | CN88: =CF90-CF89 -> 19.68834971 | CR88: 0 | CS88: 0 | CT88: Lpe | CU88: =vpe*rhzero -> 12 | CV88: =focy -> 1.25
A89: 74.81580358 | B89: 0.5326330968 | C89: 25.03375555 | V89: 2.35619449 | W89: 3.017304501 | X89: 7.284417448 | Y89: 20.6034439 | Z89: -632.2840348 | AA89: 7.498189331 | AB89: 67.4527355 | AC89: 35.63419642 | AD89: 280.9281061 | AF89: 2.35619449 | AG89: -38.8845404 | AH89: 74.36924098 | AI89: -1.588985477 | AJ89: 0.6293323723 | AK89: 0.8463462555 | AL89: 0.5326330968 | AM89: 38.68224491 | AN89: 10 | BC89: 0 | BD89: 3.6 | BE89: 1.44 | BF89: 2.592 | BG89: 20.86354576 | BH89: 2.792 | BI89: -0.2777777778 | BJ89: 0.5157593123 | BK89: 0.4806590258 | BL89: 0.9635179096 | BM89: -0.2676438638 | BN89: 0.3682978957 | BO89: 11.66988549 | BP89: 17.72335078 | BQ89: 82.68351942 | BR89: -18.6624 | BS89: 8.176 | BT89: 2.199114858 | BU89: -0.290420069 | BV89: 1.282568532 | BZ89: 138.1581983 | CA89: KX | CB89: KY | CD89: =xron_1*tano -> 0.4224332018 | CE89: =xxekina+varxiki*COS(firipsi)*CD89 -> -78.33220896 | CF89: =varxiki*SIN(firipsi)*CD89-1/2*g*CD89^2 -> 16.95273195 | CG89: =TAN(firipsi)-g*(p_X-xxekina)/(varxiki*COS(firipsi))^2 -> 1.845273457 | CH89: =CC88 -> 22.39356404 | CI89: =CG89 -> 1.845273457 | CJ89: =ATAN(CI91) -> -0.4966225394 | CK89: =IF(vimata2>1,CE89,1000) -> -78.33220896 | CL89: =IF(vimata2>1,CF89,1000) -> 16.95273195 | CM89: =CK90-CK89 -> 15.70445496 | CN89: =CH89*COS(CI90) -> 10.66961086 | CO89: =CH89*SIN(CI90) -> 19.68834971 | CR89: 0 | CS89: =foc -> 0.2
A90: 78.32903421 | B90: 0.5205511806 | C90: 24.46590549 | V90: 2.434734307 | W90: 2.468231123 | X90: 6.690433215 | Y90: 20.6034439 | Z90: -654.0429817 | AA90: 7.603797632 | AB90: 69.62863019 | AC90: 32.12096579 | AD90: 300.9465241 | AF90: 2.434734307 | AG90: -41.64478291 | AH90: 71.38322745 | AI90: -1.640243073 | AJ90: 0.6096657357 | AK90: 0.8538304682 | AL90: 0.5205511806 | AM90: 39.58005412 | AN90: 10 | BC90: 0 | BD90: 3.7 | BE90: 1.48 | BF90: 2.738 | BG90: 22.52126003 | BH90: 2.938 | BI90: -0.2702702703 | BJ90: 0.5037440436 | BK90: 0.5064669843 | BL90: 0.965363393 | BM90: -0.2609090251 | BN90: 0.354154252 | BO90: 11.53285932 | BP90: 16.67588315 | BQ90: 83.97819397 | BR90: -20.2612 | BS90: 8.614 | BT90: 2.261946711 | BU90: -0.3265327823 | BV90: 1.25455664 | BZ90: 143.9436219 | CA90: =CI89/SQRT(1+CI89^2) -> 0.8791967943 | CB90: =-1/SQRT(1+CI89^2) -> -0.4764588093 | CD90: X2Y2 | CE90: =CE89+SIGN(CF89)*CH89*COS(CI90) -> -67.66259811 | CF90: =CF89+(CI89)*(CE90-CE89) -> 36.64108166 | CH90: =SIGN(CE90-CE89) -> 1 | CI90: =ATAN(CI89) -> 1.074173787 | CJ90: =ATAN(CI89) -> 1.074173787 | CK90: =IF(vimata2>1,A2_X,1000) -> -62.62775401 | CL90: =IF(vimata2>1,a2_y,1000) -> 8.442093647 | CM90: =(CK90-CK89)*(CE90-CE89)+(CL90-CL89)*(CF90-CF89) -> 0 | CN90: =1/CH89*1*COS(CJ89)*ddd_2 -> 1.177834122 | CO90: =1/CH89*1*SIN(CJ89)*ddd_2 -> -0.6382978723 | CS90: deltt
A91: 81.95379597 | B91: =COS(ASIN(($AB91*$AL91-($AC91-focus)*$AK91)/$A91)) -> 0.5089091794 | C91: 23.91873143 | V91: 2.513274123 | W91: 1.967453821 | X91: 6.055200235 | Y91: 20.6034439 | Z91: -675.8019286 | AA91: 7.709405932 | AB91: 71.80452488 | AC91: 28.49620403 | AD91: 322.0763126 | AF91: 2.513274123 | AG91: -44.1622366 | AH91: 68.18985268 | AI91: -1.691500669 | AJ91: 0.5911910164 | AK91: 0.8608202176 | AL91: 0.5089091794 | AM91: 40.48550258 | AN91: 10 | BC91: 0 | BD91: 3.8 | BE91: 1.52 | BF91: 2.888 | BG91: 24.26782952 | BH91: 3.088 | BI91: -0.2631578947 | BJ91: 0.4922279793 | BK91: 0.5304404145 | BL91: 0.9670745373 | BM91: -0.2544932993 | BN91: 0.3410276141 | BO91: 11.39500205 | BP91: 15.68947218 | BQ91: 85.13816214 | BR91: -21.9488 | BS91: 9.064 | BT91: 2.324778564 | BU91: -0.3608153543 | BV91: 1.224332487 | BZ91: 149.6107902 | CD91: X3Y3 | CE91: =CE90+CK92 -> -67.53128247 | CF91: =CF90+CL92 -> 35.64974105 | CH91: =SIGN(CF90-CF89) -> 1 | CI91: =-1/CI89 -> -0.5419250984 | CJ91: =TAN(CJ89) -> -0.5419250984 | CK91: 1 | CL91: y | CN91: =CN90*CN89 -> 12.56703173 | CO91: =CO90*CO89 -> -12.56703173 | CS91: =0.1 -> 0.1 | CT91: foc | CU91: 0.2
A92: 85.69008887 | B92: 0.4976906995 | C92: 23.39146288 | V92: 2.591813939 | W92: 1.518060053 | X92: 5.382634933 | Y92: 20.6034439 | Z92: -697.5608756 | AA92: 7.815014233 | AB92: 73.98041958 | AC92: 24.75991113 | AD92: 344.3507743 | AF92: 2.591813939 | AG92: -46.42138051 | AH92: 64.80880487 | AI92: -1.742758265 | AJ92: 0.5738030454 | AK92: 0.8673545801 | AL92: 0.4976906995 | AM92: 41.39808905 | AN92: 10 | BC92: 0 | BD92: 3.9 | BE92: 1.56 | BF92: 3.042 | BG92: 26.10565015 | BH92: 3.242 | BI92: -0.2564102564 | BJ92: 0.481184454 | BK92: 0.552745219 | BL92: 0.968663866 | BM92: -0.2483753503 | BN92: 0.3288177062 | BO92: 11.2567505 | BP92: 14.76169988 | BQ92: 86.16995917 | BR92: -23.7276 | BS92: 9.526 | BT92: 2.387610417 | BU92: -0.3931324871 | BV92: 1.192015354 | BZ92: 155.1537913 | CD92: X4Y4 | CE92: =CE90+CK93 -> -68.56484029 | CF92: =CF90+CL93 -> 36.20985197 | CH92: =-CI90 -> -1.074173787 | CI92: =-CH90*DAA*COS(PI()/5) -> -0.8090169944 | CJ92: =-CH91*DAA*SIN(PI()/5) -> -0.5877852523 | CK92: =CI92*COS(CH92)+CJ92*SIN(CH92) -> 0.1313156357 | CL92: =-CI92*SIN(CH92)+CJ92*COS(CH92) -> -0.9913406094 | CU92: =XE_ -> 43.51789387 | CV92: =YE_ -> 31.6592148
A93: 89.5379129 | B93: 0.4868793309 | C93: 22.88332855 | V93: 2.670353756 | W93: 1.122820482 | X93: 4.676883896 | Y93: 20.6034439 | Z93: -719.3198225 | AA93: 7.920622533 | AB93: 76.15631427 | AC93: 20.9120871 | AD93: 367.8033024 | AF93: 2.670353756 | AG93: -48.40828629 | AH93: 61.26092932 | AI93: -1.794015861 | AJ93: 0.5574086726 | AK93: 0.8734692422 | AL93: 0.4868793309 | AM93: 42.31735174 | AN93: 10 | BC93: 0 | BD93: 4 | BE93: 1.6 | BF93: 3.2 | BG93: 28.03711825 | BH93: 3.4 | BI93: -0.25 | BJ93: 0.4705882353 | BK93: 0.5735294118 | BL93: 0.9701425001 | BM93: -0.242535625 | BN93: 0.3174363328 | BO93: 11.11848708 | BP93: 13.88997247 | BQ93: 87.08026869 | BR93: -25.6 | BS93: 10 | BT93: 2.45044227 | BU93: -0.4233566399 | BV93: 1.157732782 | BZ93: 160.5680817 | CD93: X5Y5 | CE93: =CE90 -> -67.66259811 | CF93: =CF90 -> 36.64108166 | CI93: =CI92 -> -0.8090169944 | CJ93: =-CJ92 -> 0.5877852523 | CK93: =CI93*COS(CH92)+CJ93*SIN(CH92) -> -0.9022421834 | CL93: =-CI93*SIN(CH92)+CJ93*COS(CH92) -> -0.4312296866 | CQ93: SRQ = YR - YQ + XQ * taNFq - XR * taNFR: Xv = SRQ / (taNFq - taNFR): Yv = YQ + taNFq * (Xv - XQ)
A94: 93.49726805 | B94: 0.4764588093 | C94: 22.39356404 | V94: 2.748893572 | W94: 0.7841718907 | X94: 3.942298315 | Y94: 20.6034439 | Z94: -741.0787694 | AA94: 8.026230833 | AB94: 78.33220896 | AC94: 16.95273195 | AD94: 392.4673707 | AF94: 2.748893572 | AG94: -50.11070399 | AH94: 57.56809986 | AI94: -1.845273457 | AJ94: 0.5419250984 | AK94: 0.8791967943 | AL94: 0.4764588093 | AM94: 43.24286486 | AN94: 10 | BC94: 0 | BD94: 4.1 | BE94: 1.64 | BF94: 3.362 | BG94: 30.06463049 | BH94: 3.562 | BI94: -0.243902439 | BJ94: 0.4604154969 | BK94: 0.5929253229 | BL94: 0.9715203388 | BM94: -0.2369561802 | BN94: 0.3068056999 | BO94: 10.98054528 | BP94: 13.07159309 | BQ94: 87.87582043 | BR94: -27.5684 | BS94: 10.486 | BT94: 2.513274123 | BU94: -0.4513685318 | BV94: 1.121620069 | BZ94: 165.8503339 | CA94: rfrom focus | CB94: cosω | CC94: v | CJ94: Q | CQ94: TaNTd = (Yt - YD) / (Xt - XD): TanVE = (Yv - YE) / (Xv - XE) | CW94: =focus -> 67.99980995
A95: 97.56815434 | B95: 0.4664131397 | C95: 21.92141757 | V95: 2.827433388 | W95: 0.5042021604 | X95: 3.183407154 | Y95: 20.6034439 | Z95: -762.8377164 | AA95: 8.131839134 | AB95: 80.50810366 | AC95: 12.88184566 | AD95: 418.3765252 | AF95: 2.827433388 | AG95: -51.51813765 | AH95: 53.753084 | AI95: -1.896531053 | AJ95: 0.5272784741 | AK95: 0.8845670032 | AL95: 0.4664131397 | AM95: 44.17423556 | AN95: 10 | BC95: 0 | BD95: 4.2 | BE95: 1.68 | BF95: 3.528 | BG95: 32.19058383 | BH95: 3.728 | BI95: -0.2380952381 | BJ95: 0.4506437768 | BK95: 0.6110515021 | BL95: 0.9728062147 | BM95: -0.2316205273 | BN95: 0.2968569956 | BO95: 10.84321464 | BP95: 12.30381998 | BQ95: 88.56330675 | BR95: -29.6352 | BS95: 10.984 | BT95: 2.576105976 | BU95: -0.4770576125 | BV95: 1.083819735 | BZ95: 170.9982932 | CA95: =SQRT((CE96)^2+(CF96-focus)^2) -> 29.25533647 | CB95: =COS(ASIN((CE96*CB97-(CF96-focus)*CA97)/$CA95)) -> 0.8517698688 | CC95: =lfoc/(CA95*CB95) -> 40.03318383 | CE95: x | CF95: y | CG95: dydx | CH95: VELOCITY1 | CI95: TAN | CJ95: perp | CK95: perp1 | CM95: =CE97-CE96 -> 34.09905974 | CN95: =CF97-CF96 -> -20.97402996 | CQ95: S2RQ | CR95: =Y2_R-Y2_Q+X2_Q*TANQFF-X2_R*TANRFF -> 35.68996199 | CS95: X2_V | CT95: =-S2RQ/(TANRFF-TANQFF) -> 43.51789387 | CU95: =Y2_R+TANRFF*(X2_V-X2_R) -> 70.48767493 | CV95: y_v | CY95: TDPLUS
A96: 101.7505718 | B96: 0.4567266911 | C96: 21.46615448 | V96: 2.905973205 | W96: 0.2846373975 | X96: 2.404889229 | Y96: 20.6034439 | Z96: -784.5966633 | AA96: 8.237447434 | AB96: 82.68399835 | AC96: 8.699428235 | AD96: 445.5643769 | AF96: 2.905973205 | AG96: -52.62190996 | AH96: 49.83940259 | AI96: -1.94778865 | AJ96: 0.5134027248 | AK96: 0.8896070648 | AL96: 0.4567266911 | AM96: 45.11110102 | AN96: 10 | BC96: 0 | BD96: 4.3 | BE96: 1.72 | BF96: 3.698 | BG96: 34.41737549 | BH96: 3.898 | BI96: -0.2325581395 | BJ96: 0.4412519241 | BK96: 0.6280143663 | BL96: 0.974008027 | BM96: -0.2265134947 | BN96: 0.2875291872 | BO96: 10.70674538 | BP96: 11.58391235 | BQ96: 89.14931589 | BR96: -31.8028 | BS96: 11.494 | BT96: 2.638937829 | BU96: -0.5003224991 | BV96: 1.04448096 | BZ96: 176.0106441 | CA96: KX | CB96: KY | CD96: =xron_2*tano -> 5.491631623 | CE96: =xxekina+varxiki*COS(firipsi)*CD96 -> 26.11073632 | CF96: =varxiki*SIN(firipsi)*CD96-1/2*g*CD96^2 -> 81.19466353 | CG96: =TAN(firipsi)-g*(X_Q-xxekina)/(varxiki*COS(firipsi))^2 -> -0.6150911525 | CH96: =CC95 -> 40.03318383 | CI96: =CG96 -> -0.6150911525 | CJ96: =ATAN(CI98) -> 1.019354227 | CK96: =CE96 -> 26.11073632 | CL96: =CF96 -> 81.19466353 | CM96: =CK97-CK96 -> -5.234818319 | CN96: =CH96*COS(CI97) -> 34.09905974 | CO96: =CH96*SIN(CI97) -> -20.97402996 | CQ96: LINE VEPLUS | CS96: rvq | CT96: =X2_R -> 60.92505142 | CU96: =Y2_R -> 45.50470154 | CW96: TP | CY96: =CW97 -> -26.11073632 | CZ96: =CX97 -> 113.3156293
A97: 106.0445203 | B97: 0.4473842653 | C97: 21.02706047 | V97: 2.984513021 | W97: 0.1268312919 | X97: 1.611544362 | Y97: 20.6034439 | Z97: -806.3556102 | AA97: 8.343055735 | AB97: 84.85989304 | AC97: 4.405479683 | AD97: 474.0645953 | AF97: 2.984513021 | AG97: -53.41521581 | AH97: 45.85118478 | AI97: -1.999046246 | AJ97: 0.5002385524 | AK97: 0.8943418358 | AL97: 0.4473842653 | AM97: 46.05312591 | AN97: 10 | BC97: 0 | BD97: 4.4 | BE97: 1.76 | BF97: 3.872 | BG97: 36.74740297 | BH97: 4.072 | BI97: -0.2272727273 | BJ97: 0.4322200393 | BK97: 0.6439096267 | BL97: 0.9751328558 | BM97: -0.2216211036 | BN97: 0.2787679992 | BO97: 10.5713526 | BP97: 10.90916594 | BQ97: 89.64027944 | BR97: -34.0736 | BS97: 12.016 | BT97: 2.701769682 | BU97: -0.5210713756 | BV97: 1.003758997 | BZ97: 180.8868877 | CA97: =CI96/SQRT(1+CI96^2) -> -0.5239161103 | CB97: =-1/SQRT(1+CI96^2) -> -0.8517698688 | CD97: X2Y2 | CE97: =CE96+SIGN(CF96)*CH96*COS(CI97) -> 60.20979606 | CF97: =CF96+(CI96)*(CE97-CE96) -> 60.22063357 | CH97: =SIGN(CE97-CE96) -> 1 | CI97: =ATAN(CI96) -> -0.5514420996 | CJ97: =ATAN(CI96) -> -0.5514420996 | CK97: =IF(vimata2>1,B2_X,CE96) -> 20.875918 | CL97: =IF(vimata2>1,B2_Y,CF96) -> 72.68402523 | CM97: =(CK97-CK96)*(CE97-CE96)+(CL97-CL96)*(CF97-CF96) -> 0 | CN97: =1/CH96*1*COS(CJ96)*ddd_2 -> 0.3926113739 | CO97: =1/CH96*1*SIN(CJ96)*ddd_2 -> 0.6382978723 | CQ97: =X2_V -> 43.51789387 | CR97: =Y2_V -> 70.48767493 | CS97: ves | CT97: =IF(vimata2>3,X2_V,1000) -> 1000 | CU97: =IF(vimata2>3,Y2_V,1000) -> 1000 | CV97: TP | CW97: =IF(vimata2>2,TX_,1000) -> -26.11073632 | CX97: =IF(vimata2>2,TY_,1000) -> 113.3156293 | CY97: =DXx -> -15.64109968 | CZ97: =dyy -> 95.14531972
A98: 108.0553451 | B98: 0.4432019825 | C98: 20.83049318 | V98: 3.063052837 | W98: 0.03175677074 | X98: 0.8082637886 | Y98: 20.6034439 | Z98: -816.3556102 | AA98: 8.448664035 | AB98: =AB97+1 -> 85.85989304 | AC98: =a*AB98^2+c_ -> 2.394654927 | AD98: 487.612192 | AF98: 3.063052837 | AG98: -53.89316419 | AH98: 41.81301925 | AI98: -2.022603266 | AJ98: 0.4944123332 | AK98: 0.8964217773 | AL98: 0.4432019825 | AM98: 46.48770699 | AN98: 10 | BC98: 0 | BD98: 4.5 | BE98: 1.8 | BF98: 4.05 | BG98: 39.18306394 | BH98: 4.25 | BI98: -0.2222222222 | BJ98: 0.4235294118 | BK98: 0.6588235294 | BL98: 0.9761870602 | BM98: -0.2169304578 | BN98: 0.2705250415 | BO98: 10.43722014 | BP98: 10.27694002 | BQ98: 90.04243211 | BR98: -36.45 | BS98: 12.55 | BT98: 2.764601535 | BU98: -0.5392223558 | BV98: 0.9618145564 | BZ98: 185.6272292 | CD98: X3Y3 | CE98: =CE97+CK99 -> 59.82864993 | CF98: =CF97+CL99 -> 61.14514838 | CH98: =SIGN(CF97-CF96) -> -1 | CI98: =-1/CI96 -> 1.625775295 | CJ98: =TAN(CJ96) -> 1.625775295 | CK98: x | CL98: y | CN98: =CN97*CN96 -> 13.38767869 | CO98: =CO97*CO96 -> -13.38767869 | CQ98: =xee -> 26.06849947 | CR98: =yee -> 69.49011431 | CT98: =IF(vimata2>3,X2_V+(xee-X2_V)*20,1000) -> 1000 | CU98: =Y2_V+(yee-Y2_V)*20 -> 50.5364625 | CW98: =IF(vimata2>2,p_X,1000) -> -78.33220896 | CX98: =IF(vimata2>2,P_y,1000) -> 16.95273195 | CY98: =CY97+(CY97-CY96)*10 -> 89.0552667 | CZ98: =CZ97+(CZ97-CZ96)*10 -> -86.55777624
A99: 110.0897268 | B99: 0.4390878547 | C99: 20.63712917 | V99: 3.141592654 | W99: 0 | X99: 1.262113873e-15 | Y99: 20.6034439 | Z99: -826.3556102 | AA99: 8.448664035 | AB99: =AB98+1 -> 86.85989304 | AC99: 0.3602731509 | AD99: 501.4473786 | AF99: 3.141592654 | AG99: -54.05280841 | AH99: 37.74980264 | AI99: -2.046160287 | AJ99: 0.4887202662 | AK99: 0.8984441306 | AL99: 0.4390878547 | AM99: 46.92328353 | AN99: 10 | BC99: 0 | BD99: 4.6 | BE99: =2*foc*BD99 -> 1.84 | BF99: 4.232 | BG99: 41.7267563 | BH99: 4.432 | BI99: -0.2173913043 | BJ99: 0.4151624549 | BK99: 0.672833935 | BL99: 0.9771763639 | BM99: -0.2124296443 | BN99: 0.2627570646 | BO99: 10.30450402 | BP99: 9.684677402 | BQ99: 90.3617819 | BR99: -38.9344 | BS99: 13.096 | BT99: 2.827433388 | BU99: -0.5547038059 | BV99: 0.9188131744 | BZ99: 190.2324768 | CD99: X4Y4 | CE99: =CE97+CK100 -> 59.2127496 | CF99: =CF97+CL100 -> 60.14383284 | CH99: =-CI97 -> 0.5514420996 | CI99: =-CH97*DAA*COS(PI()/5) -> -0.8090169944 | CJ99: =-CH98*DAA*SIN(PI()/5) -> 0.5877852523 | CK99: =CI99*COS(CH99)+CJ99*SIN(CH99) -> -0.3811461361 | CL99: =-CI99*SIN(CH99)+CJ99*COS(CH99) -> 0.9245148041 | CQ99: =CQ98+(CQ98-CQ97)*10 -> -148.4254445 | CR99: =CR98+(CR98-CR97)*10 -> 59.51450809 | CS99: qv | CT99: =X2_Q -> 26.11073632 | CU99: =Y2_Q -> 81.19466353 | CW99: TQ
A100: 112.1476656 | B100: 0.4350405132 | C100: 20.44690412 | V100: 3.22013247 | W100: 0.03175677074 | X100: -0.8082637886 | Y100: 20.6034439 | Z100: -836.3556102 | AA100: 8.448664035 | AB100: 87.85989304 | AC100: -1.697665646 | AD100: 515.573434 | AF100: 3.22013247 | AG100: -53.89316419 | AH100: 33.68658603 | AI100: -2.069717307 | AJ100: 0.4831577706 | AK100: 0.9004108795 | AL100: 0.4350405132 | AM100: 47.35982805 | AN100: 10 | BC100: 0 | BD100: 4.7 | BE100: 1.88 | BF100: 4.418 | BG100: 44.3808781 | BH100: 4.618 | BI100: -0.2127659574 | BJ100: 0.4071026418 | BK100: 0.6860112603 | BL100: 0.978105929 | BM100: -0.2081076445 | BN100: 0.2554253202 | BO100: 10.17333559 | BP100: 9.129918582 | BQ100: 90.60408889 | BR100: -41.5292 | BS100: 13.654 | BT100: 2.890265241 | BU100: -0.5674546278 | BV100: 0.8749245575 | BZ100: 194.7039498 | CD100: X5Y5 | CE100: =CE97 -> 60.20979606 | CF100: =CF97 -> 60.22063357 | CI100: =CI99 -> -0.8090169944 | CJ100: =-CJ99 -> -0.5877852523 | CK100: =CI100*COS(CH99)+CJ100*SIN(CH99) -> -0.9970464622 | CL100: =-CI100*SIN(CH99)+CJ100*COS(CH99) -> -0.07680073042 | CT100: =X2_V -> 43.51789387 | CU100: =Y2_V -> 70.48767493 | CW100: =IF(vimata2>2,TX_,1000) -> -26.11073632 | CX100: =IF(vimata2>2,TY_,1000) -> 113.3156293
A101: 114.2291615 | B101: 0.4310586131 | C101: 20.25975482 | V101: 3.298672286 | W101: 0.1268312919 | X101: -1.611544362 | Y101: 20.6034439 | Z101: -846.3556102 | AA101: 8.448664035 | AB101: 88.85989304 | AC101: -3.779161464 | AD101: 529.9936389 | AF101: 3.298672286 | AG101: -53.41521581 | AH101: 29.6484205 | AI101: -2.093274328 | AJ101: 0.477720472 | AK101: 0.9023239286 | AL101: 0.4310586131 | AM101: 47.79731404 | AN101: 10 | BC101: 0 | BD101: 4.8 | BE101: 1.92 | BF101: 4.608 | BG101: 47.14782755 | BH101: 4.808 | BI101: -0.2083333333 | BJ101: 0.3993344426 | BK101: 0.6984193012 | BL101: 0.9789804197 | BM101: -0.2039542541 | BN101: 0.2484950126 | BO101: 10.04382438 | BP101: 8.610311387 | BQ101: 90.77485131 | BR101: -44.2368 | BS101: 14.224 | BT101: 2.953097094 | BU101: -0.5774244998 | BV101: 0.8303219141 | BZ101: 199.0433973 | CA101: rfrom focus | CB101: cosω | CC101: v | CJ101: R | CW101: =IF(vimata2>2,X_Q,1000) -> 26.11073632 | CX101: =Y_Q -> 81.19466353
A102: 116.3342143 | B102: 0.4271408338 | C102: 20.07561919 | AB102: 89.85989304 | AC102: -5.884214302 | AD102: 544.711276 | AI102: -2.116831348 | AJ102: =-1/AI102 -> 0.4724041907 | AK102: =1/SQRT(1+AJ102^2) -> 0.9041851072 | AL102: =AK102*AJ102 -> 0.4271408338 | AM102: =varxiki*COS(firipsi)/COS(ATAN(AI102)) -> 48.23571588 | BC102: 0 | BD102: 4.9 | BE102: 1.96 | BF102: 4.802 | BG102: 50.030003 | BH102: 5.002 | BI102: -0.2040816327 | BJ102: 0.3918432627 | BK102: 0.7101159536 | BL102: 0.9798040588 | BM102: -0.199960012 | BN102: 0.2419348246 | BO102: 9.916060608 | BP102: 8.12361682 | BQ102: 90.87929749 | BR102: -47.0596 | BS102: 14.806 | BT102: 3.015928947 | BU102: -0.5845740754 | BV102: 0.7851812703 | BZ102: 203.2529253 | CA102: =SQRT((CE103)^2+(CF103-focus)^2) -> 64.94529846 | CB102: =COS(ASIN((CE103*CB104-(CF103-focus)*CA104)/$CA102)) -> 0.5716773203 | CC102: =lfoc/(CA102*CB102) -> 26.86883405 | CE102: x | CF102: y | CG102: dydx | CH102: VELOCITY1 | CI102: TAN | CJ102: perp | CK102: perp1 | CM102: =CE104-CE103 -> 15.36030305 | CN102: =CF104-CF103 -> -22.04530185 | CY102: =TY_ -> 113.3156293
A103: 118.4628242 | B103: 0.4232858791 | C103: 19.89443632 | AB103: 90.85989304 | AC103: -8.01282416 | AD103: 559.7296295 | AI103: -2.140388369 | AJ103: 0.4672049309 | AK103: 0.9059961725 | AL103: 0.4232858791 | AM103: 48.67500882 | BC103: 0 | BD103: 5 | BE103: 2 | BF103: 5 | BG103: 53.02980294 | BH103: 5.2 | BI103: -0.2 | BJ103: 0.3846153846 | BK103: 0.7211538462 | BL103: 0.9805806757 | BM103: -0.1961161351 | BN103: 0.2357165086 | BO103: 9.790117466 | BP103: 7.667712 | BQ103: 90.92238261 | BR103: -50 | BS103: 15.4 | BT103: 3.078760801 | BU103: -0.5888751385 | BV103: 0.7396807757 | BZ103: 207.3349325 | CA103: KX | CB103: KY | CD103: =xron_3*tano -> 7.18136443 | CE103: =xxekina+varxiki*COS(firipsi)*CD103 -> 60.92505142 | CF103: =varxiki*SIN(firipsi)*CD103-1/2*g*CD103^2 -> 45.50470154 | CG103: =TAN(firipsi)-g*(x_r-xxekina)/(varxiki*COS(firipsi))^2 -> -1.435212689 | CH103: =CC102 -> 26.86883405 | CI103: =CG103 -> -1.435212689 | CJ103: =ATAN(CI105) -> 0.6085487223 | CK103: =CE103 -> 60.92505142 | CL103: =CF103 -> 45.50470154 | CM103: =CK104-CK103 -> -12.21457608 | CN103: =CH103*COS(CI104) -> 15.36030305 | CO103: =CH103*SIN(CI104) -> -22.04530185 | CR103: XE = SCB / (taNFR - taNFq): YE = YB + taNFq * (XE - Bx) | CX103: SPQQ | CY103: =Y2_Q-Y2_P+X2_P*CI89-X2_Q*CI96 -> -64.24193158 | CZ103: td
A104: 120.614991 | B104: 0.4194924774 | C104: 19.71614644 | AB104: 91.85989304 | AC104: -10.16499104 | AD104: 575.0519856 | AI104: -2.163945389 | AJ104: 0.4621188709 | AK104: 0.9077588124 | AL104: 0.4194924774 | AM104: 49.11516895 | CA104: =CI103/SQRT(1+CI103^2) -> -0.8204785442 | CB104: =-1/SQRT(1+CI103^2) -> -0.5716773203 | CD104: X2Y2 | CE104: =CE103+SIGN(CF103)*CH103*COS(CI104) -> 76.28535447 | CF104: =CF103+(CI103)*(CE104-CE103) -> 23.45939969 | CH104: =SIGN(CE104-CE103) -> 1 | CI104: =ATAN(CI103) -> -0.9622476045 | CJ104: =ATAN(CI103) -> -0.9622476045 | CK104: =IF(vimata2>1,_c2_x,CE103) -> 48.71047534 | CL104: =IF(vimata2>1,_c2_y,CF103) -> 36.99406324 | CM104: =(CK104-CK103)*(CE104-CE103)+(CL104-CL103)*(CF104-CF103) -> 0 | CN104: =1/CH103*1*COS(CJ103)*ddd_2 -> 0.9160932058 | CO104: =1/CH103*1*SIN(CJ103)*ddd_2 -> 0.6382978723 | CR104: SCB = YB - CY + Cx * taNFR - Bx * taNFq: 'msgbox ("SCB = " & SCB) | CX104: TX_ | CY104: =SPQQ/(CI89-CI96) -> -26.11073632 | CZ104: =IF(vimata2>3,TX_,1000) -> 1000 | DA104: =IF(vimata2>3,TY_,1000) -> 1000
A105: 122.7907149 | B105: 0.4157593814 | C105: 19.54069093 | AB105: 92.85989304 | AC105: -12.34071494 | AD105: 590.6816319 | AI105: -2.18750241 | AJ105: 0.4571423535 | AK105: 0.9094746488 | AL105: 0.4157593814 | AM105: 49.55617317 | BC105: =MAX(BC3:BC103) -> 1 | CD105: X3Y3 | CE105: =CE104+CK106 -> 76.30512299 | CF105: =CF104+CL106 -> 24.45920427 | CH105: =SIGN(CF104-CF103) -> -1 | CI105: =-1/CI103 -> 0.6967608408 | CJ105: =TAN(CJ103) -> 0.6967608408 | CK105: x | CL105: y | CN105: =CN104*CN103 -> 14.07146927 | CO105: =CO104*CO103 -> -14.07146927 | CX105: TY_ | CY105: =P_y+TANF_p*(TX_-p_X) -> 113.3156293 | CZ105: =IF(vimata2>3,TX_+(DXx-TX_)*20,1000) -> 1000 | DA105: =IF(vimata2>3,TY_+20*(dyy-TY_),1000) -> 1000
A106: 124.9899959 | B106: 0.4120853686 | C106: 19.36801232 | AB106: 93.85989304 | AC106: -14.53999586 | AD106: 606.6218575 | AI106: -2.211059431 | AJ106: 0.4522718775 | AK106: 0.9111452404 | AL106: 0.4120853686 | AM106: 49.99799913 | CD106: X4Y4 | CE106: =CE104+CK107 -> 75.34059261 | CF106: =CF104+CL107 -> 23.78715728 | CH106: =-CI104 -> 0.9622476045 | CI106: =-CH104*DAA*COS(PI()/5) -> -0.8090169944 | CJ106: =-CH105*DAA*SIN(PI()/5) -> 0.5877852523 | CK106: =CI106*COS(CH106)+CJ106*SIN(CH106) -> 0.01976852066 | CL106: =-CI106*SIN(CH106)+CJ106*COS(CH106) -> 0.9998045837 | CV106: LINE adb
A107: 127.2128338 | B107: 0.4084692407 | C107: 19.19805431 | AB107: 94.85989304 | AC107: -16.7628338 | AD107: 622.875953 | AI107: -2.234616451 | AJ107: 0.4475040893 | AK107: 0.9127720851 | AL107: 0.4084692407 | AM107: 50.44062525 | CD107: X5Y5 | CE107: =CE104 -> 76.28535447 | CF107: =CF104 -> 23.45939969 | CI107: =CI106 -> -0.8090169944 | CJ107: =-CJ106 -> -0.5877852523 | CK107: =CI107*COS(CH106)+CJ107*SIN(CH106) -> -0.9447618555 | CL107: =-CI107*SIN(CH106)+CJ107*COS(CH106) -> 0.3277575878 | CR107: S2_AB | CS107: =B2_Y-a2_y+A2_X*TANPFF-B2_X*TANQFF -> -38.48280812 | CT107: DXx | CU107: =S2_AB/(TANPFF-TANQFF) -> -15.64109968 | CV107: =IF(vimata2>2,A2_X,1000) -> -62.62775401 | CW107: =IF(vimata2>2,a2_y,1000) -> 8.442093647
A108: 129.4592288 | B108: 0.4049098241 | C108: 19.03076173 | AB108: 95.85989304 | AC108: -19.00922876 | AD108: 639.4472105 | AI108: -2.258173472 | AJ108: 0.4428357752 | AK108: 0.9143566232 | AL108: 0.4049098241 | AM108: 50.88403065 | CL108: ="t = "&TEXT(xronos,"0,0") -> t = 05 | CR108: A2_X | CS108: =X2_P+SIGN(0-X2_P)*1/1*KK*COS(ATAN(-1/TANPFF))/CH89*20 -> -62.62775401 | CT108: dyy | CU108: =a2_y+TANPFF*(DXx-A2_X) -> 95.14531972 | CV108: =IF(vimata2>2,DXx,1000) -> -15.64109968 | CW108: =IF(vimata2>2,dyy,1000) -> 95.14531972 | DA108: xr
A109: 131.7291807 | B109: 0.401405969 | C109: 18.86608054 | AB109: 96.85989304 | AC109: -21.27918074 | AD109: 656.3389233 | AI109: -2.281730492 | AJ109: 0.4382638543 | AK109: 0.9159002392 | AL109: 0.401405969 | AM109: 51.32819513 | CD109: xronos | CE109: =AE85/10 -> 0 | CJ109: 20 | CK109: 118 | CR109: A2_Y | CS109: =Y2_P-1/TANPFF*(A2_X-X2_P) -> 8.442093647 | CV109: =IF(vimata2>2,B2_X,1000) -> 20.875918 | CW109: =IF(vimata2>2,B2_Y,1000) -> 72.68402523 | CX109: kenx | CY109: keny | DA109: =-5+deltt*$BB69 -> -5
A110: 134.0226897 | B110: 0.3979565496 | C110: 18.70395783 | AB110: 97.85989304 | AC110: -23.57268975 | AD110: 673.5543861 | AI110: -2.305287513 | AJ110: 0.4337853714 | AK110: 0.9174042645 | AL110: 0.3979565496 | AM110: 51.77309914 | CA110: rfrom focus | CB110: cosω | CC110: v | CJ110: 20 | CK110: 118 | CR110: S2_CB | CS110: =B2_Y-_c2_y+_c2_x*TANRFF-B2_X*TANQFF -> -21.37933784 | CT110: xee | CU110: =-S2_CB/(TANQFF-TANRFF) -> 26.06849947 | CX110: =kenxky -> 0.1372 | CY110: =kenyky -> 0.694 | CZ110: ρ | DA110: =rhoky -> 0.7275107147
A111: 136.3397558 | B111: 0.3945604641 | C111: 18.54434181 | AB111: 98.85989304 | AC111: -25.88975577 | AD111: 691.0968947 | AI111: -2.328844533 | AJ111: 0.4293974912 | AK111: 0.91886998 | AL111: 0.3945604641 | AM111: 52.2187238 | CA111: =SQRT((CE112)^2+(CF112-focus)^2) -> 24.23339912 | CB111: =COS(ASIN((CE112*CB113-(CF112-focus)*CA113)/$CA111)) -> 0.9358745861 | CC111: =lfoc/(CA111*CB111) -> 43.98610555 | CE111: x | CF111: y | CG111: dydx | CH111: velocity | CI111: TAN | CJ111: perp | CK111: perp1 | CM111: =CE113-CE112 -> 41.16547832 | CN111: =CF113-CF112 -> -15.49777002 | CT111: yee | CU111: =B2_Y+TANQFF*(xee-B2_X) -> 69.49011431 | CX111: =kenxky -> 0.1372 | CY111: =kenyky -> 0.694 | CZ111: rkykloy | DA111: =rkykloy -> 0.7275107147
A112: 138.6803788 | B112: 0.3912166339 | C112: 18.38718179 | AB112: 99.85989304 | AC112: -28.23037881 | AD112: 708.9697462 | AI112: -2.352401554 | AJ112: 0.4250974917 | AK112: 0.9202986175 | AL112: 0.3912166339 | AM112: 52.6650508 | CA112: KX | CB112: KY | CD112: =xronos -> 5 | CE112: =xxekina+varxiki*COS(firipsi)*CD112 -> 15.98143176 | CF112: =varxiki*SIN(firipsi)*CD112-1/2*g*CD112^2 -> 86.21660088 | CG112: =TAN(firipsi)-g*(CE112-xxekina)/(varxiki*COS(firipsi))^2 -> -0.3764749166 | CH112: =CC111 -> 43.98610555 | CI112: =CG112 -> -0.3764749166 | CJ112: =ATAN(CI114) -> 1.210733206 | CK112: =CE112 -> 15.98143176 | CL112: =CF112 -> 86.21660088 | CM112: =CK113-CK112 -> 6.046666135 | CN112: =CH112*COS(CI113) -> 41.16547832 | CO112: =CH112*SIN(CI113) -> -15.49777002 | CV112: LINE BEC | CX112: =shmx -> -0.28 | CY112: =shmy -> 0.098
A113: 141.0445589 | B113: 0.3879240035 | C113: 18.23242816 | AB113: 100.859893 | AC113: -30.59455888 | AD113: 727.1762387 | AI113: -2.375958575 | AJ113: 0.4208827589 | AK113: 0.9216913624 | AL113: 0.3879240035 | AM113: 53.11206245 | CA113: =CI112/SQRT(1+CI112^2) -> -0.3523333068 | CB113: =-1/SQRT(1+CI112^2) -> -0.9358745861 | CD113: X2Y2 | CE113: =CE112+SIGN(CF112)*CH112*COS(CI113) -> 57.14691008 | CF113: =CF112+(CI112)*(CE113-CE112) -> 70.71883086 | CH113: =SIGN(CE113-CE112) -> 1 | CI113: =ATAN(CI112) -> -0.3600631204 | CJ113: =ATAN(CI112) -> -0.3600631204 | CK113: =IF(vimata2>1,SHMXF-SIGN(SHMXF)+KK*COS(ATAN(CI114)),CE112) -> 22.0280979 | CL113: =IF(vimata2>1,SHMYF-SIGN(SHMYF)*KK*SIN(ATAN(CI114)),CF112) -> 67.49910916 | CM113: =(CK113-CK112)*(CE113-CE112)+(CL113-CL112)*(CF113-CF112) -> 538.9932858 | CN113: =1/CH112*1*COS(CJ112)*ddd_2 -> 0.2403031383 | CO113: =1/CH112*1*SIN(CJ112)*ddd_2 -> 0.6382978723 | CV113: =IF(vimata2>2,B2_X,1000) -> 20.875918 | CW113: =IF(vimata2>2,B2_Y,1000) -> 72.68402523 | CX113: =shmx -> -0.28 | CY113: =CY112 -> 0.098
A114: 143.432296 | B114: 0.3846815404 | C114: 18.0800324 | AB114: 101.859893 | AC114: -32.98229596 | AD114: 745.7196714 | AI114: -2.399515595 | AJ114: 0.4167507817 | AK114: 0.9230493554 | AL114: 0.3846815404 | AM114: 53.55974159 | CD114: X3Y3 | CE114: =CE113+CK115 -> 54.94674159 | CF114: =CF113+CL115 -> 74.05937851 | CH114: =SIGN(CF113-CF112) -> -1 | CI114: =-1/CI112 -> 2.656219461 | CJ114: =TAN(CJ112) -> 2.656219461 | CK114: x | CL114: y | CN114: =CN113*CN112 -> 9.89219363 | CO114: =CO113*CO112 -> -9.89219363 | CV114: =IF(vimata2>2,xee,1000) -> 26.06849947 | CW114: =IF(vimata2>2,yee,1000) -> 69.49011431 | CX114: rhoky
A115: 145.8435901 | B115: 0.3814882346 | C115: 17.92994702 | AB115: 102.859893 | AC115: -35.39359007 | AD115: =(SQRT(1+4*a^2*$AB115^2))^3/(ABS(2*a)) -> 764.6033448 | AI115: =2*a*$AB115 -> -2.423072616 | AJ115: 0.4126991463 | AK115: 0.9243736944 | AL115: 0.3814882346 | AM115: 54.00807163 | CD115: X4Y4 | CE115: =CE113+CK116 -> 53.28997102 | CF115: =CF113+CL116 -> 69.65863227 | CH115: =-CI113 -> 0.3600631204 | CI115: =-CH113*DAA*polla*COS(PI()/5) -> -3.236067977 | CJ115: =-CH114*DAA*polla*SIN(PI()/5) -> 2.351141009 | CK115: =CI115*COS(CH115)+CJ115*SIN(CH115) -> -2.200168493 | CL115: =-CI115*SIN(CH115)+CJ115*COS(CH115) -> 3.34054765 | CR115: B2_X | CS115: =X2_Q+SIGN(0-X2_Q)*KK*COS(ATAN(-1/TANQFF))/CH96*20 -> 20.875918 | CV115: =IF(vimata2>2,_c2_x,1000) -> 48.71047534 | CW115: =_c2_y -> 36.99406324 | CX115: =SQRT((shmx-kenxky)^2+(shmy-kenyky)^2) -> 0.7275107147 | CY115: =rkykloy -> 0.7275107147
A116: 148.2784412 | B116: 0.3783430981 | C116: 17.78212561 | AB116: 103.859893 | AC116: -37.82844119 | AD116: 783.8305599 | AI116: -2.446629636 | AJ116: 0.4087255321 | AK116: 0.9256654364 | AL116: 0.3783430981 | AM116: 54.4570365 | CD116: X5Y5 | CE116: =CE113 -> 57.14691008 | CF116: =CF113 -> 70.71883086 | CI116: =CI115 -> -3.236067977 | CJ116: =-CJ115 -> -2.351141009 | CK116: =CI116*COS(CH115)+CJ116*SIN(CH115) -> -3.856939066 | CL116: =-CI116*SIN(CH115)+CJ116*COS(CH115) -> -1.060198587 | CR116: B2_Y | CS116: =Y2_Q-1/TANQFF*(B2_X-X2_Q) -> 72.68402523
A117: =SQRT(($AB117)^2+($AC117-focus)^2) -> 150.7368493 | B117: 0.3752451648 | C117: =lfoc/($A117*$B117) -> 17.63652275 | AB117: 104.859893 | AC117: -40.28684934 | AD117: 803.4046191 | AI117: -2.470186657 | AJ117: 0.4048277069 | AK117: 0.9269255991 | AL117: 0.3752451648 | AM117: 54.90662061 | CA117: rfrom focus | CB117: cosω | CC117: v | CU117: lineqgv | CV117: =X2_Q -> 26.11073632 | CW117: =Y2_Q -> 81.19466353
A118: 153.2188145 | B118: 0.3721934901 | C118: 17.49309403 | AB118: 105.859893 | AC118: -42.76881451 | AD118: 823.3288254 | AI118: -2.493743677 | AJ118: 0.401003523 | AK118: 0.9281551626 | AL118: 0.3721934901 | AM118: 55.35680889 | CA118: =SQRT((CE119)^2+(CF119-focus)^2) -> 24.23339912 | CB118: =COS(ASIN((CE119*CB120-(CF119-focus)*CA120)/$CA118)) ->  | CC118: =lfoc/(CA118*CB118) ->  | CH118: gondyn | CI118: =ATAN((focus-SHMYF)/(0-SHMXF)) -> 0.850670086 | CK118: FORCE | CR118: c2_x | CS118: =X2_R+SIGN(0-X2_R)*KK*COS(ATAN(-1/TANRFF))/CH103*20 -> 48.71047534 | CV118: =X2_V -> 43.51789387 | CW118: =Y2_V -> 70.48767493
A119: 155.7243367 | B119: 0.3691871503 | C119: 17.35179606 | AB119: 106.859893 | AC119: -45.2743367 | AD119: 843.606483 | AI119: -2.517300698 | AJ119: 0.3972509128 | AK119: 0.929355071 | AL119: 0.3691871503 | AM119: 55.80758671 | CA119: KX | CB119: KY | CD119: =xronos -> 5 | CE119: =xxekina+varxiki*COS(firipsi)*CD119 -> 15.98143176 | CF119: =varxiki*SIN(firipsi)*CD119-1/2*g*CD119^2 -> 86.21660088 | CG119: =TAN(firipsi)-g*(CE119-xxekina)/(varxiki*COS(firipsi))^2 -> -0.3764749166 | CH119: =50000/CA118^2 -> 85.14150724 | CI119: =TAN(gondyn) -> 1.139872272 | CJ119: =ATAN(CI121) -> -0.7201262408 | CK119: =CE119 -> 15.98143176 | CL119: =CF119 -> 86.21660088 | CM119: =CK120-CK119 -> -15.03444964 | CN119: =CH119*COS(CI120) -> 56.14908503 | CO119: =CH119*SIN(CI120) -> 64.00278513 | CR119: c2_y | CS119: =Y2_R-1/TANRFF*(CS118-X2_R) -> 36.99406324
A120: 158.2534159 | B120: 0.3662252424 | C120: 17.21258639 | AB120: 107.859893 | AC120: -47.8034159 | AD120: 864.2408965 | AI120: -2.540857719 | AJ120: 0.3935678856 | AK120: 0.9305262338 | AL120: 0.3662252424 | AM120: 56.25893989 | CA120: =CI119/SQRT(1+CI119^2) -> 0.7517224819 | CB120: =-1/SQRT(1+CI119^2) -> -0.6594795753 | CD120: X2Y2 | CE120: =CE119+CH119*COS(GONIATAN) -> -40.16765327 | CF120: =CF119+SIN(GONIATAN)*CH119 -> 22.21381575 | CG120: =-1/CG112 -> 2.656219461 | CH120: =SIGN(CE120-CE119) -> -1 | CI120: =ATAN(CI119) -> 0.850670086 | CJ120: =ATAN(CI119) -> 0.850670086 | CK120: =IF(vimata2>1,SHMXF-SIGN(SHMXF)*KK*COS(ATAN(CI121)),CD120) -> 0.946982122 | CL120: =IF(vimata2>1,SHMYF-SIGN(SHMYF)*KK*SIN(ATAN(CI121)),CF119) -> 99.40619239 | CM120: =(CK120-CK119)*(CE120-CE119)+(CL120-CL119)*(CF120-CF119) -> 0 | CN120: =1/CH119*1*COS(CJ119)*ddd_2 -> 0.2648728592 | CO120: =1/CH119*1*SIN(CJ119)*ddd_2 -> -0.2323706486
A121: 160.8060521 | B121: 0.3633068837 | C121: 17.07542353 | AB121: 108.859893 | AC121: -50.35605213 | AD121: 885.2353718 | AI121: -2.564414739 | AJ121: 0.389952524 | AK121: 0.9316695274 | AL121: 0.3633068837 | AM121: 56.71085472 | CA121: =focus-CF119 -> -18.21679093 | CD121: X3Y3 | CE121: =CE120+CK122 -> -39.80093809 | CF121: =CF120+CL122 -> 26.19697028 | CH121: =SIGN(CF120-CF119) -> -1 | CI121: =-1/CI119 -> -0.877291276 | CJ121: =TAN(CJ119) -> -0.877291276 | CK121: x | CL121: y | CN121: =CN120*CN119 -> 14.87236869 | CO121: =CO120*CO119 -> -14.87236869
A122: 163.3822454 | B122: 0.3604312114 | C122: 16.94026693 | AB122: 109.859893 | AC122: -52.93224538 | AD122: 906.5932152 | AI122: -2.58797176 | AJ122: 0.38640298 | AK122: 0.9327857963 | AL122: 0.3604312114 | AM122: 57.16331785 | CA122: =0-CE119 -> -15.98143176 | CD122: X4Y4 | CE122: =CE120+CK123 -> -36.26612698 | CF122: =CF120+CL123 -> 23.09591133 | CH122: =-gondyn -> -0.850670086 | CI122: =-CH120*DAA*polla*COS(PI()/5) -> 3.236067977 | CJ122: =-CH121*DAA*polla*SIN(PI()/5) -> 2.351141009 | CK122: =CI122*COS(CH122)+CJ122*SIN(CH122) -> 0.3667151808 | CL122: =-CI122*SIN(CH122)+CJ122*COS(CH122) -> 3.983154526
A123: 165.9819957 | B123: =COS(ASIN(($AB123*$AL123-($AC123-focus)*$AK123)/$A123)) -> 0.357597382 | C123: 16.80707696 | AB123: 110.859893 | AC123: -55.53199565 | AD123: 928.3177338 | AI123: -2.61152878 | AJ123: =-1/AI123 -> 0.3829174725 | AK123: =1/SQRT(1+AJ123^2) -> 0.9338758549 | AL123: =AK123*AJ123 -> 0.357597382 | AM123: =varxiki*COS(firipsi)/COS(ATAN(AI123)) -> 57.61631638 | CA123: TANFORCE | CB123: =IF(CA122<>0,CA121/CA122,-100000) -> 1.139872272 | CD123: X5Y5 | CE123: =CE120 -> -40.16765327 | CF123: =CF120 -> 22.21381575 | CI123: =CI122 -> 3.236067977 | CJ123: =-CJ122 -> -2.351141009 | CK123: =CI123*COS(CH122)+CJ123*SIN(CH122) -> 3.90152629 | CL123: =-CI123*SIN(CH122)+CJ123*COS(CH122) -> 0.8820955774
A124: 168.6053029 | B124: 0.3548045714 | C124: 16.67581485 | AB124: 111.859893 | AC124: -58.15530294 | AD124: 950.4122357 | AI124: -2.635085801 | AJ124: 0.3794942843 | AK124: 0.934940488 | AL124: 0.3548045714 | AM124: 58.06983777 | CA124: GONIATAN | CB124: =ATAN2(CA122,CA121) -> -2.290922568 | CG124: dav | CH124: 2 | CJ124: polla
A125: 171.2521673 | B125: 0.3520519737 | C125: 16.54644276 | AB125: 112.859893 | AC125: -60.80216725 | AD125: 972.8800293 | AI125: -2.658642821 | AJ125: 0.3761317586 | AK125: 0.9359804527 | AL125: 0.3520519737 | AM125: 58.52386987 | CE125: =CE120-CE121 -> -0.3667151808 | CF125: =CF120-CF121 -> -3.983154526 | CG125: =(CF125-CF126)/(CE125-CE126) -> -0.877291276 | CJ125: 4
A126: 173.9225886 | B126: 0.3493388018 | C126: 16.41892368 | AB126: 113.859893 | AC126: -63.47258859 | AD126: 995.7244239 | AI126: -2.682199842 | AJ126: 0.3728282973 | AK126: 0.9369964789 | AL126: 0.3493388018 | AM126: 58.97840089 | CE126: =CE120-CE122 -> -3.90152629 | CF126: =CF120-CF122 -> -0.8820955774
A127: 176.6165669 | B127: 0.3466642861 | C127: 16.29322145 | AB127: =AB126+1 -> 114.859893 | AC127: -66.16656694 | AD127: 1018.948729 | AI127: -2.705756862 | AJ127: 0.3695823575 | AK127: 0.9379892711 | AL127: 0.3466642861 | AM127: 59.43341938
A128: 179.3341023 | B128: 0.3440276747 | C128: 16.16930071 | AB128: 115.859893 | AC128: -68.88410231 | AD128: 1042.556256 | AI128: -2.729313883 | AJ128: 0.3663924498 | AK128: 0.9389595087 | AL128: 0.3440276747 | AM128: 59.88891422
A129: 182.0751947 | B129: 0.3414282327 | C129: 16.04712694 | AB129: 116.859893 | AC129: -71.6251947 | AD129: 1066.550316 | AI129: -2.752870904 | AJ129: 0.3632571359 | AK129: 0.9399078476 | AL129: 0.3414282327 | AM129: 60.34487463
A130: 184.8398441 | B130: 0.338865242 | C130: 15.92666638 | AB130: 117.859893 | AC130: -74.38984412 | AD130: 1090.934219 | AI130: -2.776427924 | AJ130: 0.3601750261 | AK130: 0.9408349206 | AL130: 0.338865242 | AM130: 60.80129014
A131: 187.6280506 | B131: 0.3363380009 | C131: 15.80788604 | AB131: 118.859893 | AC131: -77.17805055 | AD131: 1115.711279 | AI131: -2.799984945 | AJ131: 0.3571447775 | AK131: 0.9417413388 | AL131: 0.3363380009 | AM131: 61.25815057
A132: 190.439814 | B132: 0.3338458234 | C132: 15.6907537 | AB132: 119.859893 | AC132: -79.98981401 | AD132: 1140.884808 | AI132: -2.823541965 | AJ132: 0.354165092 | AK132: 0.9426276923 | AL132: 0.3338458234 | AM132: 61.71544604
A133: 193.2751345 | B133: 0.3313880394 | C133: 15.57523785 | AB133: 120.859893 | AC133: -82.82513448 | AD133: 1166.458119 | AI133: -2.847098986 | AJ133: 0.3512347147 | AK133: 0.9434945508 | AL133: 0.3313880394 | AM133: 62.17316696
A134: 196.134012 | B134: 0.3289639938 | C134: 15.46130771 | AB134: 121.859893 | AC134: -85.68401198 | AD134: 1192.434526 | AI134: -2.870656006 | AJ134: 0.3483524316 | AK134: 0.9443424648 | AL134: 0.3289639938 | AM134: 62.63130399
A135: 199.0164465 | B135: 0.3265730467 | C135: 15.34893319 | AB135: 122.859893 | AC135: -88.5664465 | AD135: 1218.817343 | AI135: -2.894213027 | AJ135: 0.3455170683 | AK135: 0.9451719659 | AL135: 0.3265730467 | AM135: 63.08984807
A136: 201.922438 | B136: 0.3242145723 | C136: 15.2380849 | AB136: 123.859893 | AC136: -91.47243803 | AD136: 1245.609885 | AI136: -2.917770048 | AJ136: 0.3427274884 | AK136: 0.9459835681 | AL136: 0.3242145723 | AM136: 63.54879039
A137: 204.8519866 | B137: 0.3218879594 | C137: 15.12873409 | AB137: 124.859893 | AC137: -94.40198659 | AD137: 1272.815467 | AI137: -2.941327068 | AJ137: 0.3399825918 | AK137: 0.9467777678 | AL137: 0.3218879594 | AM137: 64.00812239
A138: 207.8050922 | B138: 0.3195926103 | C138: 15.02085268 | AB138: 125.859893 | AC138: -97.35509217 | AD138: 1300.437404 | AI138: -2.964884089 | AJ138: 0.3372813136 | AK138: 0.9475550451 | AL138: 0.3195926103 | AM138: 64.46783573
A139: 210.7817548 | B139: 0.317327941 | C139: 14.91441323 | AB139: 126.859893 | AC139: -100.3317548 | AD139: 1328.479012 | AI139: -2.988441109 | AJ139: 0.3346226221 | AK139: 0.948315864 | AL139: 0.317327941 | AM139: 64.92792231

Sheet ELLIPSI3
A1: STATH2 | B1: =STATH2 -> 0.72 | C1: maza | D1: =mass_2 -> 3 | E1: 1/2mv1^2+1/2mka^2=1/2mv2^2+1/2mkb^2 | J1: ENERGY | K1: =ENERGY_YP -> -42.89321881 | M1: CC | N1: =CE -> 7.071067812 | O1: LENGTH OF SIDE | P1: DAA | Q1: 1 | R1: DDD | S1: 3 | U1: voo | V1: 2 | AF1: epilogi | AG1: GRAV LEFT | AH1: GRAV RIGHT | AI1: elastic | AN1: TDE.GRAVITATIONLEFT.Value = True Then | AS1: ECCEENTRICITY | BA1: GRAV RIGHT | BB1: GRAV-LEFT | BC1: ELASTIC | BD1: GONFORCE | BE1: TFGRLEFT | BF1: TFGRIGHT | BG1: TFEL | BH1: SIGNDX | BI1: KENXFORC
A2: STATH2 | B2: 0.72 | C2: =6^2/BB^2 -> 0.72 | E2: v2=v1*a/b | H2: mv1a=mv2b | J2: STATHERA | K2: =-absconst -> 171.5728753 | M2: MASS | N2: 5 | O2: f perpendi | P2: dbb | Q2: 4 | R2: L | T2: =ATAN2(#REF!-#REF!,#REF!-#REF!) ->  | U2: v_oo | V2: =voo*(AA+CC)/(AA-CC) -> 11.65685425 | W2: stath22 | X2: =1/2*(v_oo^2-voo^2)/(1/(AA-CC)-1/(AA+CC)) -> 233.137085 | Y2: =1/2*MASS*voo^2-STATH22*MASS/(AA+CC) -> -58.28427125 | Z2: ENERGY22 | AA2: ="pos = " & TEXT(DEGREES(gon_1),"0,00") -> pos = -36,00 | AF2: =R3 -> 1 | AG2: =IF(epilogi=1,TRUE,FALSE) -> TRUE | AH2: =IF(epilogi=2,TRUE,FALSE) -> FALSE | AI2: =IF(epilogi=3,TRUE,FALSE) -> FALSE | AN2: MaSS = Worksheets("ELLIPSi3").Range("MASS").Value | AS2: =1/SQRT(2) -> 0.7071067812 | AU2: C | AV2: =AA*AS2 -> 7.071067812 | AW2: B | AY2: FORCE | AZ2: =IF(epilogi=1,GR_LEFT,IF(epilogi=2,GR_RIGHT,ELZERO)) -> 1.003577008 | BA2: =STATHERA/((AA*COS(gon_1)-CC)^2+(BB*SIN(gon_1)^2)) -> 49.28041666 | BB2: =STATH22/((AA*COS(gon_1)+CC)^2+(BB*SIN(gon_1)^2)) -> 1.003577008 | BC2: =STATH2*((AA*COS(gon_1))^2+(BB*SIN(gon_1))^2)/5 -> 11.91246118 | BD2: =IF(epilogi=1,ATAN(TFGRLEFT),IF(epilogi=2,ATAN(TFGRIGHT),ATAN(TFEL))) -> -0.2675645161 | BE2: =(BB*SIN(gon_1))/(AA*COS(gon_1)+CC) -> -0.2741378669 | BF2: =(BB*SIN(gon_1))/(AA*COS(gon_1)-CC) -> -4.078363932 | BG2: =(BB*SIN(gon_1))/(AA*COS(gon_1)) -> -0.5137431484 | BI2: =IF(epilogi=1,-CC,IF(epilogi=2,CC,0)) -> -7.071067812
A3: mass_2 | B3: 3 | C3: =1/2*mass_2*6^2-1/2*STATH2*mass_2*AA^2 -> -54 | E3: v1^2*(1-a^2/b^2)=k*(-a^2+b2) | H3: dy=(-bb*cosf) | J3: AA | K3: =10 -> 10 | M3: H | N3: =stroformi -> 146.4466094 | O3: ="STEPS = "&TEXT(VIMATA,"0") -> STEPS = 4 | P3: 4 | R3: 1 | S3: ="CHOICE = "&IF(epilogi=1,"gravitation left",IF(epilogi=2,"gravitation right","elastic")) -> CHOICE = gravitation left | T3: -10.5 | U3: =1.3*BB -> 9.192388155 | V3: ="FI_2 = " &TEXT(DEGREES(FI_2),"0,0")&"⁰" -> FI_2 = 7,2⁰ | W3: -11 | X3: =0.9*BB -> 6.363961031 | Y3: ="KK = "&TEXT(KK,"0") -> KK = 20 | Z3: 1 | AA3: =1.3*BB -> 9.192388155 | AB3: perpata | AE3: gonia | AF3: =-perpata*PI()/50 -> -0.6283185307 | AG3: =maza -> 5 | AH3: TANGON | AI3: =IF(gon_1<>0,-(BB*COS(gon_1))/(AA*SIN(gon_1)),SIGN(Xs-AA*COS(gon_1))*10000) -> 0.9732489895 | AJ3: =ATAN(TANGON) -> 0.7718421591 | AK3: =AJ3 -> 0.7718421591 | AL3: TAN | AM3: perp | AN3: perp1 | AP3: =AH5-AH4 -> -1.548722097 | AQ3: =AI5-AI4 -> -1.507292216 | AS3: =2*ENERGY*MASS*H^2/STATHERA^2 -> -312.5 | AU3: =(ECCENTRICITY^2-1)*STATHERA^2/(2*MASS*ENERGY) -> 34.31457505 | AX3: FI1 | AY3: =gon_1 -> -0.6283185307 | AZ3: -28 | BA3: kin energy | BB3: FORCE | BC3: TAN | BD3: perp | BE3: perp1 | BG3: =AY5-AY4 -> -0.9678673872 | BH3: =AZ5-AZ4 -> 0.265329101
A4: energy_3 | B4: =1/2*mass_2*STATH2*AA^2+1/2*mass_2*6^2 -> 162 | C4: =STATHERA -> 171.5728753 | E4: k=v1^2/b^2 | F4: =G9+1/2*STATH2*mass_2*AA^2 -> 115.3593129 | H4: dx=aa*sinf | J4: BB | K4: =SQRT(AA^2-CC^2) -> 7.071067812 | N4: 0.5 | O4: =1.52*BB -> 10.74802307 | Q4: =XP_+SIGN(YP_)*SIN(ATAN(TANFP))*KK/velocity1 -> 0.7838066776 | R4: =AA -> 10 | S4: =1.5*BB -> 10.60660172 | T4: -10.5 | U4: =U3 -> 9.192388155 | W4: -11 | X4: =X3 -> 6.363961031 | Z4: 1 | AA4: =AA3 -> 9.192388155 | AB4: 10 | AE4: forceconst | AF4: =IF(epilogi=1,STATHERA,IF(epilogi = 2,STATH22,STATH2)) -> 171.5728753 | AG4: =energia -> -42.89321881 | AH4: =IF(VIMATA>3,AA*COS(gon_1),1000) -> 8.090169944 | AI4: =IF(VIMATA>3,BB*SIN(gon_1),1000) -> -4.156269378 | AK4: =veLOCITY -> 2.161127011 | AL4: =TANGON -> 0.9732489895 | AM4: =ATAN(AL6) -> -0.7989541677 | AN4: =AH4 -> 8.090169944 | AO4: =AI4 -> -4.156269378 | AP4: =AN5-AN4 -> -7.306363266 | AQ4: =AK4*COS(AL5) -> 1.548722097 | AR4: =AK4*SIN(AL5) -> 1.507292216 | AS4: =MASS*H^2/ABS(STATHERA) -> 625 | AT4: =AA*(1-ECCENTRICITY^2) -> 5 | AX4: X1Y1 | AY4: =IF(VIMATA>4,AA*COS(AY3),100+AA*COS(AY3)) -> 108.0901699 | AZ4: =IF(VIMATA>4,BB*SIN(AY3),100+BB*SIN(AY3)) -> 95.84373062 | BA4: =$AQ$34 -> 35.90941575 | BB4: =FORCE -> 1.003577008 | BC4: =TAN(GONFORCE) -> -0.2741378669 | BD4: =ATAN(BC6) -> 1.303231811 | BE4: =AY4 -> 108.0901699 | BF4: =AZ4 -> 95.84373062 | BG4: =BE5-BE4 -> -107.3063633 | BH4: =BB4*COS(BC5) -> 0.9678673872 | BI4: =BB4*SIN(BC5) -> -0.265329101
A5: ddd_2_2 | B5: 30 | G5: =STATH2 -> 0.72 | H5: =STATHERA -> 171.5728753 | J5: =FI_3/(PI()/50) -> 32 | N5: 0.5 | O5: =O4 -> 10.74802307 | P5: =RX_+SIGN(RY_)*KK/velocity3*SIN(ATAN(TANFR)) -> -3.140481902 | R5: =AA -> 10 | S5: =S4 -> 10.60660172 | T5: ax | U5: =PerPrxP2 -> 0.7838066776 | V5: =QX_+SIGN(QY_)*KK/velocity2*SIN(ATAN(TANFQ)) -> -1.427742966 | W5: -11 | X5: =1.55*BB -> 10.96015511 | Y5: ="FI_1 = "&TEXT(DEGREES(FI_1),"0,0")&"⁰" -> FI_1 = -82,8⁰ | AE5: energia | AF5: =IF(graviminus=TRUE, ENERGY, IF(gravpluc=TRUE,ENERGY22,energy_3)) -> -42.89321881 | AG5: thesix | AH5: =AH4+SIGN(AI4)*veLOCITY/SQRT(1+TANGON^2) -> 6.541447847 | AI5: =AI4+TANGON*(AH5-AH4) -> -5.663561594 | AJ5: SIGNX | AK5: =SIGN(AH5-AH4) -> -1 | AL5: =ATAN(AL4) -> 0.7718421591 | AM5: =ATAN(AL4) -> 0.7718421591 | AN5: =$AO$20 -> 0.7838066776 | AO5: =AO4+TAN(AM4)*(AN5-AN4) -> 3.350918757 | AP5: =(AN5-AN4)*(AH5-AH4)+(AO5-AO4)*(AI5-AI4) -> 0 | AQ5: =1/AK4*1*COS(AM4)*ddd_2 -> 9.681845056 | AR5: =1/AK4*1*SIN(AM4)*ddd_2 -> -9.947963123 | AS5: a*(1-e^2)=m*h^2/K | AU5: kinwrix+stathera/r=energy | AX5: X2Y2 | AY5: =AY4+SIGN(-AY4+KENXFORC)*BB4*COS(BC5) -> 107.1223026 | AZ5: =AZ4+(BC4)*(AY5-AY4) -> 96.10905972 | BA5: SIGNX | BB5: =SIGN(AY5-AY4) -> -1 | BC5: =ATAN(BC4) -> -0.2675645161 | BD5: =ATAN(BC4) -> -0.2675645161 | BE5: =$AO$20 -> 0.7838066776 | BF5: =BF4+TAN(BD4)*(BE5-BE4) -> -295.5883779 | BG5: =(BE5-BE4)*(AY5-AY4)+(BF5-BF4)*(AZ5-AZ4) -> 2.23110419e-12 | BH5: =1/BB4*1*COS(BD4)*ddd_2 -> 7.903232058 | BI5: =1/BB4*1*SIN(BD4)*ddd_2 -> 28.82940671
B6: =STATH22 -> 233.137085 | D6: MIN R2 | E6: =STATHERA -> 171.5728753 | F6: =MIN(D9:D109) -> -189.0617598 | G6: MAX V2 | H6: =MAX(H9:H109) -> 12.90994449 | I6: =H6*F6 -> -2440.776823 | N6: TANFP | O6: =-(BB / AA) / TAN(FI_1) -> 0.08932836016 | P6: TanpRpp | Q6: =-1/TANFP -> -11.19465306 | R6: PerPrxP2 | S6: =XP_+ SIGN(0 - XP_) * 1 / velocity1 * KK * COS(ATAN(TanpRpp)) -> 0.7838066776 | T6: Ay | U6: =YP_ + TanpRpp * (PerPrxP2- XP_) -> -1.759133487 | V6: =XP_+SIGN(YP_)*KK/velocity1*SIN(ATAN(TANFP)) -> 0.7838066776 | W6: -11 | X6: =X5 -> 10.96015511 | Z6: kinisi veloys | AE6: maza | AF6: =IF(graviminus=TRUE, MASS, IF(gravpluc=TRUE,MASS,mass_2)) -> 5 | AG6: VX VY | AH6: =AH5+AN7 -> 6.711256636 | AI6: =AI5+AO7 -> -4.678084565 | AJ6: SIGNY | AK6: =SIGN(AI5-AI4) -> -1 | AL6: =-1/AL4 -> -1.027486297 | AM6: =TAN(AM4) -> -1.027486297 | AN6: x | AO6: y | AQ6: =AQ5*AQ4 -> 14.99448738 | AR6: =AR5*AR4 -> -14.99448738 | AS6: =AA*(1-ECCENTRICITY^2)*ABS(STATHERA)/MASS -> 171.5728753 | AU6: (aa-cc)v1=(aa+cc)v2 | AW6: v2 | AX6: X3Y3 | AY6: =AY5+BE7 -> 107.7471322 | AZ6: =AZ5+BF7 -> 95.32829858 | BA6: SIGNY | BB6: =SIGN(AZ5-AZ4) -> 1 | BC6: =IF(BC4<>0,-1/BC4,SIGN(Xs-AY4)*PI()/2) -> 3.647799596 | BD6: =TAN(BD4) -> 3.647799596 | BE6: x | BF6: y | BH6: =BH5*BH4 -> 7.649280563 | BI6: =BI5*BI4 -> -7.649280563
D7: MAX R2 | F7: =MAX(D9:D109) -> -189.0617598 | G7: MIN V2 | H7: =MIN(H9:H109) -> 2.214996295 | I7: =H7*F7 -> -418.7710975 | L7: =STATH2 -> 0.72 | M7: =1 -> 1 | N7: TANFQ | O7: =-(BB / AA) / TAN(FI_2) -> -5.597326528 | P7: taNprpQ | Q7: =-1/TANFQ -> 0.1786567203 | R7: PerPrxQ2 | S7: =QX_+ SIGN(0 -QX_) * 1 / velocity2 * KK * COS(ATAN(taNprpQ)) -> -1.427742966 | T7: PerPrYq2 | U7: =QY_ + taNprpQ * (PerPrxQ2 - QX_) -> -1.141315669 | V7: Bx | W7: =QX_+SIGN(QY_)*KK/velocity2*SIN(ATAN(TANFQ)) -> -1.427742966 | X7: YB | Y7: =QY_-SIGN(QY_)*KK/velocity2*COS(ATAN(TANFQ)) -> -1.141315669 | Z7: =energia -> -42.89321881 | AA7: FI_1 | AB7: 17 | AC7: =AB7-40 -> -23 | AD7: =AC7*PI()/50 -> -1.445132621 | AE7: pot_energy | AF7: =IF(elasti,1/2*mass_2*STATH2*((AA*COS(gon_1))^2+(BB*SIN(gon_1))^2),IF(graviminus,STATHERA*MASS/SQRT((AA*COS(gon_1)+CC)^2+(BB*SIN(gon_1))^2),STATH22*MASS/SQRT((AA*COS(gon_1)-CC)^2+(BB*SIN(gon_1))^2))) -> 54.56939371 | AH7: =AH5+AN8 -> 7.531165999 | AI7: =AI5+AO8 -> -5.5205302 | AK7: =-AL5 -> -0.7718421591 | AL7: =-AK5*DAA*COS(PI()/5) -> 0.8090169944 | AM7: =-AK5*DAA*SIN(PI()/5) -> 0.5877852523 | AN7: =AL7*COS(AK7)+AM7*SIN(AK7) -> 0.169808789 | AO7: =-AL7*SIN(AK7)+AM7*COS(AK7) -> 0.9854770292 | AS7: =MASS*(AA-CC)*vo -> 146.4466094 | AT7: =MASS*(AA+CC)*vo*(AA-CC)/(AA+CC) -> 146.4466094 | AU7: 12.98886747 | AV7: 2.928932188 | AW7: =-AV7*AU7 -> -38.04351202 | AX7: X4Y4 | AY7: =AY5+BE8 -> 108.0579335 | AZ7: =AZ5+BF8 -> 96.46203954 | BA7: F | BB7: =-BC5 -> 0.2675645161 | BC7: =-BB5*DAA*COS(PI()/5) -> 0.8090169944 | BD7: =-BB6*DAA*SIN(PI()/5) -> -0.5877852523 | BE7: =BC7*COS(BB7)+BD7*SIN(BB7) -> 0.6248296115 | BF7: =-BC7*SIN(BB7)+BD7*COS(BB7) -> -0.7807611393
A8: FI | B8: x | C8: y | D8: moment L | E8: potential | F8: r | G8: kinetic | H8: V | J8: p | L8: =energy_3 -> 162 | N8: TANFR | O8: =-(BB / AA) / TAN(FI_3) -> 0.3327391942 | P8: taNprpR | Q8: =-1/TANFR -> -3.0053568 | R8: PerPrxR2 | S8: =RX_ + SIGN(0 - RX_) * 1 / velocity3 * KK * COS(ATAN(taNprpR)) -> -3.140481902 | T8: PerPrYR2 | U8: =RY_ + taNprpR * (PerPrxR2 - RX_) -> 3.040175194 | V8: Cx | W8: =RX_+SIGN(RY_)*KK/velocity3*SIN(ATAN(TANFR)) -> -3.140481902 | X8: CY | Y8: =RY_-SIGN(RY_)*KK/velocity3*COS(ATAN(TANFR)) -> 3.040175194 | AA8: FI_2 | AB8: 17 | AC8: =AB8-15 -> 2 | AD8: =AC8*PI()/50 -> 0.1256637061 | AE8: kin_energ | AF8: =IF(elasti,energy_3-pot_energy,IF(gravpluc,ENERGY22+pot_energy,ENERGY+pot_energy)) -> 11.6761749 | AH8: =AH5 -> 6.541447847 | AI8: =AI5 -> -5.663561594 | AL8: =AL7 -> 0.8090169944 | AM8: =-AM7 -> -0.5877852523 | AN8: =AL8*COS(AK7)+AM8*SIN(AK7) -> 0.9897181519 | AO8: =-AL8*SIN(AK7)+AM8*COS(AK7) -> 0.1430313943 | AS8: ECCEENTRICITY | AU8: =1/2*MASS*AU7^2 -> 421.7766953 | AV8: =STATHERA/AV7*MASS -> 292.8932188 | AW8: =AV8+AU8 -> 714.6699141 | AX8: X5Y5 | AY8: =AY5 -> 107.1223026 | AZ8: =AZ5 -> 96.10905972 | BA8: =AY3 -> -0.6283185307 | BC8: =BC7 -> 0.8090169944 | BD8: =-BD7 -> 0.5877852523 | BE8: =BC8*COS(BB7)+BD8*SIN(BB7) -> 0.9356309377 | BF8: =-BC8*SIN(BB7)+BD8*COS(BB7) -> 0.352979813
A9: 0 | B9: =AA/COS(A9) -> 10 | C9: =BB*TAN(A9) -> 0 | E9: =IF(elasti,1/2*mass_2*STATH2*((AA*COS($A9))^2+(BB*SIN($A9))^2),IF(graviminus,STATHERA*MASS/SQRT((AA*COS($A9)+CC)^2+(BB*SIN($A9))^2),STATH22*MASS/SQRT((AA*COS($A9)-CC)^2+(BB*SIN($A9))^2))) -> 50.25253169 | F9: =SQRT(B9^2+C9^2) -> 10 | G9: =IF(elasti,energy_3-E9,IF(gravpluc,ENERGY22+E9,ENERGY+E9)) -> 7.359312881 | H9: =SQRT(2*G9/mass_2) -> 2.214996295 | I9: FI1 | J9: =AD7 -> -1.445132621 | K9: -28 | L9: kin energy | M9: VELOCITY1 | N9: TAN | O9: perp | P9: perp1 | R9: =J11-J10 -> -3.77492479 | S9: =K11-K10 -> -0.3372078413 | U9: SCB | V9: =YB - CY + Cx * TANFR - Bx * TANFQ -> -13.21799586 | Z9: ="FI_3 = "&TEXT(DEGREES(FI_3),"0,0")&"⁰" -> FI_3 = 115,2⁰ | AA9: Fi_3 | AB9: 32 | AC9: =AB9 -> 32 | AD9: =AC9*PI()/50 -> 2.010619298 | AE9: velocity | AF9: =SQRT(2*kin_energ/maza) -> 2.161127011 | AJ9: LINE P'P | AK9: =p_3x -> 1.253332336 | AL9: =p_3y -> -7.01531033 | AQ9: min r | AR9: =stroformi/min_r ->  | AS9: =1/2*MASS*AR9^2+STATHERA*MASS/min_r ->  | AT9: =1/2*MASS*AR9^2-STATHERA*MASS/min_r ->  | AU9: v_1 | BA9: =GONFORCE -> -0.2675645161
A10: =A9-PI()/50 -> -0.06283185307 | B10: =AA*COS(A10) -> 9.980267284 | C10: =BB*SIN(A10) -> -0.4439960215 | D10: =IF(elasti,mass_2*$H10*AA*BB/SQRT((AA*SIN($A10))^2+(BB*COS($A10))^2),IF(graviminus,MASS*(-AA*BB-BB*CC*COS(A10))/SQRT((AA*SIN(A10))^2+(BB*COS(A10))^2)*$H10,MASS*(-AA*BB+BB*CC*COS($A10))/SQRT((AA*SIN($A10))^2+(BB*COS($A10))^2)*$H10)) -> -189.0617598 | E10: =IF(elasti,1/2*mass_2*STATH2*((AA*COS($A10))^2+(BB*SIN($A10))^2),IF(graviminus,STATHERA*MASS/SQRT((AA*COS($A10)+CC)^2+(BB*SIN($A10))^2),STATH22*MASS/SQRT((AA*COS($A10)-CC)^2+(BB*SIN($A10))^2))) -> 50.29363949 | F10: =SQRT(B10^2+C10^2) -> 9.990138514 | G10: =IF(elasti,energy_3-E10,IF(gravpluc,ENERGY22+E10,ENERGY+E10)) -> 7.400420681 | H10: 2.221173966 | I10: X1Y1 | J10: =AA*COS(J9) -> 1.253332336 | K10: =BB*SIN(J9) -> -7.01531033 | L10: =$AQ$34 -> 35.90941575 | M10: =$AO$31 -> 3.789955976 | N10: =BB*COS(J9)/(AA*(-SIN(J9))) -> 0.08932836016 | O10: =ATAN(N12) -> -1.481704436 | P10: =J10 -> 1.253332336 | Q10: =K10 -> -7.01531033 | R10: =P11-P10 -> -0.4695256581 | S10: =M10*COS(N11) -> 3.77492479 | T10: =M10*SIN(N11) -> 0.3372078413 | U10: XE | V10: =SCB / (TANFR - TANFQ) -> -2.228979658 | W10: YE | X10: =YB + TANFQ * (XE - Bx) -> 3.343467716 | Y10: =-11 -> -11 | Z10: =1.11*BB -> 7.848885271 | AA10: pollaplasiastis | AB10: 20 | AC10: =AB10 -> 20 | AD10: =AC10 -> 20 | AG10: SPT | AK10: =IF(VIMATA>3,PTX,100) -> -6.383463405 | AL10: =IF(VIMATA>3,PTY,100) -> -7.697492771 | AN10: ElseIf EVRESIVTDE.GRAVITATIONALRIGHT.Value = True Then | AQ10: max r | AR10: =stroformi/max_r ->  | AS10: =1/2*MASS*AR10^2+STATHERA*MASS/max_r ->  | AT10: =1/2*MASS*AR10^2-STATHERA*MASS/max_r ->  | AU10: v_2 | AW10: VO | BC10: =IF(epilogi=2,TRUE,FALSE) -> FALSE
A11: =A10-PI()/50 -> -0.1256637061 | B11: 9.921147013 | C11: -0.8862397936 | D11: -189.0617598 | E11: 50.41720425 | F11: 9.960651536 | G11: 7.523985435 | H11: 2.239640661 | I11: X2Y2 | J11: =J10+SIGN(K10)*M10*COS(N11) -> -2.521592455 | K11: =K10+(N10)*(J11-J10) -> -7.352518171 | L11: SIGNX | M11: =SIGN(J11-J10) -> -1 | N11: =ATAN(N10) -> 0.08909189107 | O11: =ATAN(N10) -> 0.08909189107 | P11: =IF(VIMATA>1,ax,XP_) -> 0.7838066776 | Q11: =IF(VIMATA>1,Q10+TAN(O10)*(P11-P10),YP_) -> -1.759133487 | R11: =(P11-P10)*(J11-J10)+(Q11-Q10)*(K11-K10) -> 0 | S11: =1/M10*1*COS(O10)*ddd_2 -> 0.7042884871 | T11: =1/M10*1*SIN(O10)*ddd_2 -> -7.884265264 | U11: SAB | V11: =YB - Ay + ax * TANFP - Bx * TANFQ -> -7.303709598 | W11: YD_ | X11: =Ay + TANFP * (xd_ - ax) -> -1.943879386 | Y11: =-11 -> -11 | Z11: =Z10 -> 7.848885271 | AD11: TO PT | AF11: SSAA | AG11: PT_X | AH11: PT_Y | AI11: PERPENDICULAF FROM D TO PT | AN11: MaSS = Worksheets("ELLIPSi3").Range("MASS").Value | AS11: stathera*mass/max_r-stathera*mass/min_r=1/2*mass*(v1^2=v2&2) | AZ11: =epilogi -> 1
A12: -0.1884955592 | B12: 9.822872507 | C12: -1.324985982 | D12: -189.0617598 | E12: 50.6239526 | F12: 9.911831927 | G12: 7.730733783 | H12: 2.27020319 | I12: X3Y3 | J12: =J11+P13 -> -1.76808172 | K12: =K11+Q13 -> -6.695082568 | L12: SIGNY | M12: =SIGN(K11-K10) -> -1 | N12: =-1/N10 -> -11.19465306 | O12: =TAN(O10) -> -11.19465306 | P12: x | Q12: y | S12: =S11*S10 -> 2.65863607 | T12: =T11*T10 -> -2.65863607 | W12: XD _ | X12: =SAB / (TANFP - TANFQ) -> -1.284359565 | AD12: TANPER | AE12: =-1/((p_3y-t_3y)/(p_3x-t_3x)) -> -11.19465306 | AF12: =p_3y-S_3Y+AE12*S_3X-AE13*p_3x -> 72.03088243 | AG12: =IF(VIMATA>3,AF12/(AE12-AE13),100) -> -6.383463405 | AH12: =IF(VIMATA>3,S_3Y+AE12*(AG12-S_3X),100) -> -7.697492771 | AI12: TANPER | AJ12: =p_3y-D_3Y+D_3X*AE12-p_3x*AE13 -> 9.194570662 | AK12: =IF(VIMATA>3,AJ12/(AE12-AE13),100) -> -0.8148339069 | AL12: =IF(VIMATA>3,D_3Y+AE12*(AK12-D_3X),100) -> -7.200056229 | AS12: stathera=1/2*(v1^2-v2^2)/(1/ | AV12: energy | AW12: =1/2*MASS*vo^2-MASS*ABS(STATHERA)/(AA-CC) -> -42.89321881 | AZ12: =KENXFORC -> -7.071067812
A13: -0.2513274123 | B13: 9.685831611 | C13: -1.758503056 | D13: -189.0617598 | E13: 50.91510424 | F13: 9.844169188 | G13: 8.021885426 | H13: 2.312557808 | I13: X4Y4 | J13: =J11+P14 -> -1.663486418 | K13: =K11+Q14 -> -7.865990691 | L13: F | M13: =-N11 -> -0.08909189107 | N13: =-M11*DAA*COS(PI()/5) -> 0.8090169944 | O13: =-M12*DAA*SIN(PI()/5) -> 0.5877852523 | P13: =N13*COS(M13)+O13*SIN(M13) -> 0.7535107346 | Q13: =-N13*SIN(M13)+O13*COS(M13) -> 0.6574356035 | U13: Spq | V13: =QY_ - YP_+ XP_ * TANFP - QX_ * TANFQ -> 63.54540761 | W13: Yt | X13: =YP_ + TANFP * (Xt - XP_) -> -6.129070537 | Z13: V | AA13: 9.524067456 | AB13: 5.571289958 | AD13: TANPT | AE13: =(p_3y-t_3y)/(p_3x-t_3x) -> 0.08932836016 | AG13: =IF(VIMATA>3,S_3X,100) -> -7.071067812 | AH13: =IF(VIMATA>3,S_3Y,100) -> 7.993605777e-15 | AI13: TANPER | AJ13: SSAA | AK13: =IF(VIMATA>3,D_3X,100) -> -1.284359565 | AL13: =IF(VIMATA>3,D_3Y,100) -> -1.943879386 | AS13: stathera | AT13: =1/2*(v_o^2-vo^2)/(1/(AA-CC)-1/(AA+CC)) -> -171.5728753 | AW13: =1/2*MASS*vo^2*(AA-CC)^2/(AA+CC)^2-MASS*ABS(STATHERA)/(AA+CC) -> -42.89321881
A14: -0.3141592654 | B14: 9.510565163 | C14: -2.185080122 | D14: -189.0617598 | E14: 51.29238502 | F14: 9.758351544 | G14: 8.39916621 | H14: 2.366314463 | I14: X5Y5 | J14: =J11 -> -2.521592455 | K14: =K11 -> -7.352518171 | L14: =J9 -> -1.445132621 | N14: =N13 -> 0.8090169944 | O14: =-O13 -> -0.5877852523 | P14: =N14*COS(M13)+O14*SIN(M13) -> 0.8581060372 | Q14: =-N14*SIN(M13)+O14*COS(M13) -> -0.5134725201 | W14: Xt | X14: =Spq / (TANFP - TANFQ) -> 11.17447935 | Y14: =xd_-Xt -> -12.45883891 | Z14: S | AA14: -1.216661005e-14 | AB14: 1.243449788e-14 | AD14: TO VT | AE14: STV | AF14: SSAA | AG14: TT_X | AH14: TT_Y | AI14: PERPENDICULAF FROM D TO VT
A15: -0.3769911184 | B15: 9.297764859 | C15: -2.603033675 | D15: -189.0617598 | E15: 51.7580455 | F15: 9.655268804 | G15: 8.864826682 | H15: 2.431025392 | J15: Q | S15: =P11 -> 0.7838066776 | T15: =Q11 -> -1.759133487 | U15: SRQ | V15: =RY_ - QY_ + QX_ * TANFQ - RX_ * TANFR -> -48.60331112 | W15: Yv | X15: =QY_ + TANFQ * (Xv - QX_) -> 10.5419861 | Y15: = YQ + taNFq * (Xv - XQ) | AA15: =$AO$25 -> 11.17447935 | AB15: =$AP$25 -> -6.129070537 | AD15: TANPERVT | AE15: =-1/AE16 -> 0.1786567203 | AF15: =v_3y-S_3Y+AE15*S_3X-AE16*v_3x -> 55.15484537 | AG15: =IF(VIMATA>3,AF15/(AE15-AE16),100) -> 9.548996769 | AH15: =IF(VIMATA>3,S_3Y+AE15*(AG15-S_3X),100) -> 2.96928623 | AI15: TANPER | AJ15: =t_3y-D_3Y+D_3X*AE15-t_3x*AE16 -> 58.13255907 | AK15: =IF(VIMATA>3,AJ15/(AE15-AE16),100) -> 10.06453041 | AL15: =IF(VIMATA>3,D_3Y+AE15*(AK15-D_3X),100) -> 0.08367607667 | BD15: =-(TANFP*XP_*velocity1-YP_*velocity1+TANFQ*QX_*velocity2+QY_*velocity2)*(velocity1-velocity3) -> -126.1861853
A16: -0.4398229715 | B16: 9.048270525 | C16: -3.010714244 | D16: -189.0617598 | E16: 52.31488521 | F16: 9.536015926 | G16: 9.421666395 | H16: 2.506214462 | I16: FI2 | J16: =AD8 -> 0.1256637061 | K16: 1 | L16: energy_3 | M16: velocity2 | N16: TAN | P16: perp2 | S16: =P10 -> 1.253332336 | T16: =Q10 -> -7.01531033 | W16: Xv | X16: =SRQ / (TANFQ - TANFR) -> 8.196083046 | Y16: PerPrYq2 = YQ + taNprpQ * (PerPrxQ2 - XQ) | AD16: TANVT | AE16: =(v_3y-t_3y)/(v_3x-t_3x) -> -5.597326528 | AG16: =IF(VIMATA>3,S_3X,100) -> -7.071067812 | AH16: =IF(VIMATA>3,S_3Y,100) -> 7.993605777e-15 | AI16: TANPER | AJ16: SSAA | AK16: =IF(VIMATA>3,D_3X,100) -> -1.284359565 | AL16: =IF(VIMATA>3,D_3Y,100) -> -1.943879386 | BD16: =((TANFP*XP_+YP_)*velocity1-(TANFQ*QX_+QY_)*velocity2)*(velocity1-velocity3) -> -127.7658945
A17: -0.5026548246 | B17: 8.7630668 | C17: -3.406512898 | D17: -189.0617598 | E17: 52.96628308 | F17: 9.401897142 | G17: 10.07306427 | H17: 2.591404287 | I17: X1Y1 | J17: =AA*COS(J16) -> 9.921147013 | K17: =BB*SIN(J16) -> 0.8862397936 | L17: =$AQ$35 -> 7.523985435 | M17: =$AO$32 -> 1.734818196 | N17: =BB*COS(J16)/(AA*(-SIN(J16))) -> -5.597326528 | O17: =ATAN(N19) -> 0.1767915109 | P17: =J17 -> 9.921147013 | Q17: =K17 -> 0.8862397936 | S17: =M17*COS(N18) -> 0.3051059555 | T17: =M17*SIN(N18) -> -1.707777658 | U17: TaNTd | V17: =(Yt - yd_) / (Xt - xd_) -> -0.3359214433 | W17: TanVE | X17: =(Yv - YE) / (Xv - XE) -> 0.6905012072 | AD17: TO RV | AF17: SSAA | AI17: PERPENDICULAF FROM E TO VT | AT17: =epilogi -> 1 | BD17: =-((TANFP*XP_+YP_)*velocity1-(TANFR*RX_+RY_)*velocity3)*(velocity1-velocity2) -> 111.6252411 | BG17: =epilogi -> 1
A18: -0.5654866776 | B18: 8.443279255 | C18: -3.788867603 | D18: -189.0617598 | E18: 53.71623422 | F18: 9.254430414 | G18: 10.82301541 | H18: 2.686139163 | I18: X2Y2 | J18: =J17+SIGN(K17)*M17*COS(N18) -> 10.22625297 | K18: =K17+(N17)*(J18-J17) -> -0.8215378646 | L18: SIGNX | M18: =SIGN(J18-J17) -> 1 | N18: =ATAN(N17) -> -1.394004816 | P18: =IF(VIMATA>1,Bx,QX_) -> -1.427742966 | Q18: =Q17+TAN(O17)*(P18-P17) -> -1.141315669 | R18: =(P18-P17)*(J18-J17)+(Q18-Q17)*(K18-K17) -> 0 | S18: =1/M17*1*COS(O17)*ddd_2 -> 17.02333497 | T18: =1/M17*1*SIN(O17)*ddd_2 -> 3.041333195 | U18: Stv | V18: =Yv - Yt + Xt * TaNTd - Xv * TanVE -> 7.257904166 | W18: Ys | X18: =Yt + TaNTd * (Xs - Xt) -> 7.993605777e-15 | AA18: =(D_3Y-t_3y)/(D_3X-t_3x) -> -0.3359214433 | AB18: =(v_3y-E_3Y)/(v_3x-E_3X) -> 0.6905012072 | AD18: TANPERRV | AE18: =-1/AE19 -> -3.0053568 | AF18: =r_3y-S_3Y+AE18*S_3X-AE19*r_3x -> 29.06590976 | AG18: =AF18/(AE18-AE19) -> -8.707331908 | AH18: =S_3Y+AE18*(AG18-S_3X) -> 4.917557427 | AI18: TANPER | AJ18: =t_3y-E_3Y+E_3X*AE15-t_3x*AE16 -> 52.67644924 | AK18: =IF(VIMATA>3,AJ18/(AE15-AE16),100) -> 9.119910322 | AL18: =IF(VIMATA>3,E_3Y+AE15*(AK18-E_3X),100) -> 5.371023179 | BD18: =BD17+BD16 -> -16.1406534 | BG18: =CC -> 7.071067812
A19: -0.6283185307 | B19: 8.090169944 | C19: -4.156269378 | D19: -189.0617598 | E19: 54.56939371 | F19: 9.095351827 | G19: 11.6761749 | H19: 2.790002975 | I19: X3Y3 | J19: =J18+P20 -> 10.662593 | K19: =K18+Q20 -> 0.07824398715 | L19: SIGNY | M19: =SIGN(K18-K17) -> -1 | N19: =-1/N17 -> 0.1786567203 | O19: =TAN(O17) -> 0.1786567203 | P19: x | Q19: y | S19: =S18*S17 -> 5.193920881 | T19: =T18*T17 -> -5.193920881 | W19: X_S | X19: =Stv / (TaNTd - TanVE) -> -7.071067812 | AD19: TANRV | AE19: =(v_3y-r_3y)/(v_3x-r_3x) -> 0.3327391942 | AG19: =S_3X -> -7.071067812 | AH19: =S_3Y -> 7.993605777e-15 | AI19: TANPER | AJ19: SSAA | AK19: =IF(VIMATA>3,E_3X,100) -> -2.228979658 | AL19: =IF(VIMATA>3,E_3Y,100) -> 3.343467716 | AO19: use the macro to find A, B, C, D, E, T,V, S | AT19: =IF(epilogi=1,STATHERA,IF(epilogi=2,STATH22,STATH2)) -> 171.5728753 | AV19: energia | AW19: =IF(graviminus=TRUE, ENERGY, IF(gravpluc=TRUE,ENERGY22,energy_3)) -> -42.89321881 | BD19: =BD18/BD15 -> 0.1279114141
A20: -0.6911503838 | B20: 7.705132428 | C20: -4.507268256 | D20: -189.0617598 | E20: 55.53112786 | F20: 8.926619341 | G20: 12.63790905 | H20: 2.90263203 | I20: X4Y4 | J20: =J18+P21 -> 9.505346059 | K20: =K18+Q21 -> -0.1285059552 | L20: F | M20: =-N18 -> 1.394004816 | N20: =-M18*DAA*COS(PI()/5) -> -0.8090169944 | O20: =-M19*DAA*SIN(PI()/5) -> 0.5877852523 | P20: =N20*COS(M20)+O20*SIN(M20) -> 0.436340027 | Q20: =-N20*SIN(M20)+O20*COS(M20) -> 0.8997818518 | X20: =SRQ-KK/velocity2*(1+TANFQ^2)^0.5 +KK/velocity3*(1+TANFR^2)^0.5 -> -110.4246181 | AA20: (Yt - yd_) / (Xt - xd_) | AB20: (Yv - YE) / (Xv - XE) | AI20: PERPENDICULAF FROM E TO RV | AN20: AX | AO20: =ax -> 0.7838066776 | AP20: =Ay -> -1.759133487 | AV20: maza | AW20: =IF(graviminus=TRUE, MASS, IF(gravpluc=TRUE,MASS,mass_2)) -> 5
A21: -0.7539822369 | B21: 7.289686274 | C21: -4.840479006 | D21: -189.0617598 | E21: 56.60757361 | F21: 8.750415018 | G21: 13.71435479 | H21: 3.023723399 | I21: X5Y5 | J21: =J18 -> 10.22625297 | K21: =K18 -> -0.8215378646 | L21: =J16 -> 0.1256637061 | N21: =N20 -> -0.8090169944 | O21: =-O20 -> -0.5877852523 | P21: =N21*COS(M20)+O21*SIN(M20) -> -0.7209069097 | Q21: =-N21*SIN(M20)+O21*COS(M20) -> 0.6930319095 | U21: =Spq-KK/velocity2*(1+TANFQ^2)^0.5+SIGN(YP_)*KK/velocity1*(1+TANFP^2)^0.5 -> -7.303709598 | AI21: TANPER | AJ21: =r_3y-E_3Y+E_3X*AE18-r_3x*AE19 -> 11.17023948 | AK21: =IF(VIMATA>3,AJ21/(AE18-AE19),100) -> -3.346290671 | AL21: =IF(VIMATA>3,E_3Y+AE18*(AK21-E_3X),100) -> 6.701385968 | AN21: BX | AO21: =Bx -> -1.427742966 | AP21: =YB -> -1.141315669 | AV21: STATHERI | AW21: =IF(epilogi=1,STATHERA,IF(epilogi = 2,STATH22,STATH2)) -> 171.5728753
A22: -0.8168140899 | B22: 6.845471059 | C22: -5.154586597 | D22: -189.0617598 | E22: 57.80570667 | F22: 8.569144474 | G22: 14.91248786 | H22: 3.153039576 | J22: R | Z22: LINE AD | AA22: ay | AB22: LINE CE | AD22: LINE EBD | AI22: TANPER | AJ22: SSAA | AK22: =IF(VIMATA>3,E_3X,100) -> -2.228979658 | AL22: =IF(VIMATA>3,E_3Y,100) -> 3.343467716 | AN22: CX | AO22: =Cx -> -3.140481902 | AP22: =CY -> 3.040175194 | AV22: pot_energy | AW22: =IF(elasti,1/2*mass_2*STATH2*((AA*COS(gon_1))^2+(BB*SIN(gon_1))^2),IF(graviminus,STATHERA*MASS/SQRT((AA*COS(gon_1)+CC)^2+(BB*SIN(gon_1))^2),STATH22*MASS/SQRT((AA*COS(gon_1)-CC)^2+(BB*SIN(gon_1))^2))) -> 54.56939371
A23: -0.879645943 | B23: 6.374239897 | C23: -5.44835139 | D23: -189.0617598 | E23: 59.13341927 | F23: 8.38543184 | G23: 16.24020046 | H23: 3.290410355 | I23: FI3 | J23: =AD9 -> 2.010619298 | K23: 20 | L23: energy_3 | M23: velocity3 | N23: TAN | P23: perp3 | V23: SSAA = y2 - y1 + TAN1 * x1 - TAN2 * x2 | Z23: =IF(VIMATA>2,ax,100) -> 0.7838066776 | AA23: =IF(VIMATA>2,Ay,100) -> -1.759133487 | AB23: =IF(VIMATA>2,Cx,100) -> -3.140481902 | AC23: =IF(VIMATA>2,CY,100) -> 3.040175194 | AD23: =IF(VIMATA>2,E_3X,100) -> -2.228979658 | AE23: =IF(VIMATA>2,E_3Y,100) -> 3.343467716 | AK23: =XD -> -7.141428429 | AN23: XD | AO23: =xd_ -> -1.284359565 | AP23: =yd_ -> -1.943879386 | AS23: =energy_3-mass_2*STATH2*(AO29^1+AP29^2) -> 138.8738132 | AV23: kin_energ | AW23: =IF(elasti,energy_3-pot_energy,IF(gravpluc,ENERGY22+pot_energy,ENERGY+pot_energy)) -> 11.6761749 | BA23: sinf | BB23: cos | BC23: duajrubitsa | BE23: right side
A24: -0.9424777961 | B24: 5.877852523 | C24: -5.720614028 | D24: -189.0617598 | E24: 60.59960809 | F24: 8.202107969 | G24: 17.70638927 | H24: 3.435732748 | I24: X1Y1 | J24: =AA*COS(J23) -> -4.257792916 | K24: =BB*SIN(J23) -> 6.398093446 | L24: =$AQ$36 -> 79.84670142 | M24: =$AO$33 -> 5.651431727 | N24: =BB*COS(J23)/(AA*(-SIN(J23))) -> 0.3327391942 | O24: =ATAN(N26) -> -1.249580593 | P24: =IF(VIMATA>1,J24,100) -> -4.257792916 | Q24: =K24 -> 6.398093446 | S24: =M24*COS(N25) -> 5.362373922 | T24: =M24*SIN(N25) -> 1.784271978 | V24: If TAN1 <> TAN2 Then | Z24: =IF(VIMATA>2,xd_,100) -> -1.284359565 | AA24: =IF(VIMATA>2,yd_,100) -> -1.943879386 | AB24: =IF(VIMATA>2,XE,100) -> -2.228979658 | AC24: =IF(VIMATA>2,YE,100) -> 3.343467716 | AD24: =IF(VIMATA>2,D_3X,100) -> -1.284359565 | AE24: =IF(VIMATA>2,D_3Y,100) -> -1.943879386 | AK24: =XE -> -2.228979658 | AN24: XE | AO24: =XE -> -2.228979658 | AP24: =YE -> 3.343467716 | AQ24: =YE -> 3.343467716 | AY24: =ATAN(AZ24) -> 0.08909189107 | AZ24: =TANFP -> 0.08932836016 | BA24: =SIN(AY24) -> 0.08897407869 | BB24: =COS(AY24) -> 0.9960339419 | BC24: =-velocity1*BA24-velocity2*BA25 -> 1.370569817 | BD24: =-(-velocity1*BB24-velocity2*BB25) -> 4.080030746 | BE24: =velocity2*(BB25*QY_-BA25*QX_)+(BB24*YP_-BA24*XP_)*velocity1 -> -9.691392117
A25: -1.005309649 | B25: 5.35826795 | C25: -5.970300017 | D25: -189.0617598 | E25: 62.21427321 | F25: 8.022189085 | G25: 19.32105439 | H25: 3.58896962 | I25: X2Y2 | J25: =J24+SIGN(K24)*M24*COS(N25) -> 1.104581006 | K25: =K24+(N24)*(J25-J24) -> 8.182365424 | L25: SIGNX | M25: =SIGN(J25-J24) -> 1 | N25: =ATAN(N24) -> 0.3212157339 | P25: =IF(VIMATA>1,Cx,100) -> -3.140481902 | Q25: =Q24+TAN(O24)*(P25-P24) -> 3.040175194 | R25: =(P25-P24)*(J25-J24)+(Q25-Q24)*(K25-K24) -> 0 | S25: =1/M24*1*COS(O24)*ddd_2 -> 1.67596652 | T25: =1/M24*1*SIN(O24)*ddd_2 -> -5.036877378 | V25: XLYSH = SSAA / (TAN1 - TAN2) | AA25: D_3Y | AB25: E_3X | AC25: E_3Y | AK25: =Xt -> 11.17447935 | AN25: XT | AO25: =Xt -> 11.17447935 | AP25: =Yt -> -6.129070537 | AQ25: =t_3x -> 11.17447935 | AR25: =t_3y -> -6.129070537 | AY25: =ATAN(AZ25) -> -1.394004816 | AZ25: =TANFQ -> -5.597326528 | BA25: =SIN(AY25) -> -0.9844130422 | BB25: =COS(AY25) -> 0.1758720056 | BC25: =-velocity1*BA24-velocity3*BA26 -> -2.121479819 | BD25: =-(-velocity1*BB24-velocity3*BB26) -> 9.137298712 | BE25: =(RY_*BB26-BA26*RX_)*velocity3+(BB24*YP_-BA24*XP_)*velocity1 -> 15.00112766
A26: -1.068141502 | B26: 4.817536741 | C26: -6.196423959 | D26: -189.0617598 | E26: 63.98862872 | F26: 7.848842598 | G26: 21.09540991 | H26: 3.750147544 | I26: X3Y3 | J26: =J25+P27 -> 0.5225191436 | K26: =K25+Q27 -> 7.369220918 | L26: SIGNY | M26: =SIGN(K25-K24) -> 1 | N26: =-1/N24 -> -3.0053568 | O26: =TAN(O24) -> -3.0053568 | P26: X | Q26: Y | S26: =S25*S24 -> 8.987159163 | T26: =T25*T24 -> -8.987159163 | V26: YLYSH = y1 + TAN1 * (XLYSH - x1) | AA26: LINE RV | AB26: R_3Y | AC26: LINE PT | AK26: =Xv -> 8.196083046 | AN26: XV | AO26: =Xv -> 8.196083046 | AP26: =Yv -> 10.5419861 | AQ26: =v_3x -> 8.196083046 | AR26: =v_3y -> 10.5419861 | AY26: =ATAN(AZ26) -> 0.3212157339 | AZ26: =TANFR -> 0.3327391942 | BA26: =SIN(AY26) -> 0.3157203456 | BB26: 0.9488522874
A27: -1.130973355 | B27: 4.257792916 | C27: -6.398093446 | D27: -189.0617598 | E27: 65.9352254 | F27: 7.685336704 | G27: 23.04200659 | H27: 3.919354248 | I27: X4Y4 | J27: =J25+P28 -> 0.1513676176 | K27: =K25+Q28 -> 8.48466368 | L27: F | M27: =-N25 -> -0.3212157339 | N27: =-M25*DAA*COS(PI()/5) -> -0.8090169944 | O27: =-M26*DAA*SIN(PI()/5) -> -0.5877852523 | P27: =N27*COS(M27)+O27*SIN(M27) -> -0.5820618627 | Q27: =-N27*SIN(M27)+O27*COS(M27) -> -0.8131445062 | U27: SSAA | V27: =Q18-Q11+P11*N10-P18*N17 -> -7.303709598 | X27: =V27/(N10-N17) -> -1.284359565 | Y27: =Q11+N10*(X27-P11) -> -1.943879386 | Z27: R_3X | AA27: =IF(VIMATA>3,RX_,100) -> -4.257792916 | AB27: =IF(VIMATA>3,RY_,100) -> 6.398093446 | AC27: =IF(VIMATA>3,AO28,100) -> 1.253332336 | AD27: =IF(VIMATA>3,AP28,100) -> -7.01531033 | AE27: P_3Y | AN27: XS | AO27: =Xs -> -7.071067812 | AP27: =Ys -> 7.993605777e-15 | AQ27: =S_3X -> -7.071067812 | AR27: =S_3Y -> 7.993605777e-15 | AV27: pot_energy | AW27: KINETIC | AX27: VELOCITY | BC27: diakrinoysa | BD27: x | BE27: y
A28: -1.193805208 | B28: 3.681245527 | C28: -6.574512582 | D28: -189.0617598 | E28: 68.0680857 | F28: 7.534970757 | G28: 25.17486689 | H28: 4.096735846 | I28: X5Y5 | J28: =J25 -> 1.104581006 | K28: =K25 -> 8.182365424 | L28: =J23 -> 2.010619298 | N28: =N27 -> -0.8090169944 | O28: =-O27 -> 0.5877852523 | P28: =N28*COS(M27)+O28*SIN(M27) -> -0.9532133887 | Q28: =-N28*SIN(M27)+O28*COS(M27) -> 0.3022982561 | U28: D | Z28: v_3X | AA28: =IF(VIMATA>3,Xv,100) -> 8.196083046 | AB28: =IF(VIMATA>3,Yv,100) -> 10.5419861 | AC28: =IF(VIMATA>3,$AO$25,100) -> 11.17447935 | AD28: =IF(VIMATA>3,$AP$25,p_3y) -> -6.129070537 | AE28: T_3Y | AG28: PerPrYq2 = YQ + taNprpQ * (PerPrxQ2 - XQ) | AL28: XP_ | AM28: YP_ | AN28: P | AO28: =AT28 -> 1.253332336 | AP28: =AU28 -> -7.01531033 | AQ28: =AA*COS(FI_1) -> 1.253332336 | AS28: P | AT28: =AA*COS(FI_1) -> 1.253332336 | AU28: =BB*SIN(FI_1) -> -7.01531033 | AV28: =IF(elasti,1/2*mass_2*STATH2*((AA*COS(FI_1))^2+(BB*SIN(FI_1))^2),IF(graviminus,STATHERA*MASS/SQRT((AA*COS(FI_1)+CC)^2+(BB*SIN(FI_1))^2),STATH22*MASS/SQRT((AA*COS(FI_1)-CC)^2+(BB*SIN(FI_1))^2))) -> 78.80263457 | AW28: =IF(elasti,energy_3-AV28,IF(gravpluc,ENERGY22+AV28,ENERGY+AV28)) -> 35.90941575 | AX28: =SQRT(2*AW28/maza) -> 3.789955976 | AY28: velocity1 | BC28: =BC24*BD25-BC25*BD24 -> 21.17900871 | BD28: =(BE24*BD25-BE25*BD24)/BC28 -> -7.071067812 | BE28: =(BC24*BE25-BE24*BC25)/BC28 -> 3.019444729e-15
A29: -1.256637061 | B29: 3.090169944 | C29: -6.72498512 | D29: -189.0617598 | E29: 70.40285067 | F29: 7.400984741 | G29: 27.50963186 | H29: 4.282493966 | U29: SAA2 | V29: =Q25-Q18+N17*P18-N24*P25 -> 13.21799586 | X29: =V29/(N17-N24) -> -2.228979658 | Y29: =Q18+N17*(X29-P18) -> 3.343467716 | AB29: V_3Y | AC29: T_3X | AG29: PeRpRxq1 = XQ: PeRpRYQ1 = YP | AL29: QX_ | AM29: QY_ | AN29: Q | AO29: 9.921147013 | AP29: 0.8862397936 | AQ29: =AA*COS(FI_2) -> 9.921147013 | AR29: =BB*SIN(FI_2) -> 0.8862397936 | AS29: Q | AT29: =AA*COS(FI_2) -> 9.921147013 | AU29: =BB*SIN(FI_2) -> 0.8862397936 | AV29: =IF(elasti,1/2*mass_2*STATH2*((AA*COS(FI_2))^2+(BB*SIN(FI_2))^2),IF(graviminus,STATHERA*MASS/SQRT((AA*COS(FI_2)+CC)^2+(BB*SIN(FI_2))^2),STATH22*MASS/SQRT((AA*COS(FI_2)-CC)^2+(BB*SIN(FI_2))^2))) -> 50.41720425 | AW29: =IF(elasti,energy_3-AV29,IF(gravpluc,ENERGY22+AV29,ENERGY+AV29)) -> 7.523985435 | AX29: =SQRT(2*AW29/maza) -> 1.734818196 | AY29: velocity2
A30: -1.319468915 | B30: 2.486898872 | C30: -6.848917214 | D30: -189.0617598 | E30: 72.95693781 | F30: 7.286448586 | G30: 30.063719 | H30: 4.47688277 | U30: E | Z30: TANVT | AA30: LINEVT | AD30: LINE VE | AG30: PerPrxQ2 = XQ + Sgn(0 - XQ) * 1 / VELOCITY2 * KK * Cos(Atn(taNprpQ)): | AL30: RX_ | AM30: RY_ | AN30: R | AO30: =AT30 -> -4.257792916 | AP30: =AU30 -> 6.398093446 | AS30: R | AT30: =AA*COS(FI_3) -> -4.257792916 | AU30: =BB*SIN(FI_3) -> 6.398093446 | AV30: =IF(elasti,1/2*mass_2*STATH2*((AA*COS(FI_3))^2+(BB*SIN(FI_3))^2),IF(graviminus,STATHERA*MASS/SQRT((AA*COS(FI_3)+CC)^2+(BB*SIN(FI_3))^2),STATH22*MASS/SQRT((AA*COS(FI_3)-CC)^2+(BB*SIN(FI_3))^2))) -> 122.7399202 | AW30: =IF(elasti,energy_3-AV30,IF(gravpluc,ENERGY22+AV30,ENERGY+AV30)) -> 79.84670142 | AX30: =SQRT(2*AW30/maza) -> 5.651431727 | AY30: velocity3
A31: -1.382300768 | B31: 1.873813146 | C31: -6.945819761 | D31: -189.0617598 | E31: 75.74970756 | F31: 7.194135657 | G31: 32.85648875 | H31: 4.680205747 | Z31: =(v_3y-r_3y)/(v_3x-r_3x) -> 0.3327391942 | AA31: =AA28 -> 8.196083046 | AB31: =IF(VIMATA>3,AB28,100) -> 10.5419861 | AC31: TAN1 | AD31: =(Yv-YE)/(Xv-XE) -> 0.6905012072 | AG31: Bx = PerPrxQ2: YB = PerPrYq2 | AN31: velocity1 | AO31: =AX28 -> 3.789955976 | AP31: FI1 | AQ31: =FI_1 -> -1.445132621 | AR31: =FI_1 -> -1.445132621 | AX31: =MASS -> 5
A32: -1.445132621 | B32: 1.253332336 | C32: -7.01531033 | D32: -189.0617598 | E32: 78.80263457 | F32: 7.126389056 | G32: 35.90941575 | H32: 4.892812126 | I32: SCB | J32: =-SRQ+KK/v3_x -KK/v2_x -> -13.21799586 | K32: xe | L32: =J32/(TANFR-TANFQ) -> -2.228979658 | U32: SA33 | V32: =Q24-Q17+N17*P17-N24*P24 -> -48.60331112 | X32: =V32/(N17-N24) -> 8.196083046 | Y32: =Q17+N17*(X32-P17) -> 10.5419861 | AA32: =IF(VIMATA>3,AC28,100) -> 11.17447935 | AB32: =IF(VIMATA>3,AD28,100) -> -6.129070537 | AD32: X1 | AE32: =IF(VIMATA>3,Xv,-100) -> 8.196083046 | AF32: =IF(VIMATA>3,-20,-100) -> -20 | AN32: velocity2 | AO32: =AX29 -> 1.734818196 | AP32: FI2 | AQ32: =FI_2 -> 0.1256637061 | AR32: =FI_2 -> 0.1256637061
A33: -1.507964474 | B33: 0.6279051953 | C33: -7.057114675 | D33: -189.0617598 | E33: 82.1394775 | F33: 7.08499347 | G33: 39.24625869 | H33: 5.115092615 | J33: =SCB -> -13.21799586 | L33: =XE -> -2.228979658 | U33: V | AD33: Y1 | AE33: =IF(VIMATA>3,Yv,-100) -> 10.5419861 | AF33: =IF(VIMATA>3,AE33+AD31*(AF32-AE32),-100) -> -8.927443284 | AN33: velocity3 | AO33: 5.651431727 | AP33: FI3 | AQ33: =FI_3 -> 2.010619298 | AR33: =FI_3 -> 2.010619298 | AU33: =XP_ -> 1.253332336 | AV33: =SIN(ATAN(TANFP)) -> 0.08897407869 | AW33: =COS(ATAN(TANFP)) -> 0.9960339419
A34: -1.570796327 | B34: -6.04876392e-15 | C34: -7.071067812 | D34: -189.0617598 | E34: 85.78643763 | F34: 7.071067812 | G34: 42.89321881 | H34: 5.347474096 | U34: SA44 | V34: =Q17-Q10+N10*O10-N17*P17 -> 63.30109126 | X34: =V34/(N10-N17) -> 11.13151624 | Y34: =Q10+N10*(X34-P10) -> -6.13290836 | AD34: LINE DT | AF34: \ | AN34: AA | AO34: =AA -> 10 | AP34: KIN1 | AQ34: =AW28 -> 35.90941575 | AU34: =QX_ -> 9.921147013 | AV34: =SIN(ATAN(TANFQ)) -> -0.9844130422 | AW34: =COS(ATAN(TANFQ)) -> 0.1758720056
A35: -1.63362818 | B35: -0.6279051953 | C35: -7.057114675 | D35: -189.0617598 | E35: 89.77229166 | F35: 7.08499347 | G35: 46.87907285 | H35: 5.590412796 | O35: =(-TANFQ*SIGN(YP_)*velocity2*COS(ATAN(TANFQ))+ TANFP*COS(ATAN(TANFP))*SIGN(QY_)*velocity1) -> -1.370569817 | U35: T | AC35: TAN2 | AD35: =(AD28-AA24)/(AC28-Z24) -> -0.3359214433 | AN35: BB | AO35: =BB -> 7.071067812 | AP35: KN2 | AQ35: =AW29 -> 7.523985435 | AU35: =YP_ -> -7.01531033 | AV35: =SIN(ATAN(TANFR)) -> 0.3157203456 | AW35: =COS(ATAN(TANFf)) -> 
A36: -1.696460033 | B36: -1.253332336 | C36: -7.01531033 | D36: -189.0617598 | E36: 94.12847791 | F36: 7.126389056 | G36: 51.2352591 | H36: 5.844385288 | O36: =SIGN(QY_)*velocity1*COS(ATAN(TANFP))-SIGN(YP_)*velocity2*COS(ATAN(TANFQ)) -> 4.080030746 | V36: =Spq-KK/velocity2*(1+TANFQ^2)^0.5+SIGN(YP_)*KK/velocity1*(1+TANFP^2)^0.5 -> -7.303709598 | W36: =SAB -> -7.303709598 | AB36: XLYSH | AC36: S_3Y | AD36: X2 | AE36: =t_3x -> 11.17447935 | AF36: =IF(VIMATA>3,-20,100) -> -20 | AN36: CC | AO36: =CC -> 7.071067812 | AP36: KIN3 | AQ36: =AW30 -> 79.84670142 | AU36: =QY_ -> 0.8862397936 | AW36: =(SIN(ATAN(TANFP))*XP_-COS(ATAN(TANFP))*YP_)*velocity1 -> 26.90490237 | AX36: =(SIN(ATAN(TANFQ))*QX_-COS(ATAN(TANFQ))*QY_)*velocity2 -> -17.21351025 | AY36: =(AX36+AW36)*(COS(ATAN(TANFP))*velocity1+COS(ATAN(TANFR))*velocity3) -> 88.55314471
A37: -1.759291886 | B37: -1.873813146 | C37: -6.945819761 | D37: -189.0617598 | E37: 98.88910548 | F37: 7.194135657 | G37: 55.99588667 | H37: 6.109876522 | O37: =O35/O36 -> -0.3359214433 | V37: =SRQ -> -48.60331112 | Y37: SVTD | Z37: =AE37-AE33+AE32*AD31-AE36*AD35 -> -7.257904166 | AA37: S-3X | AB37: =IF(VIMATA>3,X_S,1000) -> -7.071067812 | AC37: =IF(VIMATA>3,Ys,1000) -> 7.993605777e-15 | AD37: Y2 | AE37: =t_3y -> -6.129070537 | AF37: =IF(VIMATA>3,AE37+AD35*(AF36-AE36),100) -> 4.343105561 | AW37: =-(SIN(ATAN(TANFP))*XP_-COS(ATAN(TANFP))*YP_)*velocity1 -> -26.90490237 | AX37: =-(SIN(ATAN(TANFR))*RX_-COS(ATAN(TANFR))*RY_)*velocity3 -> 41.90603003 | AY37: =(AW37+AX37)*(COS(ATAN(TANFP))*velocity1+-COS(ATAN(TANFQ))*velocity2) -> 52.05119531 | BB37: OK
A38: -1.822123739 | B38: -2.486898872 | C38: -6.848917214 | D38: -189.0617598 | E38: 104.0908444 | F38: 7.286448586 | G38: 61.19762562 | H38: 6.38736386 | V38: =-SRQ-KK/v2_x+KK/v3_x -> -13.21799586 | W38: =SCB -> -13.21799586 | AB38: =AB37 -> -7.071067812 | AC38: =AC37 -> 7.993605777e-15
A39: -1.884955592 | B39: -3.090169944 | C39: -6.72498512 | D39: -189.0617598 | E39: 109.7726387 | F39: 7.400984741 | G39: 66.87941989 | H39: 6.677295855 | L39: =TanVE -> 0.6905012072 | V39: SSAA = y2 - y1 + TAN1 * x1 - TAN2 * x2 | AB39: =CC -> 7.071067812 | AE39: SSAA | AF39: RTT_X | AG39: RTT_Y
A40: -1.947787445 | B40: -3.681245527 | C40: -6.574512582 | D40: -189.0617598 | E40: 115.9751631 | F40: 7.534970757 | G40: 73.08194433 | H40: 6.980064199 | L40: =(-TANFQ*v2_x+TANFR*v3_x)/(v3_x-v2_x) -> 0.6905012072 | Z40: find the perpendicular from S to RV | AC40: TANRRX | AD40: =(r_3y-v_3y)/(r_3x-v_3x) -> 0.3327391942 | AE40: =S_3Y-r_3y+r_3x*AD40-S_3X*AD41 -> -29.06590976 | AF40: =IF(VIMATA>3,AE40/(AD40-AD41),100) -> -8.707331908 | AG40: =IF(VIMATA>3,r_3y+AD40*(AF40-r_3x),100) -> 4.917557427
A41: -2.010619298 | B41: -4.257792916 | C41: -6.398093446 | D41: -189.0617598 | E41: =IF(elasti,1/2*mass_2*STATH2*((AA*COS($A41))^2+(BB*SIN($A41))^2),IF(graviminus,STATHERA*MASS/SQRT((AA*COS($A41)+CC)^2+(BB*SIN($A41))^2),STATH22*MASS/SQRT((AA*COS($A41)-CC)^2+(BB*SIN($A41))^2))) -> 122.7399202 | F41: 7.685336704 | G41: =IF(elasti,energy_3-E41,IF(gravpluc,ENERGY22+E41,ENERGY+E41)) -> 79.84670142 | H41: =SQRT(2*G41/mass_2) -> 7.295966988 | AC41: KATH FROM S | AD41: =-1/AD40 -> -3.0053568 | AE41: LINE SR' | AF41: =IF(VIMATA>3,S_3X,100) -> -7.071067812 | AG41: =IF(VIMATA>3,S_3Y,100) -> 7.993605777e-15
A42: -2.073451151 | B42: =AA*COS(A42) -> -4.817536741 | C42: =BB*SIN(A42) -> -6.196423959 | D42: =IF(elasti,mass_2*$H42*AA*BB/SQRT((AA*SIN($A42))^2+(BB*COS($A42))^2),IF(graviminus,MASS*(-AA*BB-BB*CC*COS(A42))/SQRT((AA*SIN(A42))^2+(BB*COS(A42))^2)*$H42,MASS*(-AA*BB+BB*CC*COS($A42))/SQRT((AA*SIN($A42))^2+(BB*COS($A42))^2)*$H42)) -> -189.0617598 | E42: 130.1078417 | F42: 7.848842598 | G42: 87.21462291 | H42: 7.625161109 | V42: point at which the lines VE and TD meet | AE42: LINE R'R | AF42: =RTT_X -> -8.707331908 | AG42: =RTT_Y -> 4.917557427
A43: -2.136283004 | B43: -5.35826795 | C43: -5.970300017 | D43: -189.0617598 | E43: 138.1172259 | F43: 8.022189085 | G43: 95.22400706 | H43: 7.967601356 | N43: tanve | AF43: =r_3x -> -4.257792916 | AG43: =r_3y -> 6.398093446
A44: -2.199114858 | B44: -5.877852523 | C44: -5.720614028 | D44: -189.0617598 | E44: 146.8008079 | F44: 8.202107969 | G44: 103.907589 | H44: 8.322963777 | O44: =SIGN(QY_)*velocity3*COS(ATAN(TANFR))-SIGN(RY_)*velocity2*COS(ATAN(TANFQ)) -> 5.057267966
A45: -2.261946711 | B45: -6.374239897 | C45: -5.44835139 | D45: -189.0617598 | E45: 156.1817355 | F45: 8.38543184 | G45: 113.2885167 | H45: 8.690551063 | O45: =O43/O44 -> 0
A46: -2.324778564 | B46: -6.845471059 | C46: -5.154586597 | D46: -189.0617598 | E46: 166.2682209 | F46: 8.569144474 | G46: 123.3750021 | H46: 9.06917865 | N46: stathera=1/2*(v1^2-v2^2)/(1/ | Y46: Determinant
A47: -2.387610417 | B47: -7.289686274 | C47: -4.840479006 | D47: -189.0617598 | E47: 177.0466841 | F47: 8.750415018 | G47: 134.1534653 | H47: 9.457042009 | N47: stathera | O47: =1/2*(v_o^2-vo^2)/(1/(AA-CC)-1/(AA+CC)) -> -171.5728753
A48: -2.45044227 | B48: -7.705132428 | C48: -4.507268256 | D48: -189.0617598 | E48: 188.4733312 | F48: 8.926619341 | G48: 145.5801124 | H48: 9.851568824 | O48: =v_o -> 1.715728753
A49: -2.513274123 | B49: -8.090169944 | C49: -4.156269378 | D49: -189.0617598 | E49: 200.4643615 | F49: 9.095351827 | G49: 157.5711426 | H49: 10.24926478 | N49: =10 -> 10 | O49: =vo*(AA-CC)/(AA+CC) -> 1.715728753 | P49: v_` | U49: =SIGN(YP_)*(-TANFQ+TANFR)*v1_x*v3_x -> -120.0397008 | V49: =(TANFQ*SIGN(YP_)+TANFQ)*v2_x*v1_x -> 0 | W49: =(TANFP-TANFR)*v3_x+v1_x -> 2.469664882 | X49: =-TANFP*v1_x^2-TANFQ*SIGN(YP_)*v2_x^2 -> -1.793987374 | Y49: =SUM(U49:X49) -> -119.3640233
A50: -2.576105976 | B50: -8.443279255 | C50: -3.788867603 | D50: -189.0617598 | E50: 212.8854207 | F50: 9.254430414 | G50: 169.9922019 | H50: 10.64556878 | P50: V1X | Q50: =velocity1*COS(ATAN(TANFP)) -> 3.77492479 | R50: v1_x | S50: =ABS(SIGN(YP_)*velocity1*COS(ATAN(TANFP))) -> 3.77492479 | T50: v1_y | U50: =velocity1*SIN(ATAN(TANFP)) -> 0.3372078413 | V50: v12x | W50: =V1X+V2X -> 4.080030746 | X50: v1xp | Y50: =V1X*YP_-v1_y*XP_ -> -26.90490237 | Z50: v12y | AA50: =v1_y+v2_y -> -1.370569817 | AB50: sx | AC50: =(v2xq+v1xp)*v13x-(v3xr+v1xp)*v12x -> -149.7582068 | AD50: =AC50/Determinant -> -7.071067812
A51: -2.638937829 | B51: -8.7630668 | C51: -3.406512898 | D51: -189.0617598 | E51: 225.5415343 | F51: 9.401897142 | G51: 182.6483155 | H51: 11.03474257 | P51: V2X | Q51: =velocity2*COS(ATAN(TANFQ)) -> 0.3051059555 | R51: v2_x | S51: =SIGN(QY_)*velocity2*COS(ATAN(TANFQ)) -> 0.3051059555 | T51: v2_y | U51: =velocity2*SIN(ATAN(TANFQ)) -> -1.707777658 | V51: v13x | W51: =V1X+V3X -> 9.137298712 | X51: v2xq | Y51: =V2X*QY_-v2_y*QX_ -> 17.21351025 | Z51: v13y | AA51: =v1_y+v3_y -> 2.121479819 | AB51: YS | AC51: =v12y*(v3xr+v1xp)-v13y*(v2xq+v1xp) -> -8.526512829e-14
A52: -2.701769682 | B52: -9.048270525 | C52: -3.010714244 | D52: -189.0617598 | E52: 238.1695259 | F52: 9.536015926 | G52: 195.2763071 | H52: 11.4098293 | P52: V3X | Q52: =velocity3*COS(ATAN(TANFR)) -> 5.362373922 | R52: v3_x | S52: =SIGN(RY_)*velocity3*COS(ATAN(TANFR)) -> 5.362373922 | T52: v3_y | U52: =velocity3*SIN(ATAN(TANFR)) -> 1.784271978 | V52: v23x | W52: =V2X+V3X -> 5.667479877 | X52: v3xr | Y52: =V3X*RY_-v3_y*RX_ -> 41.90603003 | Z52: v23y | AA52: =v2_y+v3_y -> 0.07649431969
A53: -2.764601535 | B53: -9.297764859 | C53: -2.603033675 | D53: -189.0617598 | E53: 250.4357107 | F53: 9.655268804 | G53: 207.5424919 | H53: 11.76272338 | P53: =FI_1 -> -1.445132621 | Q53: =TAN(P53) -> -7.915815088 | R53: =-TANFP -> -0.08932836016 | AC53: =S_3X -> -7.071067812
A54: -2.827433388 | B54: -9.510565163 | C54: -2.185080122 | D54: -189.0617598 | E54: 261.9421308 | F54: 9.758351544 | G54: 219.048912 | H54: 12.08439523 | M54: =-TANFQ*v2_x+TANFP*v3_x -> 2.186789727 | Y54: Det= | Z54: =-v12y*v13x+v12x*v13y -> 21.17900871
A55: -2.890265241 | B55: -9.685831611 | C55: -1.758503056 | D55: -189.0617598 | E55: 272.2443155 | F55: 9.844169188 | G55: 229.3510967 | H55: 12.36530352 | M55: =v3_x-v2_x -> 5.057267966 | N55: tanve | R55: =(v1_x-SIGN(YP_)*v2_x) -> 4.080030746 | S55: =(v3_x-v1_x) -> 1.587449132 | T55: =S55*R55 -> 6.476841264
A56: -2.953097094 | B56: -9.822872507 | C56: -1.324985982 | D56: -189.0617598 | E56: 280.88204 | F56: 9.911831927 | G56: 237.9888212 | H56: 12.59599993 | M56: =M54/M55 -> 0.4324053504 | N56: =TanVE -> 0.6905012072 | O56: =TanVE -> 0.6905012072 | V56: Determinant
A57: -3.015928947 | B57: -9.921147013 | C57: -0.8862397936 | D57: -189.0617598 | E57: 287.4216321 | F57: 9.960651536 | G57: 244.5284133 | H57: 12.76788715 | R57: =-TANFQ*SIGN(YP_)*v2_x+TANFP*v1_x -> -1.370569817 | S57: =TANFQ*v2_x-TANFR*v3_x -> -3.492049636
A58: -3.078760801 | B58: -9.980267284 | C58: -0.4439960215 | D58: -189.0617598 | E58: 291.5045207 | F58: 9.990138514 | G58: 248.6113019 | H58: 12.87403852 | J58: tabve | R58: =R57*S55 -> -2.175709866 | S58: =-S57*R55 -> 14.24766988 | T58: =S58+R58 -> 12.07196002 | U58: =T58/T55 -> 1.863865351
A59: -3.141592654 | B59: -10 | C59: 1.797479872e-14 | D59: -189.0617598 | E59: 292.8932188 | F59: 10 | G59: 250 | H59: 12.90994449
A60: -3.204424507 | B60: -9.980267284 | C60: 0.4439960215 | D60: -189.0617598 | E60: 291.5045207 | F60: 9.990138514 | G60: 248.6113019 | H60: 12.87403852 | M60: =-TANFQ*v2_x+TANFR*v3_x -> 3.492049636 | U60: =Stv -> 7.257904166 | V60: =U60/U58 -> 3.894006701 | W60: =Stv -> 7.257904166
A61: -3.26725636 | B61: -9.921147013 | C61: 0.8862397936 | D61: -189.0617598 | E61: 287.4216321 | F61: 9.960651536 | G61: 244.5284133 | H61: 12.76788715 | K61: TANVE | M61: =v3_x-v2_x -> 5.057267966 | N61: =M60/M61 -> 0.6905012072 | U61: =TaNTd -> -0.3359214433 | V61: =TanVE -> 0.6905012072 | W61: =U61-V61 -> -1.026422651 | X61: =W60/W61 -> -7.071067812
A62: -3.330088213 | B62: -9.822872507 | C62: 1.324985982 | D62: -189.0617598 | E62: 280.88204 | F62: 9.911831927 | G62: 237.9888212 | H62: 12.59599993 | K62: =TanVE -> 0.6905012072 | M62: =SIGN(YP_) -> -1 | X62: =X_S -> -7.071067812
A63: -3.392920066 | B63: -9.685831611 | C63: 1.758503056 | D63: -189.0617598 | E63: 272.2443155 | F63: 9.844169188 | G63: 229.3510967 | H63: 12.36530352 | M63: =(-TANFQ*SIGN(YP_)*v2_x+SIGN(QY_)*TANFP*v1_x)/(v1_x-SIGN(YP_)*v2_x) -> -0.3359214433
A64: -3.455751919 | B64: -9.510565163 | C64: 2.185080122 | D64: -189.0617598 | E64: 261.9421308 | F64: 9.758351544 | G64: 219.048912 | H64: 12.08439523 | Q64: =-TaNTd -> 0.3359214433
A65: -3.518583772 | B65: -9.297764859 | C65: 2.603033675 | D65: -189.0617598 | E65: 250.4357107 | F65: 9.655268804 | G65: 207.5424919 | H65: 11.76272338
A66: -3.581415625 | B66: -9.048270525 | C66: 3.010714244 | D66: -189.0617598 | E66: 238.1695259 | F66: 9.536015926 | G66: 195.2763071 | H66: 11.4098293 | O66: =TANFQ*SIGN(YP_)/v1_x+TANFP/v2_x -> 1.775543205 | Q66: =O66/O67 -> -0.5012181591
A67: -3.644247478 | B67: -8.7630668 | C67: 3.406512898 | D67: -189.0617598 | E67: 225.5415343 | F67: 9.401897142 | G67: 182.6483155 | H67: 11.03474257 | O67: =-1/v2_x+SIGN(YP_)/v1_x -> -3.54245586
A68: -3.707079331 | B68: -8.443279255 | C68: 3.788867603 | D68: -189.0617598 | E68: 212.8854207 | F68: 9.254430414 | G68: 169.9922019 | H68: 10.64556878
A69: -3.769911184 | B69: -8.090169944 | C69: 4.156269378 | D69: -189.0617598 | E69: 200.4643615 | F69: 9.095351827 | G69: 157.5711426 | H69: 10.24926478
A70: -3.832743037 | B70: -7.705132428 | C70: 4.507268256 | D70: -189.0617598 | E70: 188.4733312 | F70: 8.926619341 | G70: 145.5801124 | H70: 9.851568824 | P70: =(SIGN(YP_)*TANFQ*v2_x +TANFP*v1_x)/(-v1_x+SIGN(YP_)*v2_x) -> -0.5012181591
A71: -3.89557489 | B71: -7.289686274 | C71: 4.840479006 | D71: -189.0617598 | E71: 177.0466841 | F71: 8.750415018 | G71: 134.1534653 | H71: 9.457042009 | P71: =-v1_x+SIGN(YP_)*v2_x -> -4.080030746
A72: -3.958406744 | B72: -6.845471059 | C72: 5.154586597 | D72: -189.0617598 | E72: 166.2682209 | F72: 8.569144474 | G72: 123.3750021 | H72: 9.06917865 | Q72: =Spq -> 63.54540761
A73: -4.021238597 | B73: -6.374239897 | C73: 5.44835139 | D73: -189.0617598 | E73: =IF(elasti,1/2*mass_2*STATH2*((AA*COS($A73))^2+(BB*SIN($A73))^2),IF(graviminus,STATHERA*MASS/SQRT((AA*COS($A73)+CC)^2+(BB*SIN($A73))^2),STATH22*MASS/SQRT((AA*COS($A73)-CC)^2+(BB*SIN($A73))^2))) -> 156.1817355 | F73: 8.38543184 | G73: =IF(elasti,energy_3-E73,IF(gravpluc,ENERGY22+E73,ENERGY+E73)) -> 113.2885167 | H73: =SQRT(2*G73/mass_2) -> 8.690551063 | J73: tandt | M73: =(SAB-Spq) -> -70.8491172 | Q73: =SAB -> -7.303709598
A74: -4.08407045 | B74: =AA*COS(A74) -> -5.877852523 | C74: =BB*SIN(A74) -> 5.720614028 | D74: =IF(elasti,mass_2*$H74*AA*BB/SQRT((AA*SIN($A74))^2+(BB*COS($A74))^2),IF(graviminus,MASS*(-AA*BB-BB*CC*COS(A74))/SQRT((AA*SIN(A74))^2+(BB*COS(A74))^2)*$H74,MASS*(-AA*BB+BB*CC*COS($A74))/SQRT((AA*SIN($A74))^2+(BB*COS($A74))^2)*$H74)) -> -189.0617598 | E74: 146.8008079 | F74: =SQRT(B74^2+C74^2) -> 8.202107969 | G74: 103.907589 | H74: 8.322963777 | J74: =(SIGN(YP_)*TANFQ*v2_x-TANFP*v1_x)/(-v1_x+SIGN(YP_)*v2_x) -> -0.3359214433 | L74: =(Spq-KK/v2_x+SIGN(YP_)*KK/v1_x-Spq)/(TANFP-TANFQ) -> -12.45883891 | M74: =M73/(TANFP-TANFQ) -> -12.45883891 | N74: =O74/L74 -> -0.3359214433 | O74: =(SIGN(YP_)*TANFQ*KK/v1_x-TANFP*KK/v2_x)/(TANFP-TANFQ) -> 4.18519115 | P74: =O74/P71 -> -1.025774415 | Q74: =Spq+(-SIGN(QY_)*KK/v2_x+SIGN(YP_)*KK/v1_x) -> -7.303709598
A75: =A74-PI()/50 -> -4.146902303 | B75: -5.35826795 | C75: 5.970300017 | D75: -189.0617598 | E75: 138.1172259 | F75: 8.022189085 | G75: 95.22400706 | H75: 7.967601356 | L75: =xd_-Xt -> -12.45883891 | O75: =yd_-Yt -> 4.18519115 | P75: =TaNTd -> -0.3359214433
A76: -4.209734156 | B76: -4.817536741 | C76: 6.196423959 | D76: -189.0617598 | E76: 130.1078417 | F76: 7.848842598 | G76: 87.21462291 | H76: 7.625161109 | J76: xd-tx | L76: =-Spq-KK/v2_x+SIGN(YP_)*KK/v1_x -> -134.3945248 | M76: =L76-Spq -> -197.9399324
A77: -4.272566009 | B77: -4.257792916 | C77: 6.398093446 | D77: -189.0617598 | E77: 122.7399202 | F77: 7.685336704 | G77: 79.84670142 | H77: 7.295966988 | P77: =-KK/v2_x-SIGN(YP_)*KK/v1_x -> -60.2528796
A78: -4.335397862 | B78: -3.681245527 | C78: 6.574512582 | D78: -189.0617598 | E78: 115.9751631 | F78: 7.534970757 | G78: 73.08194433 | H78: 6.980064199 | P78: =P77/(TANFP-TANFQ) -> -10.59548729
A79: -4.398229715 | B79: -3.090169944 | C79: 6.72498512 | D79: -189.0617598 | E79: 109.7726387 | F79: 7.400984741 | G79: 66.87941989 | H79: 6.677295855 | P79: =xd_-Xt -> -12.45883891 | S79: =Spq -> 63.54540761
A80: -4.461061568 | B80: -2.486898872 | C80: 6.848917214 | D80: -189.0617598 | E80: 104.0908444 | F80: 7.286448586 | G80: 61.19762562 | H80: 6.38736386 | S80: =Spq-KK/v2_x+SIGN(YP_)*KK/v1_x -> -7.303709598
A81: -4.523893421 | B81: -1.873813146 | C81: 6.945819761 | D81: -189.0617598 | E81: 98.88910548 | F81: 7.194135657 | G81: 55.99588667 | H81: 6.109876522 | P81: =SAB -> -7.303709598 | S81: =S80-Spq -> -70.8491172
A82: -4.586725274 | B82: -1.253332336 | C82: 7.01531033 | D82: -189.0617598 | E82: 94.12847791 | F82: 7.126389056 | G82: 51.2352591 | H82: 5.844385288 | K82: SPQ | L82: =Spq -> 63.54540761 | N82: =v1_x -> 3.77492479 | S82: =S81/(TANFP-TANFQ) -> -12.45883891
A83: -4.649557127 | B83: -0.6279051953 | C83: 7.057114675 | D83: -189.0617598 | E83: 89.77229166 | F83: 7.08499347 | G83: 46.87907285 | H83: 5.590412796 | L83: =SAB -> -7.303709598 | M83: =Spq-KK/v2_x+SIGN(YP_)*KK/v1_x -> -7.303709598 | N83: =v2_x -> 0.3051059555
A84: -4.71238898 | B84: -1.837722682e-15 | C84: 7.071067812 | D84: -189.0617598 | E84: 85.78643763 | F84: 7.071067812 | G84: 42.89321881 | H84: 5.347474096 | L84: =SAB -> -7.303709598 | N84: =v3_x -> 5.362373922
A85: -4.775220833 | B85: 0.6279051953 | C85: 7.057114675 | D85: -189.0617598 | E85: 82.1394775 | F85: 7.08499347 | G85: 39.24625869 | H85: 5.115092615 | M85: =(M83)/(TANFP-TANFQ) -> -1.284359565
A86: -4.838052687 | B86: 1.253332336 | C86: 7.01531033 | D86: -189.0617598 | E86: 78.80263457 | F86: 7.126389056 | G86: 35.90941575 | H86: 4.892812126
A87: -4.90088454 | B87: 1.873813146 | C87: 6.945819761 | D87: -189.0617598 | E87: 75.74970756 | F87: 7.194135657 | G87: 32.85648875 | H87: 4.680205747
A88: -4.963716393 | B88: 2.486898872 | C88: 6.848917214 | D88: -189.0617598 | E88: 72.95693781 | F88: 7.286448586 | G88: 30.063719 | H88: 4.47688277
A89: -5.026548246 | B89: 3.090169944 | C89: 6.72498512 | D89: -189.0617598 | E89: 70.40285067 | F89: 7.400984741 | G89: 27.50963186 | H89: 4.282493966
A90: -5.089380099 | B90: 3.681245527 | C90: 6.574512582 | D90: -189.0617598 | E90: 68.0680857 | F90: 7.534970757 | G90: 25.17486689 | H90: 4.096735846
A91: -5.152211952 | B91: 4.257792916 | C91: 6.398093446 | D91: -189.0617598 | E91: 65.9352254 | F91: 7.685336704 | G91: 23.04200659 | H91: 3.919354248
A92: -5.215043805 | B92: 4.817536741 | C92: 6.196423959 | D92: -189.0617598 | E92: 63.98862872 | F92: 7.848842598 | G92: 21.09540991 | H92: 3.750147544
A93: -5.277875658 | B93: 5.35826795 | C93: 5.970300017 | D93: -189.0617598 | E93: 62.21427321 | F93: 8.022189085 | G93: 19.32105439 | H93: 3.58896962
A94: -5.340707511 | B94: 5.877852523 | C94: 5.720614028 | D94: -189.0617598 | E94: 60.59960809 | F94: 8.202107969 | G94: 17.70638927 | H94: 3.435732748
A95: -5.403539364 | B95: 6.374239897 | C95: 5.44835139 | D95: -189.0617598 | E95: 59.13341927 | F95: 8.38543184 | G95: 16.24020046 | H95: 3.290410355
A96: -5.466371217 | B96: 6.845471059 | C96: 5.154586597 | D96: -189.0617598 | E96: 57.80570667 | F96: 8.569144474 | G96: 14.91248786 | H96: 3.153039576
A97: -5.52920307 | B97: 7.289686274 | C97: 4.840479006 | D97: -189.0617598 | E97: 56.60757361 | F97: 8.750415018 | G97: 13.71435479 | H97: 3.023723399
A98: -5.592034923 | B98: 7.705132428 | C98: 4.507268256 | D98: -189.0617598 | E98: 55.53112786 | F98: 8.926619341 | G98: 12.63790905 | H98: 2.90263203
A99: -5.654866776 | B99: 8.090169944 | C99: 4.156269378 | D99: -189.0617598 | E99: 54.56939371 | F99: 9.095351827 | G99: 11.6761749 | H99: 2.790002975
A100: -5.71769863 | B100: 8.443279255 | C100: 3.788867603 | D100: -189.0617598 | E100: 53.71623422 | F100: 9.254430414 | G100: 10.82301541 | H100: 2.686139163
A101: -5.780530483 | B101: 8.7630668 | C101: 3.406512898 | D101: -189.0617598 | E101: 52.96628308 | F101: 9.401897142 | G101: 10.07306427 | H101: 2.591404287
A102: -5.843362336 | B102: 9.048270525 | C102: 3.010714244 | D102: -189.0617598 | E102: 52.31488521 | F102: 9.536015926 | G102: 9.421666395 | H102: 2.506214462
A103: -5.906194189 | B103: 9.297764859 | C103: 2.603033675 | D103: -189.0617598 | E103: 51.7580455 | F103: 9.655268804 | G103: 8.864826682 | H103: 2.431025392
A104: -5.969026042 | B104: 9.510565163 | C104: 2.185080122 | D104: -189.0617598 | E104: 51.29238502 | F104: 9.758351544 | G104: 8.39916621 | H104: 2.366314463
A105: -6.031857895 | B105: 9.685831611 | C105: 1.758503056 | D105: -189.0617598 | E105: 50.91510424 | F105: 9.844169188 | G105: 8.021885426 | H105: =SQRT(2*G105/mass_2) -> 2.312557808
A106: -6.094689748 | B106: =AA*COS(A106) -> 9.822872507 | C106: 1.324985982 | D106: -189.0617598 | E106: 50.6239526 | F106: 9.911831927 | G106: 7.730733783 | H106: =SQRT(2*G106/mass_2) -> 2.27020319
A107: -6.157521601 | B107: =AA*COS(A107) -> 9.921147013 | C107: 0.8862397936 | D107: -189.0617598 | E107: 50.41720425 | F107: 9.960651536 | G107: 7.523985435 | H107: =SQRT(2*G107/mass_2) -> 2.239640661
A108: -6.220353454 | B108: =AA*COS(A108) -> 9.980267284 | C108: 0.4439960215 | D108: -189.0617598 | E108: 50.29363949 | F108: 9.990138514 | G108: 7.400420681 | H108: =SQRT(2*G108/mass_2) -> 2.221173966
A109: -6.283185307 | B109: =AA*COS(A109) -> 10 | C109: 6.453631991e-14 | D109: -189.0617598 | E109: 50.25253169 | F109: 10 | G109: 7.359312881 | H109: =SQRT(2*G109/mass_2) -> 2.214996295

Sheet PROOFS OF PROPERTIES
L7: STEP | M7: 8

Sheet propXpV
D1: xp | E1: =7 -> 7 | F1: gx | G1: =-xp -> -7 | H1: TGF∙TGY=-B²/A² | J1: PHI | K1: =ATAN(yp/xp) -> 0.6249399982 | L1: =TAN(PHI) -> 0.7213932099 | M1: =DEGREES(L1) -> 41.3327863 | U1: CP | V1: =SQRT(xp^2+yp^2) -> 8.631338251 | W1: AA | X1: =AA -> 10
D2: yp | E2: =BB*SQRT(1-xp^2/AA^2) -> 5.049752469 | F2: gy | G2: =-yp -> -5.049752469 | J2: PSI | K2: =PI()-K3 -> 2.535510373 | L2: =TAN(PSI) -> -0.6931032801 | M2: =180-DEGREES(L2) -> 219.7118927 | U2: CD | V2: =SQRT(XD^2+YD^2) -> 8.689073598 | W2: BBT | X2: =BB -> 7.071067812 | Y2: x=Xcosφ+Ycosψ | AA2: xsinφ-ycosφ=Υ(cosψsinφ-sinψcosφ)=Υsin(φ-ψ)
D3: DYDX | E3: =-(xp/yp)*(BB/AA)^2 -> -0.6931032801 | F3: RZ | J3: =ATAN2(1,-BB^2/AA^2/TAN(PHI)) -> 0.6060822807 | K3: =ATAN(-BB^2/AA^2/TAN(PHI)) -> 0.6060822807 | L3: =180+DEGREES(K3) -> 214.7259567 | O3: QR IS THE MOVEMENT DUE TO CENTRIPETAL FORCE | Y3: y=Xsinφ+Ysinψ | AA3: xsinψ-ycosψ=X(cosφsinψ-ψcosψsinψ)=Χsin(ψ-φ)
D4: RX | E4: =xp-2.9 -> 4.1 | F4: =yp+DYDX*(E4-xp) -> 7.059751981 | G4: =RX-4 -> 0.1 | H4: =yp+DYDX*(G4-xp) -> 9.832165102 | K4: =TAN(K3) -> 0.6931032801 | O4: SO QR=1/2Ft² | P4: where t is proportionlal to the area swept by PC =QT*PC | U4: L | V4: =COS(PHI)^2/AA^2+SIN(PHI)^2/BB^2 -> 0.01342281879 | W4: AAT | X4: =SQRT(1/V4) -> 8.631338251 | Z4: RxT | AA4: =(RX*SIN(PSI)-RY*COS(PSI))/SIN(PSI-PHI) -> 8.631338251 | AB4: QXT | AC4: =AAT*SQRT(1-RYT^2/BBT^2) -> 7.887636143
A5: force to the center of ellipse | D5: ZX | E5: =xp+3.5 -> 10.5 | F5: =yp+DYDX*(E5-xp) -> 2.623890989 | G5: =ZX+4 -> 14.5 | H5: =yp+DYDX*(G5-xp) -> -0.1485221314 | J5: A | L5: B | P5: swept by PC =QT*PC | U5: M | V5: =COS(PHI)*COS(PSI)/AA^2+SIN(PHI)*SIN(PSI)/BB^2 -> 0 | Z5: RyT | AA5: =(RX*SIN(PHI)-RY*COS(PHI))/SIN(PHI-PSI) -> 3.528469646 | AB5: QYT | AC5: =RYT -> 3.528469646 | AE5: (Xcosφ+Ycosψ)^2/ΑΑ^2+(Xsinφ+Ysinψ)^2/ΒΒ^2=Χ^2*(COSΦ^2/ΑΑ^2+SINΦ^2/ΒΒ^2)+Υ^2*(COSΨ^2/ΑΑ^2+SINΨ^2/BB^2)=1
B6: =MIN(B9:B109) -> 2.928932188 | G6: X²/A²+X²∙TAN(PSI)²/B²=1 | I6: 0 | J6: =AA -> 10 | K6: 0 | L6: =0 -> 0 | M6: =BB -> 7.071067812 | N6: 0 | P6: QR/(PC²∙QT²) | S6: FIND Q | U6: N | V6: =COS(PSI)^2/AA^2+SIN(PSI)^2/BB^2 -> 0.01324503311 | W6: BBT | X6: =SQRT(1/V6) -> 8.689073598 | AB6: QX | AC6: =QXT*COS(PHI)+QYT*COS(PSI) -> 3.496858911
B7: =MAX(B9:B109) -> 17.07106781 | G7: X²∙(1/A²+TAN(PSI)²/B²)=1 | J7: MHNYMA5 | K7: F~QR/t² ~ QR/(PC²∙QT²) | O7: F⌐QR/(PC²∙QT²) | P7: =QR/(AAT^2*QT^2) -> 0.0009019930442 | Q7: IN THE LIMIT EQUAL | AB7: QY | AC7: =QXT*SIN(PHI)+QYT*SIN(PSI) -> 6.624650095
A8: FI | B8: R1 | C8: x | D8: y | G8: X=1/SQRT(1/AA²+(TAN(PSI)/BB)²) | J8: -4 | K8: 8 | O8: 1/(2∙CD²∙PF²)PC= | P8: =1/(2*BBT^2*PF^2)*AAT -> 0.0008631338251 | Q8: 1/(2∙CA²∙CB²)PC=R[5]C | R8: =1/(2*AA^2*BB^2)*AAT -> 0.0008631338251 | V8: BF=AAT*COS(φ-ψ)
A9: 0 | B9: =AA*(1-ECCENTRICITY^2)/(1+ECCENTRICITY*COS($A9)) -> 2.928932188 | C9: =CC+B9*COS(A9) -> 10 | D9: =$B9*SIN($A9) -> 0 | E9: =SQRT(C9^2+D9^2) -> 10 | G9: KX | H9: =1/SQRT(1/AA^2+(TAN(PSI)/BB)^2) -> 7.141428429 | I9: =-XK -> -7.141428429 | J9: -4 | K9: 0 | O9: QV²/QT² | P9: =QV^2/QT^2 -> 1.12495 | Q9: PV | R9: =PV -> 0.743702108
A10: =A9-PI()/50 -> -0.06283185307 | B10: 2.931328126 | C10: 9.996611632 | D10: =$B10*SIN($A10) -> -0.184059616 | E10: =SQRT(C10^2+D10^2) -> 9.998305959 | G10: YK | H10: =-BB*SQRT(1-(XK/AA)^2) -> -4.949747468 | I10: =-YK -> 4.949747468 | O10: PC²/PF² | P10: =AAT^2/PF^2 -> 1.12495 | Q10: QR | R10: =QR -> 0.743702108
A11: =A10-PI()/50 -> -0.1256637061 | B11: 2.938530008 | C11: 9.986426633 | D11: -0.3682954678 | E11: 9.993215621 | H11: DK | O11: QV² | P11: =QV^2 -> 12.45009804 | Y11: FIND V | AC11: QV
A12: -0.1884955592 | B12: 2.950580185 | C12: 9.96938511 | D12: -0.5528835938 | E12: 9.984704289 | H12: QR | L12: QT is perpendicular to CP | O12: QT²/PF²∙PC² | P12: =QT^2*AAT^2/PF^2 -> 12.45009804 | Y12: VXT | Z12: =QXT -> 7.887636143 | AA12: VX | AB12: =VXT*COS(PHI)+VYT*COS(PSI) -> 6.396858911 | AC12: =QX -> 3.496858911
A13: -0.2513274123 | B13: 2.967549746 | C13: 9.945386526 | D13: -0.7379996115 | E13: 9.972730648 | G13: =QX -> 3.496858911 | H13: =QY -> 6.624650095 | L13: RQ is the movement due to the force so total movement = PR+RQ | O13: 2∙QR∙PC | P13: =2*QR*AAT -> 12.8382889 | Q13: will be equal | S13: =1/(AA*BB)^2*AAT/2 -> 0.0008631338251 | Y13: VYT | Z13: =0 -> 0 | AA13: VY | AB13: =VXT*SIN(PHI) -> 4.614650583 | AC13: =QY -> 6.624650095
A14: -0.3141592654 | B14: 2.989539282 | C14: 9.914288626 | D14: -0.9238184434 | E14: 9.957236539 | G14: =RX -> 4.1 | H14: =RY -> 7.059751981 | J14: 10 | K14: 6 | L14: MHNYMA2 | O14: QV²∙PC²/CD² | P14: =(QV*AAT/BBT)^2 -> 12.28519608 | Q14: on the limit | AA14: GX | AB14: =-xp -> -7
A15: -0.3769911184 | B15: 3.016679963 | C15: 9.875905907 | D15: -1.110513962 | E15: 9.938146645 | H15: QT | J15: 10 | K15: 0 | L15: PR is the velocity: R would be the point where the body would be if there was not any force | T15: QX^2*(1/A^2-2*QX*(T^2*RX-T*RYiRX)/By2+T^2*RX^2 | AA15: GY | AB15: =-yp -> -5.049752469
A16: -0.4398229715 | B16: 3.04913496 | C16: 9.83000761 | D16: -1.298258523 | E16: 9.915368113 | G16: =QX -> 3.496858911 | H16: =QY -> 6.624650095 | J16: 4.5 | K16: 9 | L16: MHNYMA1 | O16: C | AA16: VG | AB16: =SQRT((VX-GX)^2+(VY-GY)^2) -> 16.51897439
A17: -0.5026548246 | B17: 3.08710121 | C17: 9.776315224 | D17: -1.48722235 | E17: 9.888790102 | G17: =TX -> 5.443167635 | H17: =TY -> 3.926664172 | J17: 5 | K17: 0 | L17: LET P THE POINT WHERE THE BODY PASSES | O17: 0 | P17: 0 | V17: VXT | AA17: PV | AB17: =SQRT((xp-VX)^2+(yp-VY)^2) -> 0.743702108
A18: -0.5654866776 | B18: 3.130811566 | C18: 9.714499446 | D18: -1.677572727 | E18: 9.858283306 | L18: PF is perpendicular to CK | O18: 0 | P18: 0 | S18: AA*BB | T18: =AA*BB -> 70.71067812 | AA18: QV | AB18: =SQRT((QX-VX)^2+(QY-VY)^2) -> 3.528469646
A19: -0.6283185307 | B19: 3.180537345 | C19: 9.644176575 | D19: -1.869472946 | E19: 9.823699451 | J19: =10 -> 10 | K19: 8.8 | L19: mhnyma | O19: F⌐QR/(PC²∙QT²)= 1/(2∙CD²∙PF²)∙PC = 1/(2∙CA²∙PB²)∙CP | S19: CD∙PF | T19: =SQRT(XD^2+YD^2)*SQRT((xp-F_X)^2+(yp-F_Y)^2) -> 70.71067812 | Z19: PV∙VG/QV² | AA19: =PV*VG/QV^2 -> 0.9867549669
A20: -0.6911503838 | B20: 3.236591319 | C20: 9.564904285 | D20: -2.063080952 | E20: 9.784870821 | J20: 10 | K20: 0 | L20: GP, DK CONJUGATE DIAMETERS | Q20: MHNYMA7 | S20: QR | T20: =SQRT((QX-RX)^2+(QY-RY)^2) -> 0.743702108 | Z20: PC²/CD² | AA20: =(xp^2+yp^2)/(XD^2+YD^2) -> 0.9867549669
A21: -0.7539822369 | B21: 3.299331175 | C21: 9.47617673 | D21: -2.258547607 | E21: 9.741609862 | L21: mhnyma3 | M21: 2QR∙PC∙CD²∙PF² | Q21: 12 | R21: 3.5 | S21: QT | T21: =SQRT((QX-TX)^2+(QY-TY)^2) -> 3.326747013 | Z21: We have CV²/CP² + QV²/CD² = 1 But CV=PC-VP so 1- 2VP∙PC/ CP²+VP²/CP²+ QV²/CD²=1 We use 2PC=GP and VP²-GP∙VP =VP∙(VP-GP)and GP-VP=VG so QV²/CD²= VG∙VP/PC² or PV∙VG/QV² = PC²/CD²
A22: -0.8168140899 | B22: 3.369163487 | C22: 9.377418926 | D22: -2.456014483 | E22: 9.693708932 | J22: 10 | K22: -1 | M22: Since CP∙PF=CA∙CB = constant so | Q22: 12 | R22: -1 | S22: VG | Z22: mhnyma4 | AC22: ∆PCF is similar to ∆QVT because angle PCF=angle QVT who are equal to the angles of conjugate diameters. So QV²/QT²=PC²/PF² so QV²=QT²∙PC²/PF²
A23: -0.879645943 | B23: 3.446548249 | C23: 9.267980347 | D23: -2.655611067 | E23: 9.6409403 | J23: 10 | K23: -5 | M23: QV²/QT²=PC²/PF² so QV²=QT²∙PC²/PF² | R23: Making these combinations and multiplying by QV²: PV∙VG =QV² PC²/CD² or 2∙QR∙PC=QV²∙PC²/CD² and since QV²=QT²∙PC²/PF² | Z23: =10 -> 10 | AA23: -4.5 | AC23: Since PVQR is a parallelogram, PV= QR. And VG→2∙PC That is VG =2 PC in the limit.
A24: -0.9424777961 | B24: 3.532003995 | C24: 9.147127671 | D24: -2.857451256 | E24: 9.583056523 | Q24: mhnyma6 | Z24: 10 | AA24: -8 | AC24: mhnyma6 | AD24: X`
A25: -1.005309649 | B25: 3.626113575 | C25: 9.014036627 | D25: -3.061628953 | E25: 9.519791393 | K25: Cut of two lines y=y1+t1*(x-x1) | N25: SSAA | O25: =Y2-Y1+X1*T1-X2*T2 | Q25: -15 | R25: 5 | AC25: 10 | AD25: 1
A26: -1.068141502 | B26: 3.729530593 | C26: 8.867782878 | D26: -3.268212572 | E26: 9.450861685 | L26: y=y2+t2*(x-x2) | N26: XLSH | O26: =SSAA/(T1-T2) | Q26: -15 | R26: 2 | AC26: 10 | AD26: -1
A27: -1.130973355 | B27: 3.842986562 | C27: 8.707331908 | D27: -3.477238204 | E27: 9.375970055 | L27: FIND PF PERPENDICULA TO DK | P27: FP
A28: -1.193805208 | B28: 3.96729877 | C28: 8.531527897 | D28: -3.688701109 | E28: 9.294809526 | L28: SSAA | M28: =YD-yp+xp*(-1/TAN(PSI))-XD*TAN(PSI) -> 5.049752469 | N28: F_X | O28: =M28/(-1/TAN(PSI)-TAN(PSI)) -> 2.364238411 | P28: F_Y | Q28: =yp-1/TAN(PSI)*(O28-xp) -> -1.638661397
A29: -1.256637061 | B29: 4.103378845 | C29: 8.339081609 | D29: -3.90254519 | E29: 9.207070166 | N29: XP | O29: =xp -> 7 | P29: YP | Q29: =yp -> 5.049752469
A30: -1.319468915 | B30: 4.252241953 | C30: 8.128557383 | D30: -4.118649953 | E30: 9.112448769 | L30: FIND THE PERPENDICULAR QT TO PG
A31: -1.382300768 | B31: 4.415016502 | C31: 7.898359408 | D31: -4.336814422 | E31: 9.01066261 | L31: T1 | M31: =-1/TAN(PHI) -> -1.38620656 | N31: X1 | O31: =QX -> 3.496858911 | P31: Y1 | Q31: =QY -> 6.624650095
A32: -1.445132621 | B32: 4.592954128 | C32: 7.646717604 | D32: -4.556737313 | E32: 8.901468702 | L32: T2 | M32: =TAN(PHI) -> 0.7213932099 | N32: X2 | O32: =xp -> 7 | P32: Y2 | Q32: =yp -> 5.049752469
A33: -1.507964474 | B33: 4.787439587 | C33: 7.371673631 | D33: -4.777992669 | E33: 8.784690436 | L33: SSAA | M33: =yp-QY+(-1/TAN(PHI))*QX-TAN(PHI)*xp -> -11.47201886 | N33: XLYSH | O33: =M33/(-1/TAN(PHI)-TAN(PHI)) -> 5.443167635 | P33: YLYSH | Q33: =QY-1/TAN(PHI)*(TX-QX) -> 3.926664172
A34: -1.570796327 | B34: 5 | C34: 7.071067812 | D34: -5 | E34: 8.660254038
A35: -1.63362818 | B35: 5.232312598 | C35: 6.742528186 | D35: -5.221987824 | E35: 8.528237987
A36: -1.696460033 | B36: 5.486209739 | C36: 6.383463405 | D36: -5.442949336 | E36: 8.388939297
A37: -1.759291886 | B37: 5.763679447 | C37: 5.99106198 | D37: -5.661588838 | E37: 8.24296135
A38: -1.822123739 | B38: 6.066859011 | C38: 5.562301329 | D38: -5.876257479 | E38: 8.091328571
A39: -1.884955592 | B39: 6.39801825 | C39: 5.093971442 | D39: -6.084876948 | E39: 7.935633089
A40: -1.947787445 | B40: 6.759527867 | C40: 4.58271964 | D40: -6.284850066 | E40: 7.778216997
A41: -2.010619298 | B41: 7.153806804 | C41: =CC+B41*COS(A41) -> 4.025125019 | D41: -6.472957924 | E41: 7.622389108
A42: -2.073451151 | B42: 7.583240739 | C42: 3.417813724 | D42: -6.645244516 | E42: 7.472665209
A43: -2.136283004 | B43: 8.050061857 | C43: 2.757628968 | D43: -6.796892028 | E43: 7.335002301
A44: -2.199114858 | B44: 8.556178105 | C44: 2.041872506 | D44: -6.922093494 | E44: 7.216967623
A45: -2.261946711 | B45: 9.102938635 | C45: 1.268636349 | D45: -7.013934766 | E45: 7.127742917
A46: -2.324778564 | B46: 9.690822086 | C46: 0.4372435985 | D46: -7.064305275 | E46: 7.077823887
A47: -2.387610417 | B47: 10.31903696 | C47: -0.4511863987 | D47: -7.063866888 | E47: 7.07826141
A48: -2.45044227 | B48: 10.98503076 | C48: -1.393043862 | D48: -7.002122135 | E48: 7.139347701
A49: -2.513274123 | B49: 11.68391922 | C49: -2.381421397 | D49: -6.867635406 | E49: 7.268808976
A50: -2.576105976 | B50: 12.40787161 | C50: -3.40524468 | D50: -6.648470075 | E50: 7.469795557
A51: -2.638937829 | B51: 13.14552396 | C51: -4.44844265 | D51: -6.332904467 | E51: 7.739142136
A52: -2.701769682 | B52: 13.88153725 | C52: -5.489322622 | D52: -5.910471096 | E52: 8.0663704
A53: -2.764601535 | B53: 14.59646289 | C53: -6.500380165 | D53: -5.373316374 | E53: 8.433710402
A54: -2.827433388 | B54: 15.2671062 | C54: -7.448813029 | D54: -4.717795272 | E54: 8.817165518
A55: -2.890265241 | B55: 15.86756153 | C55: -8.297985095 | D55: -3.946102087 | E55: 9.188486182
A56: -2.953097094 | B56: 16.37100501 | C56: -9.009961691 | D56: -3.06762044 | E56: 9.517862409
A57: -3.015928947 | B57: 16.75216037 | C57: -9.548996769 | D57: -2.099602428 | E57: 9.777099245
A58: -3.078760801 | B58: 16.99012856 | C58: -9.885534606 | D58: -1.066818999 | E58: 9.942932023
A59: -3.141592654 | B59: 17.07106781 | C59: -10 | D59: 4.339500286e-14 | E59: 10
A60: -3.204424507 | B60: 16.99012856 | C60: -9.885534606 | D60: 1.066818999 | E60: 9.942932023
A61: -3.26725636 | B61: 16.75216037 | C61: -9.548996769 | D61: 2.099602428 | E61: 9.777099245
A62: -3.330088213 | B62: 16.37100501 | C62: -9.009961691 | D62: 3.06762044 | E62: 9.517862409
A63: -3.392920066 | B63: 15.86756153 | C63: -8.297985095 | D63: 3.946102087 | E63: 9.188486182
A64: -3.455751919 | B64: 15.2671062 | C64: -7.448813029 | D64: 4.717795272 | E64: 8.817165518
A65: -3.518583772 | B65: 14.59646289 | C65: -6.500380165 | D65: 5.373316374 | E65: 8.433710402
A66: -3.581415625 | B66: 13.88153725 | C66: -5.489322622 | D66: 5.910471096 | E66: 8.0663704
A67: -3.644247478 | B67: 13.14552396 | C67: -4.44844265 | D67: 6.332904467 | E67: 7.739142136
A68: -3.707079331 | B68: 12.40787161 | C68: -3.40524468 | D68: 6.648470075 | E68: 7.469795557
A69: -3.769911184 | B69: 11.68391922 | C69: -2.381421397 | D69: 6.867635406 | E69: 7.268808976
A70: -3.832743037 | B70: 10.98503076 | C70: -1.393043862 | D70: 7.002122135 | E70: 7.139347701
A71: -3.89557489 | B71: 10.31903696 | C71: -0.4511863987 | D71: 7.063866888 | E71: 7.07826141
A72: -3.958406744 | B72: 9.690822086 | C72: 0.4372435985 | D72: 7.064305275 | E72: 7.077823887
A73: -4.021238597 | B73: =AA*(1-ECCENTRICITY^2)/(1+ECCENTRICITY*COS($A73)) -> 9.102938635 | C73: =CC+B73*COS(A73) -> 1.268636349 | D73: 7.013934766 | E73: 7.127742917
A74: -4.08407045 | B74: 8.556178105 | C74: 2.041872506 | D74: =$B74*SIN($A74) -> 6.922093494 | E74: =SQRT(C74^2+D74^2) -> 7.216967623
A75: =A74-PI()/50 -> -4.146902303 | B75: 8.050061857 | C75: 2.757628968 | D75: 6.796892028 | E75: 7.335002301
A76: -4.209734156 | B76: 7.583240739 | C76: 3.417813724 | D76: 6.645244516 | E76: 7.472665209
A77: -4.272566009 | B77: 7.153806804 | C77: 4.025125019 | D77: 6.472957924 | E77: 7.622389108
A78: -4.335397862 | B78: 6.759527867 | C78: 4.58271964 | D78: 6.284850066 | E78: 7.778216997
A79: -4.398229715 | B79: 6.39801825 | C79: 5.093971442 | D79: 6.084876948 | E79: 7.935633089
A80: -4.461061568 | B80: 6.066859011 | C80: 5.562301329 | D80: 5.876257479 | E80: 8.091328571
A81: -4.523893421 | B81: 5.763679447 | C81: 5.99106198 | D81: 5.661588838 | E81: 8.24296135
A82: -4.586725274 | B82: 5.486209739 | C82: 6.383463405 | D82: 5.442949336 | E82: 8.388939297
A83: -4.649557127 | B83: 5.232312598 | C83: 6.742528186 | D83: 5.221987824 | E83: 8.528237987
A84: -4.71238898 | B84: 5 | C84: 7.071067812 | D84: 5 | E84: 8.660254038
A85: -4.775220833 | B85: 4.787439587 | C85: 7.371673631 | D85: 4.777992669 | E85: 8.784690436
A86: -4.838052687 | B86: 4.592954128 | C86: 7.646717604 | D86: 4.556737313 | E86: 8.901468702
A87: -4.90088454 | B87: 4.415016502 | C87: 7.898359408 | D87: 4.336814422 | E87: 9.01066261
A88: -4.963716393 | B88: 4.252241953 | C88: 8.128557383 | D88: 4.118649953 | E88: 9.112448769
A89: -5.026548246 | B89: 4.103378845 | C89: 8.339081609 | D89: 3.90254519 | E89: 9.207070166
A90: -5.089380099 | B90: 3.96729877 | C90: 8.531527897 | D90: 3.688701109 | E90: 9.294809526
A91: -5.152211952 | B91: 3.842986562 | C91: 8.707331908 | D91: 3.477238204 | E91: 9.375970055
A92: -5.215043805 | B92: 3.729530593 | C92: 8.867782878 | D92: 3.268212572 | E92: 9.450861685
A93: -5.277875658 | B93: 3.626113575 | C93: 9.014036627 | D93: 3.061628953 | E93: 9.519791393
A94: -5.340707511 | B94: 3.532003995 | C94: 9.147127671 | D94: 2.857451256 | E94: 9.583056523
A95: -5.403539364 | B95: 3.446548249 | C95: 9.267980347 | D95: 2.655611067 | E95: 9.6409403
A96: -5.466371217 | B96: 3.369163487 | C96: 9.377418926 | D96: 2.456014483 | E96: 9.693708932
A97: -5.52920307 | B97: 3.299331175 | C97: 9.47617673 | D97: 2.258547607 | E97: 9.741609862
A98: -5.592034923 | B98: 3.236591319 | C98: 9.564904285 | D98: 2.063080952 | E98: 9.784870821
A99: -5.654866776 | B99: 3.180537345 | C99: 9.644176575 | D99: 1.869472946 | E99: 9.823699451
A100: -5.71769863 | B100: 3.130811566 | C100: 9.714499446 | D100: 1.677572727 | E100: 9.858283306
A101: -5.780530483 | B101: 3.08710121 | C101: 9.776315224 | D101: 1.48722235 | E101: 9.888790102
A102: -5.843362336 | B102: 3.04913496 | C102: 9.83000761 | D102: 1.298258523 | E102: 9.915368113
A103: -5.906194189 | B103: 3.016679963 | C103: 9.875905907 | D103: 1.110513962 | E103: 9.938146645
A104: -5.969026042 | B104: 2.989539282 | C104: 9.914288626 | D104: 0.9238184434 | E104: 9.957236539
A105: -6.031857895 | B105: 2.967549746 | C105: =CC+B105*COS(A105) -> 9.945386526 | D105: 0.7379996115 | E105: 9.972730648
A106: -6.094689748 | B106: 2.950580185 | C106: =CC+B106*COS(A106) -> 9.96938511 | D106: 0.5528835938 | E106: 9.984704289
A107: -6.157521601 | B107: 2.938530008 | C107: =CC+B107*COS(A107) -> 9.986426633 | D107: 0.3682954678 | E107: 9.993215621
A108: -6.220353454 | B108: 2.931328126 | C108: =CC+B108*COS(A108) -> 9.996611632 | D108: 0.184059616 | E108: 9.998305959
A109: -6.283185307 | B109: 2.928932188 | C109: =CC+B109*COS(A109) -> 10 | D109: 2.673181897e-14 | E109: 10
